Workbook

Sheet S2a. strict clumping
A1: Table S2a. MR instruments (strict clumping LD r2<0.001 within 1Mb)
A2: gene.exposure | B2: weighting_biomarker | C2: outcome | D2: SNP | E2: effect_allele.exposure | F2: other_allele.exposure | G2: effect_allele.outcome | H2: other_allele.outcome | I2: beta.exposure | J2: beta.outcome | K2: eaf.exposure | L2: eaf.outcome | M2: remove | N2: palindromic | O2: ambiguous | P2: id.outcome | Q2: chr.outcome | R2: pos.outcome | S2: se.outcome | T2: pval.outcome | U2: samplesize.outcome | V2: mr_keep.outcome | W2: pval_origin.outcome | X2: chr.exposure | Y2: pos.exposure | Z2: se.exposure | AA2: pval.exposure | AB2: id.exposure | AC2: mr_keep.exposure | AD2: pval_origin.exposure | AE2: action | AF2: SNP_index | AG2: mr_keep | AH2: F
A3: ACLY | B3: apolipoprotein A-I | C3: CAD GWAS Cardiogram | D3: rs140050646 | E3: T | F3: C | G3: T | H3: C | I3: 0.00560393 | J3: 0.03970068 | K3: 0.011949 | L3: 0.0102 | M3: FALSE | N3: FALSE | O3: FALSE | P3: Blrstk | Q3: 17 | R3: 40061836 | S3: 0.034426518 | T3: 0.2488 | U3: 934741 | V3: TRUE | W3: reported | X3: 17 | Y3: 40061836 | Z3: 0.0094989 | AA3: 0.56 | AB3: ACLY_ieu-b-107 | AC3: TRUE | AD3: reported | AE3: 2 | AF3: 1 | AG3: TRUE | AH3: =(Table5[[#This Row],[beta.exposure]]/Table5[[#This Row],[se.exposure]])^2 -> 0.3480477033
A4: ACLY | B4: apolipoprotein A-I | C4: CAD GWAS Cardiogram | D4: rs182486971 | E4: A | F4: G | G4: A | H4: G | I4: -0.00145092 | J4: 0.01575852 | K4: 0.01284 | L4: 0.0147 | M4: FALSE | N4: FALSE | O4: FALSE | P4: Blrstk | Q4: 17 | R4: 40111019 | S4: 0.027234006 | T4: 0.5628 | U4: 957171 | V4: TRUE | W4: reported | X4: 17 | Y4: 40111019 | Z4: 0.00951556 | AA4: 0.88 | AB4: ACLY_ieu-b-107 | AC4: TRUE | AD4: reported | AE4: 2 | AF4: 1 | AG4: TRUE | AH4: =(Table5[[#This Row],[beta.exposure]]/Table5[[#This Row],[se.exposure]])^2 -> 0.02324974695
A5: ACLY | B5: apolipoprotein A-I | C5: CAD GWAS Cardiogram | D5: rs189618311 | E5: T | F5: C | G5: T | H5: C | I5: -0.0123276 | J5: -0.00920732 | K5: 0.018734 | L5: 0.0183 | M5: FALSE | N5: FALSE | O5: FALSE | P5: Blrstk | Q5: 17 | R5: 39927501 | S5: 0.024267175 | T5: 0.7044 | U5: 957171 | V5: TRUE | W5: reported | X5: 17 | Y5: 39927501 | Z5: 0.00793126 | AA5: 0.12 | AB5: ACLY_ieu-b-107 | AC5: TRUE | AD5: reported | AE5: 2 | AF5: 1 | AG5: TRUE | AH5: =(Table5[[#This Row],[beta.exposure]]/Table5[[#This Row],[se.exposure]])^2 -> 2.41586518
A6: ACLY | B6: apolipoprotein A-I | C6: CAD GWAS Cardiogram | D6: rs41283427 | E6: T | F6: C | G6: T | H6: C | I6: 0.0142313 | J6: -0.00759548 | K6: 0.04121 | L6: 0.0402 | M6: FALSE | N6: FALSE | O6: FALSE | P6: Blrstk | Q6: 17 | R6: 39928598 | S6: 0.014196668 | T6: 0.5926 | U6: 1115460 | V6: TRUE | W6: reported | X6: 17 | Y6: 39928598 | Z6: 0.00509441 | AA6: 0.00519996 | AB6: ACLY_ieu-b-107 | AC6: TRUE | AD6: reported | AE6: 2 | AF6: 1 | AG6: TRUE | AH6: =(Table5[[#This Row],[beta.exposure]]/Table5[[#This Row],[se.exposure]])^2 -> 7.803714264
A7: ACLY | B7: apolipoprotein A-I | C7: CAD GWAS Cardiogram | D7: rs6503665 | E7: C | F7: G | G7: C | H7: G | I7: 0.0146525 | J7: -0.01266775 | K7: 0.915281 | L7: 0.8951 | M7: FALSE | N7: TRUE | O7: FALSE | P7: Blrstk | Q7: 17 | R7: 39953539 | S7: 0.0086435518 | T7: 0.1428 | U7: 1150770 | V7: TRUE | W7: reported | X7: 17 | Y7: 39953539 | Z7: 0.00359333 | AA7: 4.50E-05 | AB7: ACLY_ieu-b-107 | AC7: TRUE | AD7: reported | AE7: 2 | AF7: 1 | AG7: TRUE | AH7: =(Table5[[#This Row],[beta.exposure]]/Table5[[#This Row],[se.exposure]])^2 -> 16.62758795
A8: ACLY | B8: apolipoprotein A-I | C8: CAD GWAS Cardiogram | D8: rs76230895 | E8: G | F8: C | G8: G | H8: C | I8: -0.0137419 | J8: -0.02718325 | K8: 0.047061 | L8: 0.043 | M8: FALSE | N8: TRUE | O8: FALSE | P8: Blrstk | Q8: 17 | R8: 39934019 | S8: 0.014738006 | T8: 0.06512 | U8: 1100230 | V8: TRUE | W8: reported | X8: 17 | Y8: 39934019 | Z8: 0.00504609 | AA8: 0.00649995 | AB8: ACLY_ieu-b-107 | AC8: TRUE | AD8: reported | AE8: 2 | AF8: 1 | AG8: TRUE | AH8: =(Table5[[#This Row],[beta.exposure]]/Table5[[#This Row],[se.exposure]])^2 -> 7.416236715
A9: ACLY | B9: apolipoprotein A-I | C9: CAD GWAS Cardiogram | D9: rs78463825 | E9: G | F9: A | G9: G | H9: A | I9: -0.00311573 | J9: -0.00349324 | K9: 0.019318 | L9: 0.0175 | M9: FALSE | N9: FALSE | O9: FALSE | P9: Blrstk | Q9: 17 | R9: 40164055 | S9: 0.02521743 | T9: 0.8898 | U9: 945369 | V9: TRUE | W9: reported | X9: 17 | Y9: 40164055 | Z9: 0.00727112 | AA9: 0.67 | AB9: ACLY_ieu-b-107 | AC9: TRUE | AD9: reported | AE9: 2 | AF9: 1 | AG9: TRUE | AH9: =(Table5[[#This Row],[beta.exposure]]/Table5[[#This Row],[se.exposure]])^2 -> 0.183618742
A10: ACLY | B10: apolipoprotein A-I | C10: CAD GWAS Cardiogram | D10: rs79853117 | E10: A | F10: T | G10: A | H10: T | I10: -0.0187578 | J10: -0.01582291 | K10: 0.01394 | L10: 0.0188 | M10: FALSE | N10: TRUE | O10: FALSE | P10: Blrstk | Q10: 17 | R10: 39993814 | S10: 0.023399263 | T10: 0.4989 | U10: 963695 | V10: TRUE | W10: reported | X10: 17 | Y10: 39993814 | Z10: 0.00857901 | AA10: 0.0290001 | AB10: ACLY_ieu-b-107 | AC10: TRUE | AD10: reported | AE10: 2 | AF10: 1 | AG10: TRUE | AH10: =(Table5[[#This Row],[beta.exposure]]/Table5[[#This Row],[se.exposure]])^2 -> 4.780677569
A11: ACLY | B11: apolipoprotein A-I | C11: Fasting glucose | D11: rs140050646 | E11: T | F11: C | G11: T | H11: C | I11: 0.00560393 | J11: -0.003 | K11: 0.011949 | L11: 0.013 | M11: FALSE | N11: FALSE | O11: FALSE | P11: ebi-a-GCST90002232 | Q11: 17 | R11: 40061836 | S11: 0.0129 | T11: 0.809 | U11: 200622 | V11: TRUE | W11: reported | X11: 17 | Y11: 40061836 | Z11: 0.0094989 | AA11: 0.56 | AB11: ACLY_ieu-b-107 | AC11: TRUE | AD11: reported | AE11: 2 | AF11: 1 | AG11: TRUE | AH11: =(Table5[[#This Row],[beta.exposure]]/Table5[[#This Row],[se.exposure]])^2 -> 0.3480477033
A12: ACLY | B12: apolipoprotein A-I | C12: Fasting glucose | D12: rs182486971 | E12: A | F12: G | G12: A | H12: G | I12: -0.00145092 | J12: 0.0362 | K12: 0.01284 | L12: 0.005 | M12: FALSE | N12: FALSE | O12: FALSE | P12: ebi-a-GCST90002232 | Q12: 17 | R12: 40111019 | S12: 0.0205 | T12: 0.0622501 | U12: 200622 | V12: TRUE | W12: reported | X12: 17 | Y12: 40111019 | Z12: 0.00951556 | AA12: 0.88 | AB12: ACLY_ieu-b-107 | AC12: TRUE | AD12: reported | AE12: 2 | AF12: 1 | AG12: TRUE | AH12: =(Table5[[#This Row],[beta.exposure]]/Table5[[#This Row],[se.exposure]])^2 -> 0.02324974695
A13: ACLY | B13: apolipoprotein A-I | C13: Fasting glucose | D13: rs189618311 | E13: T | F13: C | G13: T | H13: C | I13: -0.0123276 | J13: 1.00E-04 | K13: 0.018734 | L13: 0.009 | M13: FALSE | N13: FALSE | O13: FALSE | P13: ebi-a-GCST90002232 | Q13: 17 | R13: 39927501 | S13: 0.0195 | T13: 0.9197 | U13: 200622 | V13: TRUE | W13: reported | X13: 17 | Y13: 39927501 | Z13: 0.00793126 | AA13: 0.12 | AB13: ACLY_ieu-b-107 | AC13: TRUE | AD13: reported | AE13: 2 | AF13: 1 | AG13: TRUE | AH13: =(Table5[[#This Row],[beta.exposure]]/Table5[[#This Row],[se.exposure]])^2 -> 2.41586518
A14: ACLY | B14: apolipoprotein A-I | C14: Fasting glucose | D14: rs41283427 | E14: T | F14: C | G14: T | H14: C | I14: 0.0142313 | J14: 0.0081 | K14: 0.04121 | L14: 0.055 | M14: FALSE | N14: FALSE | O14: FALSE | P14: ebi-a-GCST90002232 | Q14: 17 | R14: 39928598 | S14: 0.0054 | T14: 0.148 | U14: 200622 | V14: TRUE | W14: reported | X14: 17 | Y14: 39928598 | Z14: 0.00509441 | AA14: 0.00519996 | AB14: ACLY_ieu-b-107 | AC14: TRUE | AD14: reported | AE14: 2 | AF14: 1 | AG14: TRUE | AH14: =(Table5[[#This Row],[beta.exposure]]/Table5[[#This Row],[se.exposure]])^2 -> 7.803714264
A15: ACLY | B15: apolipoprotein A-I | C15: Fasting glucose | D15: rs6503665 | E15: C | F15: G | G15: C | H15: G | I15: 0.0146525 | J15: 0.0082 | K15: 0.915281 | L15: 0.879 | M15: FALSE | N15: TRUE | O15: FALSE | P15: ebi-a-GCST90002232 | Q15: 17 | R15: 39953539 | S15: 0.0033 | T15: 0.0234898 | U15: 200622 | V15: TRUE | W15: reported | X15: 17 | Y15: 39953539 | Z15: 0.00359333 | AA15: 4.50E-05 | AB15: ACLY_ieu-b-107 | AC15: TRUE | AD15: reported | AE15: 2 | AF15: 1 | AG15: TRUE | AH15: =(Table5[[#This Row],[beta.exposure]]/Table5[[#This Row],[se.exposure]])^2 -> 16.62758795
A16: ACLY | B16: apolipoprotein A-I | C16: Fasting glucose | D16: rs76230895 | E16: G | F16: C | G16: G | H16: C | I16: -0.0137419 | J16: -0.004 | K16: 0.047061 | L16: 0.041 | M16: FALSE | N16: TRUE | O16: FALSE | P16: ebi-a-GCST90002232 | Q16: 17 | R16: 39934019 | S16: 0.0069 | T16: 0.5815 | U16: 200622 | V16: TRUE | W16: reported | X16: 17 | Y16: 39934019 | Z16: 0.00504609 | AA16: 0.00649995 | AB16: ACLY_ieu-b-107 | AC16: TRUE | AD16: reported | AE16: 2 | AF16: 1 | AG16: TRUE | AH16: =(Table5[[#This Row],[beta.exposure]]/Table5[[#This Row],[se.exposure]])^2 -> 7.416236715
A17: ACLY | B17: apolipoprotein A-I | C17: Fasting glucose | D17: rs78463825 | E17: G | F17: A | G17: G | H17: A | I17: -0.00311573 | J17: -0.0124 | K17: 0.019318 | L17: 0.013 | M17: FALSE | N17: FALSE | O17: FALSE | P17: ebi-a-GCST90002232 | Q17: 17 | R17: 40164055 | S17: 0.0129 | T17: 0.3512 | U17: 200622 | V17: TRUE | W17: reported | X17: 17 | Y17: 40164055 | Z17: 0.00727112 | AA17: 0.67 | AB17: ACLY_ieu-b-107 | AC17: TRUE | AD17: reported | AE17: 2 | AF17: 1 | AG17: TRUE | AH17: =(Table5[[#This Row],[beta.exposure]]/Table5[[#This Row],[se.exposure]])^2 -> 0.183618742
A18: ACLY | B18: apolipoprotein A-I | C18: Fasting glucose | D18: rs79853117 | E18: A | F18: T | G18: A | H18: T | I18: -0.0187578 | J18: -0.0048 | K18: 0.01394 | L18: 0.017 | M18: FALSE | N18: TRUE | O18: FALSE | P18: ebi-a-GCST90002232 | Q18: 17 | R18: 39993814 | S18: 0.0145 | T18: 0.6859 | U18: 200622 | V18: TRUE | W18: reported | X18: 17 | Y18: 39993814 | Z18: 0.00857901 | AA18: 0.0290001 | AB18: ACLY_ieu-b-107 | AC18: TRUE | AD18: reported | AE18: 2 | AF18: 1 | AG18: TRUE | AH18: =(Table5[[#This Row],[beta.exposure]]/Table5[[#This Row],[se.exposure]])^2 -> 4.780677569
A19: ACLY | B19: apolipoprotein A-I | C19: Fasting insulin | D19: rs140050646 | E19: T | F19: C | G19: T | H19: C | I19: 0.00560393 | J19: -0.0114 | K19: 0.011949 | L19: 0.013 | M19: FALSE | N19: FALSE | O19: FALSE | P19: ebi-a-GCST90002238 | Q19: 17 | R19: 40061836 | S19: 0.0142 | T19: 0.3929 | U19: 151013 | V19: TRUE | W19: reported | X19: 17 | Y19: 40061836 | Z19: 0.0094989 | AA19: 0.56 | AB19: ACLY_ieu-b-107 | AC19: TRUE | AD19: reported | AE19: 2 | AF19: 1 | AG19: TRUE | AH19: =(Table5[[#This Row],[beta.exposure]]/Table5[[#This Row],[se.exposure]])^2 -> 0.3480477033
A20: ACLY | B20: apolipoprotein A-I | C20: Fasting insulin | D20: rs182486971 | E20: A | F20: G | G20: A | H20: G | I20: -0.00145092 | J20: 0.0348 | K20: 0.01284 | L20: 0.005 | M20: FALSE | N20: FALSE | O20: FALSE | P20: ebi-a-GCST90002238 | Q20: 17 | R20: 40111019 | S20: 0.0233 | T20: 0.0833508 | U20: 151013 | V20: TRUE | W20: reported | X20: 17 | Y20: 40111019 | Z20: 0.00951556 | AA20: 0.88 | AB20: ACLY_ieu-b-107 | AC20: TRUE | AD20: reported | AE20: 2 | AF20: 1 | AG20: TRUE | AH20: =(Table5[[#This Row],[beta.exposure]]/Table5[[#This Row],[se.exposure]])^2 -> 0.02324974695
A21: ACLY | B21: apolipoprotein A-I | C21: Fasting insulin | D21: rs189618311 | E21: T | F21: C | G21: T | H21: C | I21: -0.0123276 | J21: -0.0168 | K21: 0.018734 | L21: 0.009 | M21: FALSE | N21: FALSE | O21: FALSE | P21: ebi-a-GCST90002238 | Q21: 17 | R21: 39927501 | S21: 0.0224 | T21: 0.6217 | U21: 151013 | V21: TRUE | W21: reported | X21: 17 | Y21: 39927501 | Z21: 0.00793126 | AA21: 0.12 | AB21: ACLY_ieu-b-107 | AC21: TRUE | AD21: reported | AE21: 2 | AF21: 1 | AG21: TRUE | AH21: =(Table5[[#This Row],[beta.exposure]]/Table5[[#This Row],[se.exposure]])^2 -> 2.41586518
A22: ACLY | B22: apolipoprotein A-I | C22: Fasting insulin | D22: rs41283427 | E22: T | F22: C | G22: T | H22: C | I22: 0.0142313 | J22: -0.0051 | K22: 0.04121 | L22: 0.055 | M22: FALSE | N22: FALSE | O22: FALSE | P22: ebi-a-GCST90002238 | Q22: 17 | R22: 39928598 | S22: 0.006 | T22: 0.792 | U22: 151013 | V22: TRUE | W22: reported | X22: 17 | Y22: 39928598 | Z22: 0.00509441 | AA22: 0.00519996 | AB22: ACLY_ieu-b-107 | AC22: TRUE | AD22: reported | AE22: 2 | AF22: 1 | AG22: TRUE | AH22: =(Table5[[#This Row],[beta.exposure]]/Table5[[#This Row],[se.exposure]])^2 -> 7.803714264
A23: ACLY | B23: apolipoprotein A-I | C23: Fasting insulin | D23: rs6503665 | E23: C | F23: G | G23: C | H23: G | I23: 0.0146525 | J23: 0.0012 | K23: 0.915281 | L23: 0.879 | M23: FALSE | N23: TRUE | O23: FALSE | P23: ebi-a-GCST90002238 | Q23: 17 | R23: 39953539 | S23: 0.0036 | T23: 0.9576 | U23: 151013 | V23: TRUE | W23: reported | X23: 17 | Y23: 39953539 | Z23: 0.00359333 | AA23: 4.50E-05 | AB23: ACLY_ieu-b-107 | AC23: TRUE | AD23: reported | AE23: 2 | AF23: 1 | AG23: TRUE | AH23: =(Table5[[#This Row],[beta.exposure]]/Table5[[#This Row],[se.exposure]])^2 -> 16.62758795
A24: ACLY | B24: apolipoprotein A-I | C24: Fasting insulin | D24: rs76230895 | E24: G | F24: C | G24: G | H24: C | I24: -0.0137419 | J24: -0.0059 | K24: 0.047061 | L24: 0.041 | M24: FALSE | N24: TRUE | O24: FALSE | P24: ebi-a-GCST90002238 | Q24: 17 | R24: 39934019 | S24: 0.0078 | T24: 0.605399 | U24: 151013 | V24: TRUE | W24: reported | X24: 17 | Y24: 39934019 | Z24: 0.00504609 | AA24: 0.00649995 | AB24: ACLY_ieu-b-107 | AC24: TRUE | AD24: reported | AE24: 2 | AF24: 1 | AG24: TRUE | AH24: =(Table5[[#This Row],[beta.exposure]]/Table5[[#This Row],[se.exposure]])^2 -> 7.416236715
A25: ACLY | B25: apolipoprotein A-I | C25: Fasting insulin | D25: rs78463825 | E25: G | F25: A | G25: G | H25: A | I25: -0.00311573 | J25: 0.011 | K25: 0.019318 | L25: 0.013 | M25: FALSE | N25: FALSE | O25: FALSE | P25: ebi-a-GCST90002238 | Q25: 17 | R25: 40164055 | S25: 0.0151 | T25: 0.383 | U25: 151013 | V25: TRUE | W25: reported | X25: 17 | Y25: 40164055 | Z25: 0.00727112 | AA25: 0.67 | AB25: ACLY_ieu-b-107 | AC25: TRUE | AD25: reported | AE25: 2 | AF25: 1 | AG25: TRUE | AH25: =(Table5[[#This Row],[beta.exposure]]/Table5[[#This Row],[se.exposure]])^2 -> 0.183618742
A26: ACLY | B26: apolipoprotein A-I | C26: Fasting insulin | D26: rs79853117 | E26: A | F26: T | G26: A | H26: T | I26: -0.0187578 | J26: 0.0395 | K26: 0.01394 | L26: 0.017 | M26: FALSE | N26: TRUE | O26: FALSE | P26: ebi-a-GCST90002238 | Q26: 17 | R26: 39993814 | S26: 0.0188 | T26: 0.0615007 | U26: 151013 | V26: TRUE | W26: reported | X26: 17 | Y26: 39993814 | Z26: 0.00857901 | AA26: 0.0290001 | AB26: ACLY_ieu-b-107 | AC26: TRUE | AD26: reported | AE26: 2 | AF26: 1 | AG26: TRUE | AH26: =(Table5[[#This Row],[beta.exposure]]/Table5[[#This Row],[se.exposure]])^2 -> 4.780677569
A27: ACLY | B27: apolipoprotein A-I | C27: Glycated hemoglobin levels | D27: rs140050646 | E27: T | F27: C | G27: T | H27: C | I27: 0.00560393 | J27: -0.0133 | K27: 0.011949 | L27: 0.013 | M27: FALSE | N27: FALSE | O27: FALSE | P27: ebi-a-GCST90002244 | Q27: 17 | R27: 40061836 | S27: 0.0113 | T27: 0.3585 | U27: 146806 | V27: TRUE | W27: reported | X27: 17 | Y27: 40061836 | Z27: 0.0094989 | AA27: 0.56 | AB27: ACLY_ieu-b-107 | AC27: TRUE | AD27: reported | AE27: 2 | AF27: 1 | AG27: TRUE | AH27: =(Table5[[#This Row],[beta.exposure]]/Table5[[#This Row],[se.exposure]])^2 -> 0.3480477033
A28: ACLY | B28: apolipoprotein A-I | C28: Glycated hemoglobin levels | D28: rs182486971 | E28: A | F28: G | G28: A | H28: G | I28: -0.00145092 | J28: 0.0588 | K28: 0.01284 | L28: 0.005 | M28: FALSE | N28: FALSE | O28: FALSE | P28: ebi-a-GCST90002244 | Q28: 17 | R28: 40111019 | S28: 0.0184 | T28: 0.1275 | U28: 146806 | V28: TRUE | W28: reported | X28: 17 | Y28: 40111019 | Z28: 0.00951556 | AA28: 0.88 | AB28: ACLY_ieu-b-107 | AC28: TRUE | AD28: reported | AE28: 2 | AF28: 1 | AG28: TRUE | AH28: =(Table5[[#This Row],[beta.exposure]]/Table5[[#This Row],[se.exposure]])^2 -> 0.02324974695
A29: ACLY | B29: apolipoprotein A-I | C29: Glycated hemoglobin levels | D29: rs189618311 | E29: T | F29: C | G29: T | H29: C | I29: -0.0123276 | J29: -7.00E-04 | K29: 0.018734 | L29: 0.009 | M29: FALSE | N29: FALSE | O29: FALSE | P29: ebi-a-GCST90002244 | Q29: 17 | R29: 39927501 | S29: 0.019 | T29: 0.8851 | U29: 146806 | V29: TRUE | W29: reported | X29: 17 | Y29: 39927501 | Z29: 0.00793126 | AA29: 0.12 | AB29: ACLY_ieu-b-107 | AC29: TRUE | AD29: reported | AE29: 2 | AF29: 1 | AG29: TRUE | AH29: =(Table5[[#This Row],[beta.exposure]]/Table5[[#This Row],[se.exposure]])^2 -> 2.41586518
A30: ACLY | B30: apolipoprotein A-I | C30: Glycated hemoglobin levels | D30: rs41283427 | E30: T | F30: C | G30: T | H30: C | I30: 0.0142313 | J30: -0.0015 | K30: 0.04121 | L30: 0.055 | M30: FALSE | N30: FALSE | O30: FALSE | P30: ebi-a-GCST90002244 | Q30: 17 | R30: 39928598 | S30: 0.004 | T30: 0.6842 | U30: 146806 | V30: TRUE | W30: reported | X30: 17 | Y30: 39928598 | Z30: 0.00509441 | AA30: 0.00519996 | AB30: ACLY_ieu-b-107 | AC30: TRUE | AD30: reported | AE30: 2 | AF30: 1 | AG30: TRUE | AH30: =(Table5[[#This Row],[beta.exposure]]/Table5[[#This Row],[se.exposure]])^2 -> 7.803714264
A31: ACLY | B31: apolipoprotein A-I | C31: Glycated hemoglobin levels | D31: rs6503665 | E31: C | F31: G | G31: C | H31: G | I31: 0.0146525 | J31: 0.0027 | K31: 0.915281 | L31: 0.879 | M31: FALSE | N31: TRUE | O31: FALSE | P31: ebi-a-GCST90002244 | Q31: 17 | R31: 39953539 | S31: 0.0024 | T31: 0.2975 | U31: 146806 | V31: TRUE | W31: reported | X31: 17 | Y31: 39953539 | Z31: 0.00359333 | AA31: 4.50E-05 | AB31: ACLY_ieu-b-107 | AC31: TRUE | AD31: reported | AE31: 2 | AF31: 1 | AG31: TRUE | AH31: =(Table5[[#This Row],[beta.exposure]]/Table5[[#This Row],[se.exposure]])^2 -> 16.62758795
A32: ACLY | B32: apolipoprotein A-I | C32: Glycated hemoglobin levels | D32: rs76230895 | E32: G | F32: C | G32: G | H32: C | I32: -0.0137419 | J32: 0.0058 | K32: 0.047061 | L32: 0.041 | M32: FALSE | N32: TRUE | O32: FALSE | P32: ebi-a-GCST90002244 | Q32: 17 | R32: 39934019 | S32: 0.0059 | T32: 0.3476 | U32: 146806 | V32: TRUE | W32: reported | X32: 17 | Y32: 39934019 | Z32: 0.00504609 | AA32: 0.00649995 | AB32: ACLY_ieu-b-107 | AC32: TRUE | AD32: reported | AE32: 2 | AF32: 1 | AG32: TRUE | AH32: =(Table5[[#This Row],[beta.exposure]]/Table5[[#This Row],[se.exposure]])^2 -> 7.416236715
A33: ACLY | B33: apolipoprotein A-I | C33: Glycated hemoglobin levels | D33: rs78463825 | E33: G | F33: A | G33: G | H33: A | I33: -0.00311573 | J33: 0.0031 | K33: 0.019318 | L33: 0.013 | M33: FALSE | N33: FALSE | O33: FALSE | P33: ebi-a-GCST90002244 | Q33: 17 | R33: 40164055 | S33: 0.0111 | T33: 0.7121 | U33: 146806 | V33: TRUE | W33: reported | X33: 17 | Y33: 40164055 | Z33: 0.00727112 | AA33: 0.67 | AB33: ACLY_ieu-b-107 | AC33: TRUE | AD33: reported | AE33: 2 | AF33: 1 | AG33: TRUE | AH33: =(Table5[[#This Row],[beta.exposure]]/Table5[[#This Row],[se.exposure]])^2 -> 0.183618742
A34: ACLY | B34: apolipoprotein A-I | C34: Glycated hemoglobin levels | D34: rs79853117 | E34: A | F34: T | G34: A | H34: T | I34: -0.0187578 | J34: -0.021 | K34: 0.01394 | L34: 0.017 | M34: FALSE | N34: TRUE | O34: FALSE | P34: ebi-a-GCST90002244 | Q34: 17 | R34: 39993814 | S34: 0.0132 | T34: 0.0856801 | U34: 146806 | V34: TRUE | W34: reported | X34: 17 | Y34: 39993814 | Z34: 0.00857901 | AA34: 0.0290001 | AB34: ACLY_ieu-b-107 | AC34: TRUE | AD34: reported | AE34: 2 | AF34: 1 | AG34: TRUE | AH34: =(Table5[[#This Row],[beta.exposure]]/Table5[[#This Row],[se.exposure]])^2 -> 4.780677569
A35: ACLY | B35: apolipoprotein A-I | C35: HOMA-B | D35: rs11079013 | E35: C | F35: A | G35: C | H35: A | I35: 0.014253 | J35: 0.0033 | K35: 0.914285 | M35: FALSE | N35: FALSE | O35: FALSE | P35: ieu-b-117 | Q35: 17 | R35: 39947206 | S35: 0.0058 | T35: 0.5651 | U35: 36466 | V35: TRUE | W35: reported | X35: 17 | Y35: 39947206 | Z35: 0.00358618 | AA35: 7.10E-05 | AB35: ACLY_ieu-b-107 | AC35: TRUE | AD35: reported | AE35: 2 | AF35: 1 | AG35: TRUE | AH35: =(Table5[[#This Row],[beta.exposure]]/Table5[[#This Row],[se.exposure]])^2 -> 15.79604644
A36: ACLY | B36: apolipoprotein A-I | C36: HOMA-IR | D36: rs11079013 | E36: C | F36: A | G36: C | H36: A | I36: 0.014253 | J36: 0.012 | K36: 0.914285 | M36: FALSE | N36: FALSE | O36: FALSE | P36: ieu-b-118 | Q36: 17 | R36: 39947206 | S36: 0.0071 | T36: 0.0871305 | U36: 37037 | V36: TRUE | W36: reported | X36: 17 | Y36: 39947206 | Z36: 0.00358618 | AA36: 7.10E-05 | AB36: ACLY_ieu-b-107 | AC36: TRUE | AD36: reported | AE36: 2 | AF36: 1 | AG36: TRUE | AH36: =(Table5[[#This Row],[beta.exposure]]/Table5[[#This Row],[se.exposure]])^2 -> 15.79604644
A37: ACLY | B37: apolipoprotein A-I | C37: random glucose | D37: rs140050646 | E37: T | F37: C | G37: T | H37: C | I37: 0.00560393 | J37: -0.00329722 | K37: 0.011949 | L37: 0.012 | M37: FALSE | N37: FALSE | O37: FALSE | P37: GCST90271557 | Q37: 17 | R37: 40061836 | S37: 0.00145692 | T37: 0.02363 | U37: 380422 | V37: TRUE | W37: reported | X37: 17 | Y37: 40061836 | Z37: 0.0094989 | AA37: 0.56 | AB37: ACLY_ieu-b-107 | AC37: TRUE | AD37: reported | AE37: 2 | AF37: 1 | AG37: TRUE | AH37: =(Table5[[#This Row],[beta.exposure]]/Table5[[#This Row],[se.exposure]])^2 -> 0.3480477033
A38: ACLY | B38: apolipoprotein A-I | C38: random glucose | D38: rs182486971 | E38: A | F38: G | G38: A | H38: G | I38: -0.00145092 | J38: 0.001030059471 | K38: 0.01284 | L38: 0.013 | M38: FALSE | N38: FALSE | O38: FALSE | P38: GCST90271557 | Q38: 17 | R38: 40111019 | S38: 0.001425742829 | T38: 0.47 | U38: 410824 | V38: TRUE | W38: reported | X38: 17 | Y38: 40111019 | Z38: 0.00951556 | AA38: 0.88 | AB38: ACLY_ieu-b-107 | AC38: TRUE | AD38: reported | AE38: 2 | AF38: 1 | AG38: TRUE | AH38: =(Table5[[#This Row],[beta.exposure]]/Table5[[#This Row],[se.exposure]])^2 -> 0.02324974695
A39: ACLY | B39: apolipoprotein A-I | C39: random glucose | D39: rs189618311 | E39: T | F39: C | G39: T | H39: C | I39: -0.0123276 | J39: -0.00026193363 | K39: 0.018734 | L39: 0.0188 | M39: FALSE | N39: FALSE | O39: FALSE | P39: GCST90271557 | Q39: 17 | R39: 39927501 | S39: 0.00120193073 | T39: 0.8275 | U39: 397405 | V39: TRUE | W39: reported | X39: 17 | Y39: 39927501 | Z39: 0.00793126 | AA39: 0.12 | AB39: ACLY_ieu-b-107 | AC39: TRUE | AD39: reported | AE39: 2 | AF39: 1 | AG39: TRUE | AH39: =(Table5[[#This Row],[beta.exposure]]/Table5[[#This Row],[se.exposure]])^2 -> 2.41586518
A40: ACLY | B40: apolipoprotein A-I | C40: random glucose | D40: rs41283427 | E40: T | F40: C | G40: T | H40: C | I40: 0.0142313 | J40: 0.000329373833 | K40: 0.04121 | L40: 0.0413 | M40: FALSE | N40: FALSE | O40: FALSE | P40: GCST90271557 | Q40: 17 | R40: 39928598 | S40: 0.000766631449 | T40: 0.6675 | U40: 410824 | V40: TRUE | W40: reported | X40: 17 | Y40: 39928598 | Z40: 0.00509441 | AA40: 0.00519996 | AB40: ACLY_ieu-b-107 | AC40: TRUE | AD40: reported | AE40: 2 | AF40: 1 | AG40: TRUE | AH40: =(Table5[[#This Row],[beta.exposure]]/Table5[[#This Row],[se.exposure]])^2 -> 7.803714264
A41: ACLY | B41: apolipoprotein A-I | C41: random glucose | D41: rs6503665 | E41: C | F41: G | G41: C | H41: G | I41: 0.0146525 | J41: 0.00097074797 | K41: 0.915281 | L41: 0.9153 | M41: FALSE | N41: TRUE | O41: FALSE | P41: GCST90271557 | Q41: 17 | R41: 39953539 | S41: 0.000544372839 | T41: 0.07455 | U41: 401485 | V41: TRUE | W41: reported | X41: 17 | Y41: 39953539 | Z41: 0.00359333 | AA41: 4.50E-05 | AB41: ACLY_ieu-b-107 | AC41: TRUE | AD41: reported | AE41: 2 | AF41: 1 | AG41: TRUE | AH41: =(Table5[[#This Row],[beta.exposure]]/Table5[[#This Row],[se.exposure]])^2 -> 16.62758795
A42: ACLY | B42: apolipoprotein A-I | C42: random glucose | D42: rs76230895 | E42: G | F42: C | G42: G | H42: C | I42: -0.0137419 | J42: 0.001582209375 | K42: 0.047061 | L42: 0.0472 | M42: FALSE | N42: TRUE | O42: FALSE | P42: GCST90271557 | Q42: 17 | R42: 39934019 | S42: 0.00076819161 | T42: 0.03943 | U42: 393841 | V42: TRUE | W42: reported | X42: 17 | Y42: 39934019 | Z42: 0.00504609 | AA42: 0.00649995 | AB42: ACLY_ieu-b-107 | AC42: TRUE | AD42: reported | AE42: 2 | AF42: 1 | AG42: TRUE | AH42: =(Table5[[#This Row],[beta.exposure]]/Table5[[#This Row],[se.exposure]])^2 -> 7.416236715
A43: ACLY | B43: apolipoprotein A-I | C43: random glucose | D43: rs78463825 | E43: G | F43: A | G43: G | H43: A | I43: -0.00311573 | J43: -0.000697009208 | K43: 0.019318 | L43: 0.0193 | M43: FALSE | N43: FALSE | O43: FALSE | P43: GCST90271557 | Q43: 17 | R43: 40164055 | S43: 0.001109684987 | T43: 0.5299 | U43: 393841 | V43: TRUE | W43: reported | X43: 17 | Y43: 40164055 | Z43: 0.00727112 | AA43: 0.67 | AB43: ACLY_ieu-b-107 | AC43: TRUE | AD43: reported | AE43: 2 | AF43: 1 | AG43: TRUE | AH43: =(Table5[[#This Row],[beta.exposure]]/Table5[[#This Row],[se.exposure]])^2 -> 0.183618742
A44: ACLY | B44: apolipoprotein A-I | C44: random glucose | D44: rs79853117 | E44: A | F44: T | G44: A | H44: T | I44: -0.0187578 | J44: 0.000389199263 | K44: 0.01394 | L44: 0.014 | M44: FALSE | N44: TRUE | O44: FALSE | P44: GCST90271557 | Q44: 17 | R44: 39993814 | S44: 0.001301662552 | T44: 0.7649 | U44: 397405 | V44: TRUE | W44: reported | X44: 17 | Y44: 39993814 | Z44: 0.00857901 | AA44: 0.0290001 | AB44: ACLY_ieu-b-107 | AC44: TRUE | AD44: reported | AE44: 2 | AF44: 1 | AG44: TRUE | AH44: =(Table5[[#This Row],[beta.exposure]]/Table5[[#This Row],[se.exposure]])^2 -> 4.780677569
A45: ACLY | B45: apolipoprotein A-I | C45: T2D GWAS DIAMANTE | D45: rs140050646 | E45: T | F45: C | G45: T | H45: C | I45: 0.00560393 | J45: 0.0022 | K45: 0.011949 | L45: 0.0108 | M45: FALSE | N45: FALSE | O45: FALSE | P45: kPjrgy | Q45: 17 | R45: 40061836 | S45: 0.0357 | T45: 0.9509 | U45: 251739.5 | V45: TRUE | W45: reported | X45: 17 | Y45: 40061836 | Z45: 0.0094989 | AA45: 0.56 | AB45: ACLY_ieu-b-107 | AC45: TRUE | AD45: reported | AE45: 2 | AF45: 1 | AG45: TRUE | AH45: =(Table5[[#This Row],[beta.exposure]]/Table5[[#This Row],[se.exposure]])^2 -> 0.3480477033
A46: ACLY | B46: apolipoprotein A-I | C46: T2D GWAS DIAMANTE | D46: rs182486971 | E46: A | F46: G | G46: A | H46: G | I46: -0.00145092 | J46: -0.0185 | K46: 0.01284 | L46: 0.012 | M46: FALSE | N46: FALSE | O46: FALSE | P46: kPjrgy | Q46: 17 | R46: 40111019 | S46: 0.0347 | T46: 0.5935 | U46: 251739.5 | V46: TRUE | W46: reported | X46: 17 | Y46: 40111019 | Z46: 0.00951556 | AA46: 0.88 | AB46: ACLY_ieu-b-107 | AC46: TRUE | AD46: reported | AE46: 2 | AF46: 1 | AG46: TRUE | AH46: =(Table5[[#This Row],[beta.exposure]]/Table5[[#This Row],[se.exposure]])^2 -> 0.02324974695
A47: ACLY | B47: apolipoprotein A-I | C47: T2D GWAS DIAMANTE | D47: rs189618311 | E47: T | F47: C | G47: T | H47: C | I47: -0.0123276 | J47: 0.0167 | K47: 0.018734 | L47: 0.0202 | M47: FALSE | N47: FALSE | O47: FALSE | P47: kPjrgy | Q47: 17 | R47: 39927501 | S47: 0.0265 | T47: 0.5284 | U47: 251739.5 | V47: TRUE | W47: reported | X47: 17 | Y47: 39927501 | Z47: 0.00793126 | AA47: 0.12 | AB47: ACLY_ieu-b-107 | AC47: TRUE | AD47: reported | AE47: 2 | AF47: 1 | AG47: TRUE | AH47: =(Table5[[#This Row],[beta.exposure]]/Table5[[#This Row],[se.exposure]])^2 -> 2.41586518
A48: ACLY | B48: apolipoprotein A-I | C48: T2D GWAS DIAMANTE | D48: rs41283427 | E48: T | F48: C | G48: T | H48: C | I48: 0.0142313 | J48: 0.0116 | K48: 0.04121 | L48: 0.0445 | M48: FALSE | N48: FALSE | O48: FALSE | P48: kPjrgy | Q48: 17 | R48: 39928598 | S48: 0.0172 | T48: 0.4993 | U48: 251739.5 | V48: TRUE | W48: reported | X48: 17 | Y48: 39928598 | Z48: 0.00509441 | AA48: 0.00519996 | AB48: ACLY_ieu-b-107 | AC48: TRUE | AD48: reported | AE48: 2 | AF48: 1 | AG48: TRUE | AH48: =(Table5[[#This Row],[beta.exposure]]/Table5[[#This Row],[se.exposure]])^2 -> 7.803714264
A49: ACLY | B49: apolipoprotein A-I | C49: T2D GWAS DIAMANTE | D49: rs6503665 | E49: C | F49: G | G49: C | H49: G | I49: 0.0146525 | J49: -0.0125 | K49: 0.915281 | L49: 0.9082 | M49: FALSE | N49: TRUE | O49: FALSE | P49: kPjrgy | Q49: 17 | R49: 39953539 | S49: 0.0113 | T49: 0.269 | U49: 251739.5 | V49: TRUE | W49: reported | X49: 17 | Y49: 39953539 | Z49: 0.00359333 | AA49: 4.50E-05 | AB49: ACLY_ieu-b-107 | AC49: TRUE | AD49: reported | AE49: 2 | AF49: 1 | AG49: TRUE | AH49: =(Table5[[#This Row],[beta.exposure]]/Table5[[#This Row],[se.exposure]])^2 -> 16.62758795
A50: ACLY | B50: apolipoprotein A-I | C50: T2D GWAS DIAMANTE | D50: rs76230895 | E50: G | F50: C | G50: G | H50: C | I50: -0.0137419 | J50: -0.001 | K50: 0.047061 | L50: 0.044 | M50: FALSE | N50: TRUE | O50: FALSE | P50: kPjrgy | Q50: 17 | R50: 39934019 | S50: 0.018 | T50: 0.9557 | U50: 251739.5 | V50: TRUE | W50: reported | X50: 17 | Y50: 39934019 | Z50: 0.00504609 | AA50: 0.00649995 | AB50: ACLY_ieu-b-107 | AC50: TRUE | AD50: reported | AE50: 2 | AF50: 1 | AG50: TRUE | AH50: =(Table5[[#This Row],[beta.exposure]]/Table5[[#This Row],[se.exposure]])^2 -> 7.416236715
A51: ACLY | B51: apolipoprotein A-I | C51: T2D GWAS DIAMANTE | D51: rs78463825 | E51: G | F51: A | G51: G | H51: A | I51: -0.00311573 | J51: 0.0234 | K51: 0.019318 | L51: 0.0172 | M51: FALSE | N51: FALSE | O51: FALSE | P51: kPjrgy | Q51: 17 | R51: 40164055 | S51: 0.0281 | T51: 0.4043 | U51: 251739.5 | V51: TRUE | W51: reported | X51: 17 | Y51: 40164055 | Z51: 0.00727112 | AA51: 0.67 | AB51: ACLY_ieu-b-107 | AC51: TRUE | AD51: reported | AE51: 2 | AF51: 1 | AG51: TRUE | AH51: =(Table5[[#This Row],[beta.exposure]]/Table5[[#This Row],[se.exposure]])^2 -> 0.183618742
A52: ACLY | B52: apolipoprotein A-I | C52: T2D GWAS DIAMANTE | D52: rs79853117 | E52: A | F52: T | G52: A | H52: T | I52: -0.0187578 | J52: -0.0423 | K52: 0.01394 | L52: 0.0189 | M52: FALSE | N52: TRUE | O52: FALSE | P52: kPjrgy | Q52: 17 | R52: 39993814 | S52: 0.0274 | T52: 0.1231 | U52: 251739.5 | V52: TRUE | W52: reported | X52: 17 | Y52: 39993814 | Z52: 0.00857901 | AA52: 0.0290001 | AB52: ACLY_ieu-b-107 | AC52: TRUE | AD52: reported | AE52: 2 | AF52: 1 | AG52: TRUE | AH52: =(Table5[[#This Row],[beta.exposure]]/Table5[[#This Row],[se.exposure]])^2 -> 4.780677569
A53: ACLY | B53: apolipoprotein A-I | C53: T2D_FinnGen_r10 | D53: rs140050646 | E53: T | F53: C | G53: T | H53: C | I53: 0.00560393 | J53: 0.0682196 | K53: 0.011949 | L53: 0.0115893 | M53: FALSE | N53: FALSE | O53: FALSE | P53: aeAC7B | Q53: 17 | R53: 40061836 | S53: 0.031305 | T53: 0.0293177 | U53: 109000.14 | V53: TRUE | W53: reported | X53: 17 | Y53: 40061836 | Z53: 0.0094989 | AA53: 0.56 | AB53: ACLY_ieu-b-107 | AC53: TRUE | AD53: reported | AE53: 2 | AF53: 1 | AG53: TRUE | AH53: =(Table5[[#This Row],[beta.exposure]]/Table5[[#This Row],[se.exposure]])^2 -> 0.3480477033
A54: ACLY | B54: apolipoprotein A-I | C54: T2D_FinnGen_r10 | D54: rs182486971 | E54: A | F54: G | G54: A | H54: G | I54: -0.00145092 | J54: -0.0297508 | K54: 0.01284 | L54: 0.0116678 | M54: FALSE | N54: FALSE | O54: FALSE | P54: aeAC7B | Q54: 17 | R54: 40111019 | S54: 0.030635 | T54: 0.331481 | U54: 109000.14 | V54: TRUE | W54: reported | X54: 17 | Y54: 40111019 | Z54: 0.00951556 | AA54: 0.88 | AB54: ACLY_ieu-b-107 | AC54: TRUE | AD54: reported | AE54: 2 | AF54: 1 | AG54: TRUE | AH54: =(Table5[[#This Row],[beta.exposure]]/Table5[[#This Row],[se.exposure]])^2 -> 0.02324974695
A55: ACLY | B55: apolipoprotein A-I | C55: T2D_FinnGen_r10 | D55: rs189618311 | E55: T | F55: C | G55: T | H55: C | I55: -0.0123276 | J55: -0.00546858 | K55: 0.018734 | L55: 0.0220387 | M55: FALSE | N55: FALSE | O55: FALSE | P55: aeAC7B | Q55: 17 | R55: 39927501 | S55: 0.0227447 | T55: 0.809995 | U55: 109000.14 | V55: TRUE | W55: reported | X55: 17 | Y55: 39927501 | Z55: 0.00793126 | AA55: 0.12 | AB55: ACLY_ieu-b-107 | AC55: TRUE | AD55: reported | AE55: 2 | AF55: 1 | AG55: TRUE | AH55: =(Table5[[#This Row],[beta.exposure]]/Table5[[#This Row],[se.exposure]])^2 -> 2.41586518
A56: ACLY | B56: apolipoprotein A-I | C56: T2D_FinnGen_r10 | D56: rs41283427 | E56: T | F56: C | G56: T | H56: C | I56: 0.0142313 | J56: -0.00335084 | K56: 0.04121 | L56: 0.0625579 | M56: FALSE | N56: FALSE | O56: FALSE | P56: aeAC7B | Q56: 17 | R56: 39928598 | S56: 0.0136029 | T56: 0.805424 | U56: 109000.14 | V56: TRUE | W56: reported | X56: 17 | Y56: 39928598 | Z56: 0.00509441 | AA56: 0.00519996 | AB56: ACLY_ieu-b-107 | AC56: TRUE | AD56: reported | AE56: 2 | AF56: 1 | AG56: TRUE | AH56: =(Table5[[#This Row],[beta.exposure]]/Table5[[#This Row],[se.exposure]])^2 -> 7.803714264
A57: ACLY | B57: apolipoprotein A-I | C57: T2D_FinnGen_r10 | D57: rs6503665 | E57: C | F57: G | G57: C | H57: G | I57: 0.0146525 | J57: 0.0122399 | K57: 0.915281 | L57: 0.90759 | M57: FALSE | N57: TRUE | O57: FALSE | P57: aeAC7B | Q57: 17 | R57: 39953539 | S57: 0.0113609 | T57: 0.281315 | U57: 109000.14 | V57: TRUE | W57: reported | X57: 17 | Y57: 39953539 | Z57: 0.00359333 | AA57: 4.50E-05 | AB57: ACLY_ieu-b-107 | AC57: TRUE | AD57: reported | AE57: 2 | AF57: 1 | AG57: TRUE | AH57: =(Table5[[#This Row],[beta.exposure]]/Table5[[#This Row],[se.exposure]])^2 -> 16.62758795
A58: ACLY | B58: apolipoprotein A-I | C58: T2D_FinnGen_r10 | D58: rs76230895 | E58: G | F58: C | G58: G | H58: C | I58: -0.0137419 | J58: 0.00298754 | K58: 0.047061 | L58: 0.0251925 | M58: FALSE | N58: TRUE | O58: FALSE | P58: aeAC7B | Q58: 17 | R58: 39934019 | S58: 0.0213393 | T58: 0.888659 | U58: 109000.14 | V58: TRUE | W58: reported | X58: 17 | Y58: 39934019 | Z58: 0.00504609 | AA58: 0.00649995 | AB58: ACLY_ieu-b-107 | AC58: TRUE | AD58: reported | AE58: 2 | AF58: 1 | AG58: TRUE | AH58: =(Table5[[#This Row],[beta.exposure]]/Table5[[#This Row],[se.exposure]])^2 -> 7.416236715
A59: ACLY | B59: apolipoprotein A-I | C59: T2D_FinnGen_r10 | D59: rs78463825 | E59: G | F59: A | G59: G | H59: A | I59: -0.00311573 | J59: -0.0896016 | K59: 0.019318 | L59: 0.00777361 | M59: FALSE | N59: FALSE | O59: FALSE | P59: aeAC7B | Q59: 17 | R59: 40164055 | S59: 0.0375101 | T59: 0.0169064 | U59: 109000.14 | V59: TRUE | W59: reported | X59: 17 | Y59: 40164055 | Z59: 0.00727112 | AA59: 0.67 | AB59: ACLY_ieu-b-107 | AC59: TRUE | AD59: reported | AE59: 2 | AF59: 1 | AG59: TRUE | AH59: =(Table5[[#This Row],[beta.exposure]]/Table5[[#This Row],[se.exposure]])^2 -> 0.183618742
A60: ACLY | B60: apolipoprotein A-I | C60: T2D_FinnGen_r10 | D60: rs79853117 | E60: A | F60: T | G60: A | H60: T | I60: -0.0187578 | J60: 0.000573154 | K60: 0.01394 | L60: 0.0303247 | M60: FALSE | N60: TRUE | O60: FALSE | P60: aeAC7B | Q60: 17 | R60: 39993814 | S60: 0.01919 | T60: 0.976173 | U60: 109000.14 | V60: TRUE | W60: reported | X60: 17 | Y60: 39993814 | Z60: 0.00857901 | AA60: 0.0290001 | AB60: ACLY_ieu-b-107 | AC60: TRUE | AD60: reported | AE60: 2 | AF60: 1 | AG60: TRUE | AH60: =(Table5[[#This Row],[beta.exposure]]/Table5[[#This Row],[se.exposure]])^2 -> 4.780677569
A61: ACLY | B61: apolipoprotein A-I | C61: T2Di UKB+LL | D61: rs140050646 | E61: T | F61: C | G61: T | H61: C | I61: 0.00560393 | J61: 0.0063 | K61: 0.011949 | L61: 0.0114 | M61: FALSE | N61: FALSE | O61: FALSE | P61: rWpnrP | Q61: 17 | R61: 40061836 | S61: 0.0535 | T61: 0.9069 | U61: 509941 | V61: TRUE | W61: reported | X61: 17 | Y61: 40061836 | Z61: 0.0094989 | AA61: 0.56 | AB61: ACLY_ieu-b-107 | AC61: TRUE | AD61: reported | AE61: 2 | AF61: 1 | AG61: TRUE | AH61: =(Table5[[#This Row],[beta.exposure]]/Table5[[#This Row],[se.exposure]])^2 -> 0.3480477033
A62: ACLY | B62: apolipoprotein A-I | C62: T2Di UKB+LL | D62: rs151019316 | E62: A | F62: G | G62: A | H62: G | I62: 0.0121718 | J62: 0.0299 | K62: 0.02087 | L62: 0.0201 | M62: FALSE | N62: FALSE | O62: FALSE | P62: rWpnrP | Q62: 17 | R62: 39951162 | S62: 0.0381 | T62: 0.4327 | U62: 462289 | V62: TRUE | W62: reported | X62: 17 | Y62: 39951162 | Z62: 0.00703366 | AA62: 0.0840001 | AB62: ACLY_ieu-b-107 | AC62: TRUE | AD62: reported | AE62: 2 | AF62: 1 | AG62: TRUE | AH62: =(Table5[[#This Row],[beta.exposure]]/Table5[[#This Row],[se.exposure]])^2 -> 2.994655527
A63: ACLY | B63: apolipoprotein A-I | C63: T2Di UKB+LL | D63: rs189618311 | E63: T | F63: C | G63: T | H63: C | I63: -0.0123276 | J63: -0.0365 | K63: 0.018734 | L63: 0.0183 | M63: FALSE | N63: FALSE | O63: FALSE | P63: rWpnrP | Q63: 17 | R63: 39927501 | S63: 0.0471 | T63: 0.4378 | U63: 502723 | V63: TRUE | W63: reported | X63: 17 | Y63: 39927501 | Z63: 0.00793126 | AA63: 0.12 | AB63: ACLY_ieu-b-107 | AC63: TRUE | AD63: reported | AE63: 2 | AF63: 1 | AG63: TRUE | AH63: =(Table5[[#This Row],[beta.exposure]]/Table5[[#This Row],[se.exposure]])^2 -> 2.41586518
A64: ACLY | B64: apolipoprotein A-I | C64: T2Di UKB+LL | D64: rs41283427 | E64: T | F64: C | G64: T | H64: C | I64: 0.0142313 | J64: 0.0133 | K64: 0.04121 | L64: 0.0408 | M64: FALSE | N64: FALSE | O64: FALSE | P64: rWpnrP | Q64: 17 | R64: 39928598 | S64: 0.0274 | T64: 0.6279 | U64: 504859 | V64: TRUE | W64: reported | X64: 17 | Y64: 39928598 | Z64: 0.00509441 | AA64: 0.00519996 | AB64: ACLY_ieu-b-107 | AC64: TRUE | AD64: reported | AE64: 2 | AF64: 1 | AG64: TRUE | AH64: =(Table5[[#This Row],[beta.exposure]]/Table5[[#This Row],[se.exposure]])^2 -> 7.803714264
A65: ACLY | B65: apolipoprotein A-I | C65: T2Di UKB+LL | D65: rs6503665 | E65: C | F65: G | G65: C | H65: G | I65: 0.0146525 | J65: -0.0083 | K65: 0.915281 | L65: 0.9147 | M65: FALSE | N65: TRUE | O65: FALSE | P65: rWpnrP | Q65: 17 | R65: 39953539 | S65: 0.0189 | T65: 0.6599 | U65: 455664 | V65: TRUE | W65: reported | X65: 17 | Y65: 39953539 | Z65: 0.00359333 | AA65: 4.50E-05 | AB65: ACLY_ieu-b-107 | AC65: TRUE | AD65: reported | AE65: 2 | AF65: 1 | AG65: TRUE | AH65: =(Table5[[#This Row],[beta.exposure]]/Table5[[#This Row],[se.exposure]])^2 -> 16.62758795
A66: ACLY | B66: apolipoprotein A-I | C66: T2Di UKB+LL | D66: rs76230895 | E66: G | F66: C | G66: G | H66: C | I66: -0.0137419 | J66: 0.0201 | K66: 0.047061 | L66: 0.0454 | M66: FALSE | N66: TRUE | O66: FALSE | P66: rWpnrP | Q66: 17 | R66: 39934019 | S66: 0.0298 | T66: 0.5004 | U66: 439722 | V66: TRUE | W66: reported | X66: 17 | Y66: 39934019 | Z66: 0.00504609 | AA66: 0.00649995 | AB66: ACLY_ieu-b-107 | AC66: TRUE | AD66: reported | AE66: 2 | AF66: 1 | AG66: TRUE | AH66: =(Table5[[#This Row],[beta.exposure]]/Table5[[#This Row],[se.exposure]])^2 -> 7.416236715
A67: ACLY | B67: apolipoprotein A-I | C67: T2Di UKB+LL | D67: rs78463825 | E67: G | F67: A | G67: G | H67: A | I67: -0.00311573 | J67: -0.0513 | K67: 0.019318 | L67: 0.0185 | M67: FALSE | N67: FALSE | O67: FALSE | P67: rWpnrP | Q67: 17 | R67: 40164055 | S67: 0.0408 | T67: 0.208 | U67: 463457 | V67: TRUE | W67: reported | X67: 17 | Y67: 40164055 | Z67: 0.00727112 | AA67: 0.67 | AB67: ACLY_ieu-b-107 | AC67: TRUE | AD67: reported | AE67: 2 | AF67: 1 | AG67: TRUE | AH67: =(Table5[[#This Row],[beta.exposure]]/Table5[[#This Row],[se.exposure]])^2 -> 0.183618742
A68: ACLY | B68: apolipoprotein A-I | C68: Two-hour glucose | D68: rs140050646 | E68: T | F68: C | G68: T | H68: C | I68: 0.00560393 | J68: -0.0679 | K68: 0.011949 | L68: 0.013 | M68: FALSE | N68: FALSE | O68: FALSE | P68: ebi-a-GCST90002227 | Q68: 17 | R68: 40061836 | S68: 0.0578 | T68: 0.5098 | U68: 63396 | V68: TRUE | W68: reported | X68: 17 | Y68: 40061836 | Z68: 0.0094989 | AA68: 0.56 | AB68: ACLY_ieu-b-107 | AC68: TRUE | AD68: reported | AE68: 2 | AF68: 1 | AG68: TRUE | AH68: =(Table5[[#This Row],[beta.exposure]]/Table5[[#This Row],[se.exposure]])^2 -> 0.3480477033
A69: ACLY | B69: apolipoprotein A-I | C69: Two-hour glucose | D69: rs182486971 | E69: A | F69: G | G69: A | H69: G | I69: -0.00145092 | J69: 0.0343 | K69: 0.01284 | L69: 0.005 | M69: FALSE | N69: FALSE | O69: FALSE | P69: ebi-a-GCST90002227 | Q69: 17 | R69: 40111019 | S69: 0.0787 | T69: 0.664099 | U69: 63396 | V69: TRUE | W69: reported | X69: 17 | Y69: 40111019 | Z69: 0.00951556 | AA69: 0.88 | AB69: ACLY_ieu-b-107 | AC69: TRUE | AD69: reported | AE69: 2 | AF69: 1 | AG69: TRUE | AH69: =(Table5[[#This Row],[beta.exposure]]/Table5[[#This Row],[se.exposure]])^2 -> 0.02324974695
A70: ACLY | B70: apolipoprotein A-I | C70: Two-hour glucose | D70: rs189618311 | E70: T | F70: C | G70: T | H70: C | I70: -0.0123276 | J70: -0.1576 | K70: 0.018734 | L70: 0.009 | M70: FALSE | N70: FALSE | O70: FALSE | P70: ebi-a-GCST90002227 | Q70: 17 | R70: 39927501 | S70: 0.0985 | T70: 0.1197 | U70: 63396 | V70: TRUE | W70: reported | X70: 17 | Y70: 39927501 | Z70: 0.00793126 | AA70: 0.12 | AB70: ACLY_ieu-b-107 | AC70: TRUE | AD70: reported | AE70: 2 | AF70: 1 | AG70: TRUE | AH70: =(Table5[[#This Row],[beta.exposure]]/Table5[[#This Row],[se.exposure]])^2 -> 2.41586518
A71: ACLY | B71: apolipoprotein A-I | C71: Two-hour glucose | D71: rs41283427 | E71: T | F71: C | G71: T | H71: C | I71: 0.0142313 | J71: 0.0239 | K71: 0.04121 | L71: 0.055 | M71: FALSE | N71: FALSE | O71: FALSE | P71: ebi-a-GCST90002227 | Q71: 17 | R71: 39928598 | S71: 0.0251 | T71: 0.2569 | U71: 63396 | V71: TRUE | W71: reported | X71: 17 | Y71: 39928598 | Z71: 0.00509441 | AA71: 0.00519996 | AB71: ACLY_ieu-b-107 | AC71: TRUE | AD71: reported | AE71: 2 | AF71: 1 | AG71: TRUE | AH71: =(Table5[[#This Row],[beta.exposure]]/Table5[[#This Row],[se.exposure]])^2 -> 7.803714264
A72: ACLY | B72: apolipoprotein A-I | C72: Two-hour glucose | D72: rs6503665 | E72: C | F72: G | G72: C | H72: G | I72: 0.0146525 | J72: -0.021 | K72: 0.915281 | L72: 0.879 | M72: FALSE | N72: TRUE | O72: FALSE | P72: ebi-a-GCST90002227 | Q72: 17 | R72: 39953539 | S72: 0.0154 | T72: 0.163 | U72: 63396 | V72: TRUE | W72: reported | X72: 17 | Y72: 39953539 | Z72: 0.00359333 | AA72: 4.50E-05 | AB72: ACLY_ieu-b-107 | AC72: TRUE | AD72: reported | AE72: 2 | AF72: 1 | AG72: TRUE | AH72: =(Table5[[#This Row],[beta.exposure]]/Table5[[#This Row],[se.exposure]])^2 -> 16.62758795
A73: ACLY | B73: apolipoprotein A-I | C73: Two-hour glucose | D73: rs76230895 | E73: G | F73: C | G73: G | H73: C | I73: -0.0137419 | J73: 0.0227 | K73: 0.047061 | L73: 0.041 | M73: FALSE | N73: TRUE | O73: FALSE | P73: ebi-a-GCST90002227 | Q73: 17 | R73: 39934019 | S73: 0.032 | T73: 0.663201 | U73: 63396 | V73: TRUE | W73: reported | X73: 17 | Y73: 39934019 | Z73: 0.00504609 | AA73: 0.00649995 | AB73: ACLY_ieu-b-107 | AC73: TRUE | AD73: reported | AE73: 2 | AF73: 1 | AG73: TRUE | AH73: =(Table5[[#This Row],[beta.exposure]]/Table5[[#This Row],[se.exposure]])^2 -> 7.416236715
A74: ACLY | B74: apolipoprotein A-I | C74: Two-hour glucose | D74: rs78463825 | E74: G | F74: A | G74: G | H74: A | I74: -0.00311573 | J74: -0.0039 | K74: 0.019318 | L74: 0.013 | M74: FALSE | N74: FALSE | O74: FALSE | P74: ebi-a-GCST90002227 | Q74: 17 | R74: 40164055 | S74: 0.0548 | T74: 0.8539 | U74: 63396 | V74: TRUE | W74: reported | X74: 17 | Y74: 40164055 | Z74: 0.00727112 | AA74: 0.67 | AB74: ACLY_ieu-b-107 | AC74: TRUE | AD74: reported | AE74: 2 | AF74: 1 | AG74: TRUE | AH74: =(Table5[[#This Row],[beta.exposure]]/Table5[[#This Row],[se.exposure]])^2 -> 0.183618742
A75: ACLY | B75: apolipoprotein A-I | C75: Two-hour glucose | D75: rs79853117 | E75: A | F75: T | G75: A | H75: T | I75: -0.0187578 | J75: 0.0193 | K75: 0.01394 | L75: 0.017 | M75: FALSE | N75: TRUE | O75: FALSE | P75: ebi-a-GCST90002227 | Q75: 17 | R75: 39993814 | S75: 0.063 | T75: 0.722 | U75: 63396 | V75: TRUE | W75: reported | X75: 17 | Y75: 39993814 | Z75: 0.00857901 | AA75: 0.0290001 | AB75: ACLY_ieu-b-107 | AC75: TRUE | AD75: reported | AE75: 2 | AF75: 1 | AG75: TRUE | AH75: =(Table5[[#This Row],[beta.exposure]]/Table5[[#This Row],[se.exposure]])^2 -> 4.780677569
A76: ACLY | B76: apolipoprotein B | C76: CAD GWAS Cardiogram | D76: rs13412 | E76: C | F76: T | G76: C | H76: T | I76: -0.0108859 | J76: -0.0029495 | K76: 0.344318 | L76: 0.3577 | M76: FALSE | N76: FALSE | O76: FALSE | P76: Blrstk | Q76: 17 | R76: 39967442 | S76: 0.0052141998 | T76: 0.5716 | U76: 1161210 | V76: TRUE | W76: reported | X76: 17 | Y76: 39967442 | Z76: 0.00218441 | AA76: 6.20E-07 | AB76: ACLY_ieu-b-108 | AC76: TRUE | AD76: reported | AE76: 2 | AF76: 1 | AG76: TRUE | AH76: =(Table5[[#This Row],[beta.exposure]]/Table5[[#This Row],[se.exposure]])^2 -> 24.83478296
A77: ACLY | B77: apolipoprotein B | C77: CAD GWAS Cardiogram | D77: rs11079028 | E77: A | F77: G | G77: A | H77: G | I77: -0.00577217 | J77: 0.00625137 | K77: 0.199217 | L77: 0.22 | M77: FALSE | N77: FALSE | O77: FALSE | P77: Blrstk | Q77: 17 | R77: 40126133 | S77: 0.0071530756 | T77: 0.3822 | U77: 1079050 | V77: TRUE | W77: reported | X77: 17 | Y77: 40126133 | Z77: 0.00301196 | AA77: 0.0549997 | AB77: ACLY_ieu-b-108 | AC77: TRUE | AD77: reported | AE77: 2 | AF77: 1 | AG77: TRUE | AH77: =(Table5[[#This Row],[beta.exposure]]/Table5[[#This Row],[se.exposure]])^2 -> 3.672652403
A78: ACLY | B78: apolipoprotein B | C78: CAD GWAS Cardiogram | D78: rs41283427 | E78: T | F78: C | G78: T | H78: C | I78: -0.0134722 | J78: -0.00759548 | K78: 0.041239 | L78: 0.0402 | M78: FALSE | N78: FALSE | O78: FALSE | P78: Blrstk | Q78: 17 | R78: 39928598 | S78: 0.014196668 | T78: 0.5926 | U78: 1115460 | V78: TRUE | W78: reported | X78: 17 | Y78: 39928598 | Z78: 0.0053905 | AA78: 0.012 | AB78: ACLY_ieu-b-108 | AC78: TRUE | AD78: reported | AE78: 2 | AF78: 1 | AG78: TRUE | AH78: =(Table5[[#This Row],[beta.exposure]]/Table5[[#This Row],[se.exposure]])^2 -> 6.246243956
A79: ACLY | B79: apolipoprotein B | C79: Fasting glucose | D79: rs13412 | E79: C | F79: T | G79: C | H79: T | I79: -0.0108859 | J79: 0.0031 | K79: 0.344318 | L79: 0.355 | M79: FALSE | N79: FALSE | O79: FALSE | P79: ebi-a-GCST90002232 | Q79: 17 | R79: 39967442 | S79: 0.0019 | T79: 0.0547797 | U79: 200622 | V79: TRUE | W79: reported | X79: 17 | Y79: 39967442 | Z79: 0.00218441 | AA79: 6.20E-07 | AB79: ACLY_ieu-b-108 | AC79: TRUE | AD79: reported | AE79: 2 | AF79: 1 | AG79: TRUE | AH79: =(Table5[[#This Row],[beta.exposure]]/Table5[[#This Row],[se.exposure]])^2 -> 24.83478296
A80: ACLY | B80: apolipoprotein B | C80: Fasting glucose | D80: rs11079028 | E80: A | F80: G | G80: A | H80: G | I80: -0.00577217 | J80: -0.0071 | K80: 0.199217 | L80: 0.247 | M80: FALSE | N80: FALSE | O80: FALSE | P80: ebi-a-GCST90002232 | Q80: 17 | R80: 40126133 | S80: 0.0033 | T80: 0.0991699 | U80: 200622 | V80: TRUE | W80: reported | X80: 17 | Y80: 40126133 | Z80: 0.00301196 | AA80: 0.0549997 | AB80: ACLY_ieu-b-108 | AC80: TRUE | AD80: reported | AE80: 2 | AF80: 1 | AG80: TRUE | AH80: =(Table5[[#This Row],[beta.exposure]]/Table5[[#This Row],[se.exposure]])^2 -> 3.672652403
A81: ACLY | B81: apolipoprotein B | C81: Fasting glucose | D81: rs41283427 | E81: T | F81: C | G81: T | H81: C | I81: -0.0134722 | J81: 0.0081 | K81: 0.041239 | L81: 0.055 | M81: FALSE | N81: FALSE | O81: FALSE | P81: ebi-a-GCST90002232 | Q81: 17 | R81: 39928598 | S81: 0.0054 | T81: 0.148 | U81: 200622 | V81: TRUE | W81: reported | X81: 17 | Y81: 39928598 | Z81: 0.0053905 | AA81: 0.012 | AB81: ACLY_ieu-b-108 | AC81: TRUE | AD81: reported | AE81: 2 | AF81: 1 | AG81: TRUE | AH81: =(Table5[[#This Row],[beta.exposure]]/Table5[[#This Row],[se.exposure]])^2 -> 6.246243956
A82: ACLY | B82: apolipoprotein B | C82: Fasting insulin | D82: rs13412 | E82: C | F82: T | G82: C | H82: T | I82: -0.0108859 | J82: 0.0013 | K82: 0.344318 | L82: 0.355 | M82: FALSE | N82: FALSE | O82: FALSE | P82: ebi-a-GCST90002238 | Q82: 17 | R82: 39967442 | S82: 0.0021 | T82: 0.623199 | U82: 151013 | V82: TRUE | W82: reported | X82: 17 | Y82: 39967442 | Z82: 0.00218441 | AA82: 6.20E-07 | AB82: ACLY_ieu-b-108 | AC82: TRUE | AD82: reported | AE82: 2 | AF82: 1 | AG82: TRUE | AH82: =(Table5[[#This Row],[beta.exposure]]/Table5[[#This Row],[se.exposure]])^2 -> 24.83478296
A83: ACLY | B83: apolipoprotein B | C83: Fasting insulin | D83: rs11079028 | E83: A | F83: G | G83: A | H83: G | I83: -0.00577217 | J83: 0.0015 | K83: 0.199217 | L83: 0.247 | M83: FALSE | N83: FALSE | O83: FALSE | P83: ebi-a-GCST90002238 | Q83: 17 | R83: 40126133 | S83: 0.0038 | T83: 0.559 | U83: 151013 | V83: TRUE | W83: reported | X83: 17 | Y83: 40126133 | Z83: 0.00301196 | AA83: 0.0549997 | AB83: ACLY_ieu-b-108 | AC83: TRUE | AD83: reported | AE83: 2 | AF83: 1 | AG83: TRUE | AH83: =(Table5[[#This Row],[beta.exposure]]/Table5[[#This Row],[se.exposure]])^2 -> 3.672652403
A84: ACLY | B84: apolipoprotein B | C84: Fasting insulin | D84: rs41283427 | E84: T | F84: C | G84: T | H84: C | I84: -0.0134722 | J84: -0.0051 | K84: 0.041239 | L84: 0.055 | M84: FALSE | N84: FALSE | O84: FALSE | P84: ebi-a-GCST90002238 | Q84: 17 | R84: 39928598 | S84: 0.006 | T84: 0.792 | U84: 151013 | V84: TRUE | W84: reported | X84: 17 | Y84: 39928598 | Z84: 0.0053905 | AA84: 0.012 | AB84: ACLY_ieu-b-108 | AC84: TRUE | AD84: reported | AE84: 2 | AF84: 1 | AG84: TRUE | AH84: =(Table5[[#This Row],[beta.exposure]]/Table5[[#This Row],[se.exposure]])^2 -> 6.246243956
A85: ACLY | B85: apolipoprotein B | C85: Glycated hemoglobin levels | D85: rs13412 | E85: C | F85: T | G85: C | H85: T | I85: -0.0108859 | J85: 8.00E-04 | K85: 0.344318 | L85: 0.355 | M85: FALSE | N85: FALSE | O85: FALSE | P85: ebi-a-GCST90002244 | Q85: 17 | R85: 39967442 | S85: 0.0014 | T85: 0.679301 | U85: 146806 | V85: TRUE | W85: reported | X85: 17 | Y85: 39967442 | Z85: 0.00218441 | AA85: 6.20E-07 | AB85: ACLY_ieu-b-108 | AC85: TRUE | AD85: reported | AE85: 2 | AF85: 1 | AG85: TRUE | AH85: =(Table5[[#This Row],[beta.exposure]]/Table5[[#This Row],[se.exposure]])^2 -> 24.83478296
A86: ACLY | B86: apolipoprotein B | C86: Glycated hemoglobin levels | D86: rs11079028 | E86: A | F86: G | G86: A | H86: G | I86: -0.00577217 | J86: -0.005 | K86: 0.199217 | L86: 0.247 | M86: FALSE | N86: FALSE | O86: FALSE | P86: ebi-a-GCST90002244 | Q86: 17 | R86: 40126133 | S86: 0.0029 | T86: 0.0622902 | U86: 146806 | V86: TRUE | W86: reported | X86: 17 | Y86: 40126133 | Z86: 0.00301196 | AA86: 0.0549997 | AB86: ACLY_ieu-b-108 | AC86: TRUE | AD86: reported | AE86: 2 | AF86: 1 | AG86: TRUE | AH86: =(Table5[[#This Row],[beta.exposure]]/Table5[[#This Row],[se.exposure]])^2 -> 3.672652403
A87: ACLY | B87: apolipoprotein B | C87: Glycated hemoglobin levels | D87: rs41283427 | E87: T | F87: C | G87: T | H87: C | I87: -0.0134722 | J87: -0.0015 | K87: 0.041239 | L87: 0.055 | M87: FALSE | N87: FALSE | O87: FALSE | P87: ebi-a-GCST90002244 | Q87: 17 | R87: 39928598 | S87: 0.004 | T87: 0.6842 | U87: 146806 | V87: TRUE | W87: reported | X87: 17 | Y87: 39928598 | Z87: 0.0053905 | AA87: 0.012 | AB87: ACLY_ieu-b-108 | AC87: TRUE | AD87: reported | AE87: 2 | AF87: 1 | AG87: TRUE | AH87: =(Table5[[#This Row],[beta.exposure]]/Table5[[#This Row],[se.exposure]])^2 -> 6.246243956
A88: ACLY | B88: apolipoprotein B | C88: HOMA-B | D88: rs13412 | E88: C | F88: T | G88: C | H88: T | I88: -0.0108859 | J88: -0.0018 | K88: 0.344318 | M88: FALSE | N88: FALSE | O88: FALSE | P88: ieu-b-117 | Q88: 17 | R88: 39967442 | S88: 0.0037 | T88: 0.6353 | U88: 36466 | V88: TRUE | W88: reported | X88: 17 | Y88: 39967442 | Z88: 0.00218441 | AA88: 6.20E-07 | AB88: ACLY_ieu-b-108 | AC88: TRUE | AD88: reported | AE88: 2 | AF88: 1 | AG88: TRUE | AH88: =(Table5[[#This Row],[beta.exposure]]/Table5[[#This Row],[se.exposure]])^2 -> 24.83478296
A89: ACLY | B89: apolipoprotein B | C89: HOMA-B | D89: rs11079028 | E89: A | F89: G | G89: A | H89: G | I89: -0.00577217 | J89: 0.017 | K89: 0.199217 | M89: FALSE | N89: FALSE | O89: FALSE | P89: ieu-b-117 | Q89: 17 | R89: 40126133 | S89: 0.014 | T89: 0.2127 | U89: 36466 | V89: TRUE | W89: reported | X89: 17 | Y89: 40126133 | Z89: 0.00301196 | AA89: 0.0549997 | AB89: ACLY_ieu-b-108 | AC89: TRUE | AD89: reported | AE89: 2 | AF89: 1 | AG89: TRUE | AH89: =(Table5[[#This Row],[beta.exposure]]/Table5[[#This Row],[se.exposure]])^2 -> 3.672652403
A90: ACLY | B90: apolipoprotein B | C90: HOMA-IR | D90: rs13412 | E90: C | F90: T | G90: C | H90: T | I90: -0.0108859 | J90: -3.00E-04 | K90: 0.344318 | M90: FALSE | N90: FALSE | O90: FALSE | P90: ieu-b-118 | Q90: 17 | R90: 39967442 | S90: 0.0047 | T90: 0.9528 | U90: 37037 | V90: TRUE | W90: reported | X90: 17 | Y90: 39967442 | Z90: 0.00218441 | AA90: 6.20E-07 | AB90: ACLY_ieu-b-108 | AC90: TRUE | AD90: reported | AE90: 2 | AF90: 1 | AG90: TRUE | AH90: =(Table5[[#This Row],[beta.exposure]]/Table5[[#This Row],[se.exposure]])^2 -> 24.83478296
A91: ACLY | B91: apolipoprotein B | C91: HOMA-IR | D91: rs11079028 | E91: A | F91: G | G91: A | H91: G | I91: -0.00577217 | J91: 0.017 | K91: 0.199217 | M91: FALSE | N91: FALSE | O91: FALSE | P91: ieu-b-118 | Q91: 17 | R91: 40126133 | S91: 0.016 | T91: 0.3009 | U91: 37037 | V91: TRUE | W91: reported | X91: 17 | Y91: 40126133 | Z91: 0.00301196 | AA91: 0.0549997 | AB91: ACLY_ieu-b-108 | AC91: TRUE | AD91: reported | AE91: 2 | AF91: 1 | AG91: TRUE | AH91: =(Table5[[#This Row],[beta.exposure]]/Table5[[#This Row],[se.exposure]])^2 -> 3.672652403
A92: ACLY | B92: apolipoprotein B | C92: random glucose | D92: rs13412 | E92: C | F92: T | G92: C | H92: T | I92: -0.0108859 | J92: 0.000456404456 | K92: 0.344318 | L92: 0.3444 | M92: FALSE | N92: FALSE | O92: FALSE | P92: GCST90271557 | Q92: 17 | R92: 39967442 | S92: 0.000312693398 | T92: 0.1444 | U92: 440190 | V92: TRUE | W92: reported | X92: 17 | Y92: 39967442 | Z92: 0.00218441 | AA92: 6.20E-07 | AB92: ACLY_ieu-b-108 | AC92: TRUE | AD92: reported | AE92: 2 | AF92: 1 | AG92: TRUE | AH92: =(Table5[[#This Row],[beta.exposure]]/Table5[[#This Row],[se.exposure]])^2 -> 24.83478296
A93: ACLY | B93: apolipoprotein B | C93: random glucose | D93: rs11079028 | E93: A | F93: G | G93: A | H93: G | I93: -0.00577217 | J93: -0.000593607261 | K93: 0.199217 | L93: 0.1993 | M93: FALSE | N93: FALSE | O93: FALSE | P93: GCST90271557 | Q93: 17 | R93: 40126133 | S93: 0.000436116577 | T93: 0.1735 | U93: 385913 | V93: TRUE | W93: reported | X93: 17 | Y93: 40126133 | Z93: 0.00301196 | AA93: 0.0549997 | AB93: ACLY_ieu-b-108 | AC93: TRUE | AD93: reported | AE93: 2 | AF93: 1 | AG93: TRUE | AH93: =(Table5[[#This Row],[beta.exposure]]/Table5[[#This Row],[se.exposure]])^2 -> 3.672652403
A94: ACLY | B94: apolipoprotein B | C94: random glucose | D94: rs41283427 | E94: T | F94: C | G94: T | H94: C | I94: -0.0134722 | J94: 0.000329373833 | K94: 0.041239 | L94: 0.0413 | M94: FALSE | N94: FALSE | O94: FALSE | P94: GCST90271557 | Q94: 17 | R94: 39928598 | S94: 0.000766631449 | T94: 0.6675 | U94: 410824 | V94: TRUE | W94: reported | X94: 17 | Y94: 39928598 | Z94: 0.0053905 | AA94: 0.012 | AB94: ACLY_ieu-b-108 | AC94: TRUE | AD94: reported | AE94: 2 | AF94: 1 | AG94: TRUE | AH94: =(Table5[[#This Row],[beta.exposure]]/Table5[[#This Row],[se.exposure]])^2 -> 6.246243956
A95: ACLY | B95: apolipoprotein B | C95: T2D GWAS DIAMANTE | D95: rs13412 | E95: C | F95: T | G95: C | H95: T | I95: -0.0108859 | J95: -0.0117 | K95: 0.344318 | L95: 0.359 | M95: FALSE | N95: FALSE | O95: FALSE | P95: kPjrgy | Q95: 17 | R95: 39967442 | S95: 0.0068 | T95: 0.08559 | U95: 251739.5 | V95: TRUE | W95: reported | X95: 17 | Y95: 39967442 | Z95: 0.00218441 | AA95: 6.20E-07 | AB95: ACLY_ieu-b-108 | AC95: TRUE | AD95: reported | AE95: 2 | AF95: 1 | AG95: TRUE | AH95: =(Table5[[#This Row],[beta.exposure]]/Table5[[#This Row],[se.exposure]])^2 -> 24.83478296
A96: ACLY | B96: apolipoprotein B | C96: T2D GWAS DIAMANTE | D96: rs11079028 | E96: A | F96: G | G96: A | H96: G | I96: -0.00577217 | J96: 0.0036 | K96: 0.199217 | L96: 0.2112 | M96: FALSE | N96: FALSE | O96: FALSE | P96: kPjrgy | Q96: 17 | R96: 40126133 | S96: 0.0092 | T96: 0.696 | U96: 251739.5 | V96: TRUE | W96: reported | X96: 17 | Y96: 40126133 | Z96: 0.00301196 | AA96: 0.0549997 | AB96: ACLY_ieu-b-108 | AC96: TRUE | AD96: reported | AE96: 2 | AF96: 1 | AG96: TRUE | AH96: =(Table5[[#This Row],[beta.exposure]]/Table5[[#This Row],[se.exposure]])^2 -> 3.672652403
A97: ACLY | B97: apolipoprotein B | C97: T2D GWAS DIAMANTE | D97: rs41283427 | E97: T | F97: C | G97: T | H97: C | I97: -0.0134722 | J97: 0.0116 | K97: 0.041239 | L97: 0.0445 | M97: FALSE | N97: FALSE | O97: FALSE | P97: kPjrgy | Q97: 17 | R97: 39928598 | S97: 0.0172 | T97: 0.4993 | U97: 251739.5 | V97: TRUE | W97: reported | X97: 17 | Y97: 39928598 | Z97: 0.0053905 | AA97: 0.012 | AB97: ACLY_ieu-b-108 | AC97: TRUE | AD97: reported | AE97: 2 | AF97: 1 | AG97: TRUE | AH97: =(Table5[[#This Row],[beta.exposure]]/Table5[[#This Row],[se.exposure]])^2 -> 6.246243956
A98: ACLY | B98: apolipoprotein B | C98: T2D_FinnGen_r10 | D98: rs13412 | E98: C | F98: T | G98: C | H98: T | I98: -0.0108859 | J98: -0.0131949 | K98: 0.344318 | L98: 0.456895 | M98: FALSE | N98: FALSE | O98: FALSE | P98: aeAC7B | Q98: 17 | R98: 39967442 | S98: 0.00659815 | T98: 0.045524 | U98: 109000.14 | V98: TRUE | W98: reported | X98: 17 | Y98: 39967442 | Z98: 0.00218441 | AA98: 6.20E-07 | AB98: ACLY_ieu-b-108 | AC98: TRUE | AD98: reported | AE98: 2 | AF98: 1 | AG98: TRUE | AH98: =(Table5[[#This Row],[beta.exposure]]/Table5[[#This Row],[se.exposure]])^2 -> 24.83478296
A99: ACLY | B99: apolipoprotein B | C99: T2D_FinnGen_r10 | D99: rs11079028 | E99: A | F99: G | G99: A | H99: G | I99: -0.00577217 | J99: -0.0059989 | K99: 0.199217 | L99: 0.235304 | M99: FALSE | N99: FALSE | O99: FALSE | P99: aeAC7B | Q99: 17 | R99: 40126133 | S99: 0.00799515 | T99: 0.453064 | U99: 109000.14 | V99: TRUE | W99: reported | X99: 17 | Y99: 40126133 | Z99: 0.00301196 | AA99: 0.0549997 | AB99: ACLY_ieu-b-108 | AC99: TRUE | AD99: reported | AE99: 2 | AF99: 1 | AG99: TRUE | AH99: =(Table5[[#This Row],[beta.exposure]]/Table5[[#This Row],[se.exposure]])^2 -> 3.672652403
A100: ACLY | B100: apolipoprotein B | C100: T2D_FinnGen_r10 | D100: rs41283427 | E100: T | F100: C | G100: T | H100: C | I100: -0.0134722 | J100: -0.00335084 | K100: 0.041239 | L100: 0.0625579 | M100: FALSE | N100: FALSE | O100: FALSE | P100: aeAC7B | Q100: 17 | R100: 39928598 | S100: 0.0136029 | T100: 0.805424 | U100: 109000.14 | V100: TRUE | W100: reported | X100: 17 | Y100: 39928598 | Z100: 0.0053905 | AA100: 0.012 | AB100: ACLY_ieu-b-108 | AC100: TRUE | AD100: reported | AE100: 2 | AF100: 1 | AG100: TRUE | AH100: =(Table5[[#This Row],[beta.exposure]]/Table5[[#This Row],[se.exposure]])^2 -> 6.246243956
A101: ACLY | B101: apolipoprotein B | C101: T2Di UKB+LL | D101: rs13412 | E101: C | F101: T | G101: C | H101: T | I101: -0.0108859 | J101: -0.0153 | K101: 0.344318 | L101: 0.3433 | M101: FALSE | N101: FALSE | O101: FALSE | P101: rWpnrP | Q101: 17 | R101: 39967442 | S101: 0.0107 | T101: 0.1513 | U101: 465422 | V101: TRUE | W101: reported | X101: 17 | Y101: 39967442 | Z101: 0.00218441 | AA101: 6.20E-07 | AB101: ACLY_ieu-b-108 | AC101: TRUE | AD101: reported | AE101: 2 | AF101: 1 | AG101: TRUE | AH101: =(Table5[[#This Row],[beta.exposure]]/Table5[[#This Row],[se.exposure]])^2 -> 24.83478296
A102: ACLY | B102: apolipoprotein B | C102: T2Di UKB+LL | D102: rs11079028 | E102: A | F102: G | G102: A | H102: G | I102: -0.00577217 | J102: -0.0037 | K102: 0.199217 | L102: 0.1978 | M102: FALSE | N102: FALSE | O102: FALSE | P102: rWpnrP | Q102: 17 | R102: 40126133 | S102: 0.0179 | T102: 0.8373 | U102: 315850 | V102: TRUE | W102: reported | X102: 17 | Y102: 40126133 | Z102: 0.00301196 | AA102: 0.0549997 | AB102: ACLY_ieu-b-108 | AC102: TRUE | AD102: reported | AE102: 2 | AF102: 1 | AG102: TRUE | AH102: =(Table5[[#This Row],[beta.exposure]]/Table5[[#This Row],[se.exposure]])^2 -> 3.672652403
A103: ACLY | B103: apolipoprotein B | C103: T2Di UKB+LL | D103: rs41283427 | E103: T | F103: C | G103: T | H103: C | I103: -0.0134722 | J103: 0.0133 | K103: 0.041239 | L103: 0.0408 | M103: FALSE | N103: FALSE | O103: FALSE | P103: rWpnrP | Q103: 17 | R103: 39928598 | S103: 0.0274 | T103: 0.6279 | U103: 504859 | V103: TRUE | W103: reported | X103: 17 | Y103: 39928598 | Z103: 0.0053905 | AA103: 0.012 | AB103: ACLY_ieu-b-108 | AC103: TRUE | AD103: reported | AE103: 2 | AF103: 1 | AG103: TRUE | AH103: =(Table5[[#This Row],[beta.exposure]]/Table5[[#This Row],[se.exposure]])^2 -> 6.246243956
A104: ACLY | B104: apolipoprotein B | C104: Two-hour glucose | D104: rs13412 | E104: C | F104: T | G104: C | H104: T | I104: -0.0108859 | J104: 0.0018 | K104: 0.344318 | L104: 0.355 | M104: FALSE | N104: FALSE | O104: FALSE | P104: ebi-a-GCST90002227 | Q104: 17 | R104: 39967442 | S104: 0.0086 | T104: 0.8614 | U104: 63396 | V104: TRUE | W104: reported | X104: 17 | Y104: 39967442 | Z104: 0.00218441 | AA104: 6.20E-07 | AB104: ACLY_ieu-b-108 | AC104: TRUE | AD104: reported | AE104: 2 | AF104: 1 | AG104: TRUE | AH104: =(Table5[[#This Row],[beta.exposure]]/Table5[[#This Row],[se.exposure]])^2 -> 24.83478296
A105: ACLY | B105: apolipoprotein B | C105: Two-hour glucose | D105: rs11079028 | E105: A | F105: G | G105: A | H105: G | I105: -0.00577217 | J105: 0.0229 | K105: 0.199217 | L105: 0.247 | M105: FALSE | N105: FALSE | O105: FALSE | P105: ebi-a-GCST90002227 | Q105: 17 | R105: 40126133 | S105: 0.015 | T105: 0.1786 | U105: 63396 | V105: TRUE | W105: reported | X105: 17 | Y105: 40126133 | Z105: 0.00301196 | AA105: 0.0549997 | AB105: ACLY_ieu-b-108 | AC105: TRUE | AD105: reported | AE105: 2 | AF105: 1 | AG105: TRUE | AH105: =(Table5[[#This Row],[beta.exposure]]/Table5[[#This Row],[se.exposure]])^2 -> 3.672652403
A106: ACLY | B106: apolipoprotein B | C106: Two-hour glucose | D106: rs41283427 | E106: T | F106: C | G106: T | H106: C | I106: -0.0134722 | J106: 0.0239 | K106: 0.041239 | L106: 0.055 | M106: FALSE | N106: FALSE | O106: FALSE | P106: ebi-a-GCST90002227 | Q106: 17 | R106: 39928598 | S106: 0.0251 | T106: 0.2569 | U106: 63396 | V106: TRUE | W106: reported | X106: 17 | Y106: 39928598 | Z106: 0.0053905 | AA106: 0.012 | AB106: ACLY_ieu-b-108 | AC106: TRUE | AD106: reported | AE106: 2 | AF106: 1 | AG106: TRUE | AH106: =(Table5[[#This Row],[beta.exposure]]/Table5[[#This Row],[se.exposure]])^2 -> 6.246243956
A107: ACLY | B107: HDL cholesterol | C107: CAD GWAS Cardiogram | D107: rs11652920 | E107: T | F107: C | G107: T | H107: C | I107: -0.0239138 | J107: -0.02514673 | K107: 0.014366 | L107: 0.0211 | M107: FALSE | N107: FALSE | O107: FALSE | P107: Blrstk | Q107: 17 | R107: 40091167 | S107: 0.021906 | T107: 0.251 | U107: 967799 | V107: TRUE | W107: reported | X107: 17 | Y107: 40091167 | Z107: 0.00801729 | AA107: 0.00290001 | AB107: ACLY_ieu-b-109 | AC107: TRUE | AD107: reported | AE107: 2 | AF107: 1 | AG107: TRUE | AH107: =(Table5[[#This Row],[beta.exposure]]/Table5[[#This Row],[se.exposure]])^2 -> 8.896967401
A108: ACLY | B108: HDL cholesterol | C108: CAD GWAS Cardiogram | D108: rs117726639 | E108: A | F108: G | G108: A | H108: G | I108: -0.0272416 | J108: 0.02190972 | K108: 0.013227 | L108: 0.0212 | M108: FALSE | N108: FALSE | O108: FALSE | P108: Blrstk | Q108: 17 | R108: 40110377 | S108: 0.020204773 | T108: 0.2782 | U108: 1116400 | V108: TRUE | W108: reported | X108: 17 | Y108: 40110377 | Z108: 0.00843624 | AA108: 0.0012 | AB108: ACLY_ieu-b-109 | AC108: TRUE | AD108: reported | AE108: 2 | AF108: 1 | AG108: TRUE | AH108: =(Table5[[#This Row],[beta.exposure]]/Table5[[#This Row],[se.exposure]])^2 -> 10.42719201
A109: ACLY | B109: HDL cholesterol | C109: CAD GWAS Cardiogram | D109: rs117981684 | E109: A | F109: G | G109: A | H109: G | I109: -0.00246655 | J109: 0.03688776 | K109: 0.018358 | L109: 0.0191 | M109: FALSE | N109: FALSE | O109: FALSE | P109: Blrstk | Q109: 17 | R109: 40113010 | S109: 0.019371337 | T109: 0.05688 | U109: 1120510 | V109: TRUE | W109: reported | X109: 17 | Y109: 40113010 | Z109: 0.00709867 | AA109: 0.73 | AB109: ACLY_ieu-b-109 | AC109: TRUE | AD109: reported | AE109: 2 | AF109: 1 | AG109: TRUE | AH109: =(Table5[[#This Row],[beta.exposure]]/Table5[[#This Row],[se.exposure]])^2 -> 0.1207329667
A110: ACLY | B110: HDL cholesterol | C110: CAD GWAS Cardiogram | D110: rs139992232 | E110: A | F110: G | G110: A | H110: G | I110: 0.0181932 | J110: -0.06954889 | K110: 0.014179 | L110: 0.0121 | M110: FALSE | N110: FALSE | O110: FALSE | P110: Blrstk | Q110: 17 | R110: 39954855 | S110: 0.031085748 | T110: 0.02527 | U110: 934741 | V110: TRUE | W110: reported | X110: 17 | Y110: 39954855 | Z110: 0.00852011 | AA110: 0.0329997 | AB110: ACLY_ieu-b-109 | AC110: TRUE | AD110: reported | AE110: 2 | AF110: 1 | AG110: TRUE | AH110: =(Table5[[#This Row],[beta.exposure]]/Table5[[#This Row],[se.exposure]])^2 -> 4.559610908
A111: ACLY | B111: HDL cholesterol | C111: CAD GWAS Cardiogram | D111: rs141387386 | E111: T | F111: G | G111: T | H111: G | I111: -0.00857679 | J111: -0.07272149 | K111: 0.010802 | L111: 0.0111 | M111: FALSE | N111: FALSE | O111: FALSE | P111: Blrstk | Q111: 17 | R111: 39975704 | S111: 0.033412179 | T111: 0.02952 | U111: 914528 | V111: TRUE | W111: reported | X111: 17 | Y111: 39975704 | Z111: 0.0100696 | AA111: 0.39 | AB111: ACLY_ieu-b-109 | AC111: TRUE | AD111: reported | AE111: 2 | AF111: 1 | AG111: TRUE | AH111: =(Table5[[#This Row],[beta.exposure]]/Table5[[#This Row],[se.exposure]])^2 -> 0.7254794497
A112: ACLY | B112: HDL cholesterol | C112: CAD GWAS Cardiogram | D112: rs143382920 | E112: G | F112: A | G112: G | H112: A | I112: -0.00872184 | J112: 0.02186496 | K112: 0.016657 | L112: 0.0169 | M112: FALSE | N112: FALSE | O112: FALSE | P112: Blrstk | Q112: 17 | R112: 39990916 | S112: 0.021325241 | T112: 0.3052 | U112: 1105100 | V112: TRUE | W112: reported | X112: 17 | Y112: 39990916 | Z112: 0.00751101 | AA112: 0.25 | AB112: ACLY_ieu-b-109 | AC112: TRUE | AD112: reported | AE112: 2 | AF112: 1 | AG112: TRUE | AH112: =(Table5[[#This Row],[beta.exposure]]/Table5[[#This Row],[se.exposure]])^2 -> 1.348402504
A113: ACLY | B113: HDL cholesterol | C113: CAD GWAS Cardiogram | D113: rs145550321 | E113: T | F113: C | G113: T | H113: C | I113: -0.00778006 | J113: -0.01972093 | K113: 0.02951 | L113: 0.0253 | M113: FALSE | N113: FALSE | O113: FALSE | P113: Blrstk | Q113: 17 | R113: 39980350 | S113: 0.018603556 | T113: 0.2891 | U113: 1102960 | V113: TRUE | W113: reported | X113: 17 | Y113: 39980350 | Z113: 0.00581919 | AA113: 0.18 | AB113: ACLY_ieu-b-109 | AC113: TRUE | AD113: reported | AE113: 2 | AF113: 1 | AG113: TRUE | AH113: =(Table5[[#This Row],[beta.exposure]]/Table5[[#This Row],[se.exposure]])^2 -> 1.787478463
A114: ACLY | B114: HDL cholesterol | C114: CAD GWAS Cardiogram | D114: rs184826248 | E114: T | F114: C | G114: T | H114: C | I114: -0.0191774 | J114: 0.01209525 | K114: 0.012351 | L114: 0.0108 | M114: FALSE | N114: FALSE | O114: FALSE | P114: Blrstk | Q114: 17 | R114: 40136478 | S114: 0.035353474 | T114: 0.7323 | U114: 934741 | V114: TRUE | W114: reported | X114: 17 | Y114: 40136478 | Z114: 0.00889096 | AA114: 0.0309999 | AB114: ACLY_ieu-b-109 | AC114: TRUE | AD114: reported | AE114: 2 | AF114: 1 | AG114: TRUE | AH114: =(Table5[[#This Row],[beta.exposure]]/Table5[[#This Row],[se.exposure]])^2 -> 4.652454568
A115: ACLY | B115: HDL cholesterol | C115: CAD GWAS Cardiogram | D115: rs185282939 | E115: A | F115: G | G115: A | H115: G | I115: -0.00538923 | J115: 0.02365026 | K115: 0.023452 | L115: 0.025 | M115: FALSE | N115: FALSE | O115: FALSE | P115: Blrstk | Q115: 17 | R115: 40031726 | S115: 0.020607356 | T115: 0.2511 | U115: 922234 | V115: TRUE | W115: reported | X115: 17 | Y115: 40031726 | Z115: 0.00630116 | AA115: 0.39 | AB115: ACLY_ieu-b-109 | AC115: TRUE | AD115: reported | AE115: 2 | AF115: 1 | AG115: TRUE | AH115: =(Table5[[#This Row],[beta.exposure]]/Table5[[#This Row],[se.exposure]])^2 -> 0.7314967864
A116: ACLY | B116: HDL cholesterol | C116: CAD GWAS Cardiogram | D116: rs3887424 | E116: C | F116: T | G116: C | H116: T | I116: -0.00976261 | J116: 0.01345949 | K116: 0.052699 | L116: 0.0456 | M116: FALSE | N116: FALSE | O116: FALSE | P116: Blrstk | Q116: 17 | R116: 40026218 | S116: 0.013136463 | T116: 0.3056 | U116: 1084850 | V116: TRUE | W116: reported | X116: 17 | Y116: 40026218 | Z116: 0.0042667 | AA116: 0.0219999 | AB116: ACLY_ieu-b-109 | AC116: TRUE | AD116: reported | AE116: 2 | AF116: 1 | AG116: TRUE | AH116: =(Table5[[#This Row],[beta.exposure]]/Table5[[#This Row],[se.exposure]])^2 -> 5.235373434
A117: ACLY | B117: HDL cholesterol | C117: CAD GWAS Cardiogram | D117: rs41275671 | E117: C | F117: T | G117: C | H117: T | I117: 0.00827439 | J117: 0.03108923 | K117: 0.015216 | L117: 0.016 | M117: FALSE | N117: FALSE | O117: FALSE | P117: Blrstk | Q117: 17 | R117: 40026697 | S117: 0.025193503 | T117: 0.2172 | U117: 967799 | V117: TRUE | W117: reported | X117: 17 | Y117: 40026697 | Z117: 0.00819415 | AA117: 0.31 | AB117: ACLY_ieu-b-109 | AC117: TRUE | AD117: reported | AE117: 2 | AF117: 1 | AG117: TRUE | AH117: =(Table5[[#This Row],[beta.exposure]]/Table5[[#This Row],[se.exposure]])^2 -> 1.019680594
A118: ACLY | B118: HDL cholesterol | C118: CAD GWAS Cardiogram | D118: rs562072845 | E118: A | F118: G | G118: A | H118: G | I118: 0.0115088 | J118: -0.00080855 | K118: 0.039805 | L118: 0.0373 | M118: FALSE | N118: FALSE | O118: FALSE | P118: Blrstk | Q118: 17 | R118: 40031748 | S118: 0.018075516 | T118: 0.9643 | U118: 895497 | V118: TRUE | W118: reported | X118: 17 | Y118: 40031748 | Z118: 0.00507533 | AA118: 0.0230001 | AB118: ACLY_ieu-b-109 | AC118: TRUE | AD118: reported | AE118: 2 | AF118: 1 | AG118: TRUE | AH118: =(Table5[[#This Row],[beta.exposure]]/Table5[[#This Row],[se.exposure]])^2 -> 5.1419934
A119: ACLY | B119: HDL cholesterol | C119: CAD GWAS Cardiogram | D119: rs80162003 | E119: G | F119: A | G119: G | H119: A | I119: 0.0238545 | J119: 0.02371136 | K119: 0.011613 | L119: 0.0147 | M119: FALSE | N119: FALSE | O119: FALSE | P119: Blrstk | Q119: 17 | R119: 40106335 | S119: 0.022813581 | T119: 0.2986 | U119: 1117370 | V119: TRUE | W119: reported | X119: 17 | Y119: 40106335 | Z119: 0.00891055 | AA119: 0.00739997 | AB119: ACLY_ieu-b-109 | AC119: TRUE | AD119: reported | AE119: 2 | AF119: 1 | AG119: TRUE | AH119: =(Table5[[#This Row],[beta.exposure]]/Table5[[#This Row],[se.exposure]])^2 -> 7.166904426
A120: ACLY | B120: HDL cholesterol | C120: Fasting glucose | D120: rs11652920 | E120: T | F120: C | G120: T | H120: C | I120: -0.0239138 | J120: 0.0046 | K120: 0.014366 | L120: 0.022 | M120: FALSE | N120: FALSE | O120: FALSE | P120: ebi-a-GCST90002232 | Q120: 17 | R120: 40091167 | S120: 0.0098 | T120: 0.706401 | U120: 200622 | V120: TRUE | W120: reported | X120: 17 | Y120: 40091167 | Z120: 0.00801729 | AA120: 0.00290001 | AB120: ACLY_ieu-b-109 | AC120: TRUE | AD120: reported | AE120: 2 | AF120: 1 | AG120: TRUE | AH120: =(Table5[[#This Row],[beta.exposure]]/Table5[[#This Row],[se.exposure]])^2 -> 8.896967401
A121: ACLY | B121: HDL cholesterol | C121: Fasting glucose | D121: rs117726639 | E121: A | F121: G | G121: A | H121: G | I121: -0.0272416 | J121: -0.0154 | K121: 0.013227 | L121: 0.024 | M121: FALSE | N121: FALSE | O121: FALSE | P121: ebi-a-GCST90002232 | Q121: 17 | R121: 40110377 | S121: 0.0076 | T121: 0.1241 | U121: 200622 | V121: TRUE | W121: reported | X121: 17 | Y121: 40110377 | Z121: 0.00843624 | AA121: 0.0012 | AB121: ACLY_ieu-b-109 | AC121: TRUE | AD121: reported | AE121: 2 | AF121: 1 | AG121: TRUE | AH121: =(Table5[[#This Row],[beta.exposure]]/Table5[[#This Row],[se.exposure]])^2 -> 10.42719201
A122: ACLY | B122: HDL cholesterol | C122: Fasting glucose | D122: rs117981684 | E122: A | F122: G | G122: A | H122: G | I122: -0.00246655 | J122: -0.0019 | K122: 0.018358 | L122: 0.02 | M122: FALSE | N122: FALSE | O122: FALSE | P122: ebi-a-GCST90002232 | Q122: 17 | R122: 40113010 | S122: 0.0071 | T122: 0.6296 | U122: 200622 | V122: TRUE | W122: reported | X122: 17 | Y122: 40113010 | Z122: 0.00709867 | AA122: 0.73 | AB122: ACLY_ieu-b-109 | AC122: TRUE | AD122: reported | AE122: 2 | AF122: 1 | AG122: TRUE | AH122: =(Table5[[#This Row],[beta.exposure]]/Table5[[#This Row],[se.exposure]])^2 -> 0.1207329667
A123: ACLY | B123: HDL cholesterol | C123: Fasting glucose | D123: rs139992232 | E123: A | F123: G | G123: A | H123: G | I123: 0.0181932 | J123: 0.0331 | K123: 0.014179 | L123: 0.011 | M123: FALSE | N123: FALSE | O123: FALSE | P123: ebi-a-GCST90002232 | Q123: 17 | R123: 39954855 | S123: 0.0136 | T123: 0.03095 | U123: 200622 | V123: TRUE | W123: reported | X123: 17 | Y123: 39954855 | Z123: 0.00852011 | AA123: 0.0329997 | AB123: ACLY_ieu-b-109 | AC123: TRUE | AD123: reported | AE123: 2 | AF123: 1 | AG123: TRUE | AH123: =(Table5[[#This Row],[beta.exposure]]/Table5[[#This Row],[se.exposure]])^2 -> 4.559610908
A124: ACLY | B124: HDL cholesterol | C124: Fasting glucose | D124: rs141387386 | E124: T | F124: G | G124: T | H124: G | I124: -0.00857679 | J124: 0.0113 | K124: 0.010802 | L124: 0.013 | M124: FALSE | N124: FALSE | O124: FALSE | P124: ebi-a-GCST90002232 | Q124: 17 | R124: 39975704 | S124: 0.0163 | T124: 0.3545 | U124: 200622 | V124: TRUE | W124: reported | X124: 17 | Y124: 39975704 | Z124: 0.0100696 | AA124: 0.39 | AB124: ACLY_ieu-b-109 | AC124: TRUE | AD124: reported | AE124: 2 | AF124: 1 | AG124: TRUE | AH124: =(Table5[[#This Row],[beta.exposure]]/Table5[[#This Row],[se.exposure]])^2 -> 0.7254794497
A125: ACLY | B125: HDL cholesterol | C125: Fasting glucose | D125: rs143382920 | E125: G | F125: A | G125: G | H125: A | I125: -0.00872184 | J125: 0.0234 | K125: 0.016657 | L125: 0.017 | M125: FALSE | N125: FALSE | O125: FALSE | P125: ebi-a-GCST90002232 | Q125: 17 | R125: 39990916 | S125: 0.0116 | T125: 0.0280098 | U125: 200622 | V125: TRUE | W125: reported | X125: 17 | Y125: 39990916 | Z125: 0.00751101 | AA125: 0.25 | AB125: ACLY_ieu-b-109 | AC125: TRUE | AD125: reported | AE125: 2 | AF125: 1 | AG125: TRUE | AH125: =(Table5[[#This Row],[beta.exposure]]/Table5[[#This Row],[se.exposure]])^2 -> 1.348402504
A126: ACLY | B126: HDL cholesterol | C126: Fasting glucose | D126: rs145550321 | E126: T | F126: C | G126: T | H126: C | I126: -0.00778006 | J126: -0.0023 | K126: 0.02951 | L126: 0.025 | M126: FALSE | N126: FALSE | O126: FALSE | P126: ebi-a-GCST90002232 | Q126: 17 | R126: 39980350 | S126: 0.0087 | T126: 0.651199 | U126: 200622 | V126: TRUE | W126: reported | X126: 17 | Y126: 39980350 | Z126: 0.00581919 | AA126: 0.18 | AB126: ACLY_ieu-b-109 | AC126: TRUE | AD126: reported | AE126: 2 | AF126: 1 | AG126: TRUE | AH126: =(Table5[[#This Row],[beta.exposure]]/Table5[[#This Row],[se.exposure]])^2 -> 1.787478463
A127: ACLY | B127: HDL cholesterol | C127: Fasting glucose | D127: rs184826248 | E127: T | F127: C | G127: T | H127: C | I127: -0.0191774 | J127: -0.0039 | K127: 0.012351 | L127: 0.013 | M127: FALSE | N127: FALSE | O127: FALSE | P127: ebi-a-GCST90002232 | Q127: 17 | R127: 40136478 | S127: 0.0138 | T127: 0.7966 | U127: 200622 | V127: TRUE | W127: reported | X127: 17 | Y127: 40136478 | Z127: 0.00889096 | AA127: 0.0309999 | AB127: ACLY_ieu-b-109 | AC127: TRUE | AD127: reported | AE127: 2 | AF127: 1 | AG127: TRUE | AH127: =(Table5[[#This Row],[beta.exposure]]/Table5[[#This Row],[se.exposure]])^2 -> 4.652454568
A128: ACLY | B128: HDL cholesterol | C128: Fasting glucose | D128: rs185282939 | E128: A | F128: G | G128: A | H128: G | I128: -0.00538923 | J128: 0.0132 | K128: 0.023452 | M128: FALSE | N128: FALSE | O128: FALSE | P128: ebi-a-GCST90002232 | Q128: 17 | R128: 40031726 | S128: 0.0226 | T128: 0.4366 | U128: 200622 | V128: TRUE | W128: reported | X128: 17 | Y128: 40031726 | Z128: 0.00630116 | AA128: 0.39 | AB128: ACLY_ieu-b-109 | AC128: TRUE | AD128: reported | AE128: 2 | AF128: 1 | AG128: TRUE | AH128: =(Table5[[#This Row],[beta.exposure]]/Table5[[#This Row],[se.exposure]])^2 -> 0.7314967864
A129: ACLY | B129: HDL cholesterol | C129: Fasting glucose | D129: rs3887424 | E129: C | F129: T | G129: C | H129: T | I129: -0.00976261 | J129: -0.0057 | K129: 0.052699 | L129: 0.032 | M129: FALSE | N129: FALSE | O129: FALSE | P129: ebi-a-GCST90002232 | Q129: 17 | R129: 40026218 | S129: 0.0059 | T129: 0.2463 | U129: 200622 | V129: TRUE | W129: reported | X129: 17 | Y129: 40026218 | Z129: 0.0042667 | AA129: 0.0219999 | AB129: ACLY_ieu-b-109 | AC129: TRUE | AD129: reported | AE129: 2 | AF129: 1 | AG129: TRUE | AH129: =(Table5[[#This Row],[beta.exposure]]/Table5[[#This Row],[se.exposure]])^2 -> 5.235373434
A130: ACLY | B130: HDL cholesterol | C130: Fasting glucose | D130: rs41275671 | E130: C | F130: T | G130: C | H130: T | I130: 0.00827439 | J130: 0.0177 | K130: 0.015216 | L130: 0.014 | M130: FALSE | N130: FALSE | O130: FALSE | P130: ebi-a-GCST90002232 | Q130: 17 | R130: 40026697 | S130: 0.0205 | T130: 0.4188 | U130: 200622 | V130: TRUE | W130: reported | X130: 17 | Y130: 40026697 | Z130: 0.00819415 | AA130: 0.31 | AB130: ACLY_ieu-b-109 | AC130: TRUE | AD130: reported | AE130: 2 | AF130: 1 | AG130: TRUE | AH130: =(Table5[[#This Row],[beta.exposure]]/Table5[[#This Row],[se.exposure]])^2 -> 1.019680594
A131: ACLY | B131: HDL cholesterol | C131: Fasting glucose | D131: rs562072845 | E131: A | F131: G | G131: A | H131: G | I131: 0.0115088 | J131: 0.0015 | K131: 0.039805 | M131: FALSE | N131: FALSE | O131: FALSE | P131: ebi-a-GCST90002232 | Q131: 17 | R131: 40031748 | S131: 0.0178 | T131: 1 | U131: 200622 | V131: TRUE | W131: reported | X131: 17 | Y131: 40031748 | Z131: 0.00507533 | AA131: 0.0230001 | AB131: ACLY_ieu-b-109 | AC131: TRUE | AD131: reported | AE131: 2 | AF131: 1 | AG131: TRUE | AH131: =(Table5[[#This Row],[beta.exposure]]/Table5[[#This Row],[se.exposure]])^2 -> 5.1419934
A132: ACLY | B132: HDL cholesterol | C132: Fasting glucose | D132: rs80162003 | E132: G | F132: A | G132: G | H132: A | I132: 0.0238545 | J132: -0.0069 | K132: 0.011613 | L132: 0.021 | M132: FALSE | N132: FALSE | O132: FALSE | P132: ebi-a-GCST90002232 | Q132: 17 | R132: 40106335 | S132: 0.0083 | T132: 0.2026 | U132: 200622 | V132: TRUE | W132: reported | X132: 17 | Y132: 40106335 | Z132: 0.00891055 | AA132: 0.00739997 | AB132: ACLY_ieu-b-109 | AC132: TRUE | AD132: reported | AE132: 2 | AF132: 1 | AG132: TRUE | AH132: =(Table5[[#This Row],[beta.exposure]]/Table5[[#This Row],[se.exposure]])^2 -> 7.166904426
A133: ACLY | B133: HDL cholesterol | C133: Fasting insulin | D133: rs11652920 | E133: T | F133: C | G133: T | H133: C | I133: -0.0239138 | J133: 0.0056 | K133: 0.014366 | L133: 0.022 | M133: FALSE | N133: FALSE | O133: FALSE | P133: ebi-a-GCST90002238 | Q133: 17 | R133: 40091167 | S133: 0.0108 | T133: 0.8119 | U133: 151013 | V133: TRUE | W133: reported | X133: 17 | Y133: 40091167 | Z133: 0.00801729 | AA133: 0.00290001 | AB133: ACLY_ieu-b-109 | AC133: TRUE | AD133: reported | AE133: 2 | AF133: 1 | AG133: TRUE | AH133: =(Table5[[#This Row],[beta.exposure]]/Table5[[#This Row],[se.exposure]])^2 -> 8.896967401
A134: ACLY | B134: HDL cholesterol | C134: Fasting insulin | D134: rs117726639 | E134: A | F134: G | G134: A | H134: G | I134: -0.0272416 | J134: -0.0036 | K134: 0.013227 | L134: 0.024 | M134: FALSE | N134: FALSE | O134: FALSE | P134: ebi-a-GCST90002238 | Q134: 17 | R134: 40110377 | S134: 0.0077 | T134: 0.8116 | U134: 151013 | V134: TRUE | W134: reported | X134: 17 | Y134: 40110377 | Z134: 0.00843624 | AA134: 0.0012 | AB134: ACLY_ieu-b-109 | AC134: TRUE | AD134: reported | AE134: 2 | AF134: 1 | AG134: TRUE | AH134: =(Table5[[#This Row],[beta.exposure]]/Table5[[#This Row],[se.exposure]])^2 -> 10.42719201
A135: ACLY | B135: HDL cholesterol | C135: Fasting insulin | D135: rs117981684 | E135: A | F135: G | G135: A | H135: G | I135: -0.00246655 | J135: 0.0053 | K135: 0.018358 | L135: 0.02 | M135: FALSE | N135: FALSE | O135: FALSE | P135: ebi-a-GCST90002238 | Q135: 17 | R135: 40113010 | S135: 0.008 | T135: 0.2083 | U135: 151013 | V135: TRUE | W135: reported | X135: 17 | Y135: 40113010 | Z135: 0.00709867 | AA135: 0.73 | AB135: ACLY_ieu-b-109 | AC135: TRUE | AD135: reported | AE135: 2 | AF135: 1 | AG135: TRUE | AH135: =(Table5[[#This Row],[beta.exposure]]/Table5[[#This Row],[se.exposure]])^2 -> 0.1207329667
A136: ACLY | B136: HDL cholesterol | C136: Fasting insulin | D136: rs139992232 | E136: A | F136: G | G136: A | H136: G | I136: 0.0181932 | J136: -0.0026 | K136: 0.014179 | L136: 0.011 | M136: FALSE | N136: FALSE | O136: FALSE | P136: ebi-a-GCST90002238 | Q136: 17 | R136: 39954855 | S136: 0.0156 | T136: 0.4656 | U136: 151013 | V136: TRUE | W136: reported | X136: 17 | Y136: 39954855 | Z136: 0.00852011 | AA136: 0.0329997 | AB136: ACLY_ieu-b-109 | AC136: TRUE | AD136: reported | AE136: 2 | AF136: 1 | AG136: TRUE | AH136: =(Table5[[#This Row],[beta.exposure]]/Table5[[#This Row],[se.exposure]])^2 -> 4.559610908
A137: ACLY | B137: HDL cholesterol | C137: Fasting insulin | D137: rs141387386 | E137: T | F137: G | G137: T | H137: G | I137: -0.00857679 | J137: 0.0103 | K137: 0.010802 | L137: 0.013 | M137: FALSE | N137: FALSE | O137: FALSE | P137: ebi-a-GCST90002238 | Q137: 17 | R137: 39975704 | S137: 0.0183 | T137: 0.764499 | U137: 151013 | V137: TRUE | W137: reported | X137: 17 | Y137: 39975704 | Z137: 0.0100696 | AA137: 0.39 | AB137: ACLY_ieu-b-109 | AC137: TRUE | AD137: reported | AE137: 2 | AF137: 1 | AG137: TRUE | AH137: =(Table5[[#This Row],[beta.exposure]]/Table5[[#This Row],[se.exposure]])^2 -> 0.7254794497
A138: ACLY | B138: HDL cholesterol | C138: Fasting insulin | D138: rs143382920 | E138: G | F138: A | G138: G | H138: A | I138: -0.00872184 | J138: -5.00E-04 | K138: 0.016657 | L138: 0.017 | M138: FALSE | N138: FALSE | O138: FALSE | P138: ebi-a-GCST90002238 | Q138: 17 | R138: 39990916 | S138: 0.0135 | T138: 0.9543 | U138: 151013 | V138: TRUE | W138: reported | X138: 17 | Y138: 39990916 | Z138: 0.00751101 | AA138: 0.25 | AB138: ACLY_ieu-b-109 | AC138: TRUE | AD138: reported | AE138: 2 | AF138: 1 | AG138: TRUE | AH138: =(Table5[[#This Row],[beta.exposure]]/Table5[[#This Row],[se.exposure]])^2 -> 1.348402504
A139: ACLY | B139: HDL cholesterol | C139: Fasting insulin | D139: rs145550321 | E139: T | F139: C | G139: T | H139: C | I139: -0.00778006 | J139: -0.01 | K139: 0.02951 | L139: 0.025 | M139: FALSE | N139: FALSE | O139: FALSE | P139: ebi-a-GCST90002238 | Q139: 17 | R139: 39980350 | S139: 0.0099 | T139: 0.2831 | U139: 151013 | V139: TRUE | W139: reported | X139: 17 | Y139: 39980350 | Z139: 0.00581919 | AA139: 0.18 | AB139: ACLY_ieu-b-109 | AC139: TRUE | AD139: reported | AE139: 2 | AF139: 1 | AG139: TRUE | AH139: =(Table5[[#This Row],[beta.exposure]]/Table5[[#This Row],[se.exposure]])^2 -> 1.787478463
A140: ACLY | B140: HDL cholesterol | C140: Fasting insulin | D140: rs184826248 | E140: T | F140: C | G140: T | H140: C | I140: -0.0191774 | J140: -0.0173 | K140: 0.012351 | L140: 0.013 | M140: FALSE | N140: FALSE | O140: FALSE | P140: ebi-a-GCST90002238 | Q140: 17 | R140: 40136478 | S140: 0.0166 | T140: 0.4038 | U140: 151013 | V140: TRUE | W140: reported | X140: 17 | Y140: 40136478 | Z140: 0.00889096 | AA140: 0.0309999 | AB140: ACLY_ieu-b-109 | AC140: TRUE | AD140: reported | AE140: 2 | AF140: 1 | AG140: TRUE | AH140: =(Table5[[#This Row],[beta.exposure]]/Table5[[#This Row],[se.exposure]])^2 -> 4.652454568
A141: ACLY | B141: HDL cholesterol | C141: Fasting insulin | D141: rs185282939 | E141: A | F141: G | G141: A | H141: G | I141: -0.00538923 | J141: 0.0373 | K141: 0.023452 | M141: FALSE | N141: FALSE | O141: FALSE | P141: ebi-a-GCST90002238 | Q141: 17 | R141: 40031726 | S141: 0.0269 | T141: 0.1339 | U141: 151013 | V141: TRUE | W141: reported | X141: 17 | Y141: 40031726 | Z141: 0.00630116 | AA141: 0.39 | AB141: ACLY_ieu-b-109 | AC141: TRUE | AD141: reported | AE141: 2 | AF141: 1 | AG141: TRUE | AH141: =(Table5[[#This Row],[beta.exposure]]/Table5[[#This Row],[se.exposure]])^2 -> 0.7314967864
A142: ACLY | B142: HDL cholesterol | C142: Fasting insulin | D142: rs3887424 | E142: C | F142: T | G142: C | H142: T | I142: -0.00976261 | J142: -0.0029 | K142: 0.052699 | L142: 0.032 | M142: FALSE | N142: FALSE | O142: FALSE | P142: ebi-a-GCST90002238 | Q142: 17 | R142: 40026218 | S142: 0.0069 | T142: 0.6206 | U142: 151013 | V142: TRUE | W142: reported | X142: 17 | Y142: 40026218 | Z142: 0.0042667 | AA142: 0.0219999 | AB142: ACLY_ieu-b-109 | AC142: TRUE | AD142: reported | AE142: 2 | AF142: 1 | AG142: TRUE | AH142: =(Table5[[#This Row],[beta.exposure]]/Table5[[#This Row],[se.exposure]])^2 -> 5.235373434
A143: ACLY | B143: HDL cholesterol | C143: Fasting insulin | D143: rs41275671 | E143: C | F143: T | G143: C | H143: T | I143: 0.00827439 | J143: -0.0226 | K143: 0.015216 | L143: 0.014 | M143: FALSE | N143: FALSE | O143: FALSE | P143: ebi-a-GCST90002238 | Q143: 17 | R143: 40026697 | S143: 0.0239 | T143: 0.4256 | U143: 151013 | V143: TRUE | W143: reported | X143: 17 | Y143: 40026697 | Z143: 0.00819415 | AA143: 0.31 | AB143: ACLY_ieu-b-109 | AC143: TRUE | AD143: reported | AE143: 2 | AF143: 1 | AG143: TRUE | AH143: =(Table5[[#This Row],[beta.exposure]]/Table5[[#This Row],[se.exposure]])^2 -> 1.019680594
A144: ACLY | B144: HDL cholesterol | C144: Fasting insulin | D144: rs562072845 | E144: A | F144: G | G144: A | H144: G | I144: 0.0115088 | J144: 1.00E-04 | K144: 0.039805 | M144: FALSE | N144: FALSE | O144: FALSE | P144: ebi-a-GCST90002238 | Q144: 17 | R144: 40031748 | S144: 0.0209 | T144: 0.935 | U144: 151013 | V144: TRUE | W144: reported | X144: 17 | Y144: 40031748 | Z144: 0.00507533 | AA144: 0.0230001 | AB144: ACLY_ieu-b-109 | AC144: TRUE | AD144: reported | AE144: 2 | AF144: 1 | AG144: TRUE | AH144: =(Table5[[#This Row],[beta.exposure]]/Table5[[#This Row],[se.exposure]])^2 -> 5.1419934
A145: ACLY | B145: HDL cholesterol | C145: Fasting insulin | D145: rs80162003 | E145: G | F145: A | G145: G | H145: A | I145: 0.0238545 | J145: 0.0064 | K145: 0.011613 | L145: 0.021 | M145: FALSE | N145: FALSE | O145: FALSE | P145: ebi-a-GCST90002238 | Q145: 17 | R145: 40106335 | S145: 0.0087 | T145: 0.38 | U145: 151013 | V145: TRUE | W145: reported | X145: 17 | Y145: 40106335 | Z145: 0.00891055 | AA145: 0.00739997 | AB145: ACLY_ieu-b-109 | AC145: TRUE | AD145: reported | AE145: 2 | AF145: 1 | AG145: TRUE | AH145: =(Table5[[#This Row],[beta.exposure]]/Table5[[#This Row],[se.exposure]])^2 -> 7.166904426
A146: ACLY | B146: HDL cholesterol | C146: Glycated hemoglobin levels | D146: rs11652920 | E146: T | F146: C | G146: T | H146: C | I146: -0.0239138 | J146: -0.0045 | K146: 0.014366 | L146: 0.022 | M146: FALSE | N146: FALSE | O146: FALSE | P146: ebi-a-GCST90002244 | Q146: 17 | R146: 40091167 | S146: 0.0076 | T146: 0.6921 | U146: 146806 | V146: TRUE | W146: reported | X146: 17 | Y146: 40091167 | Z146: 0.00801729 | AA146: 0.00290001 | AB146: ACLY_ieu-b-109 | AC146: TRUE | AD146: reported | AE146: 2 | AF146: 1 | AG146: TRUE | AH146: =(Table5[[#This Row],[beta.exposure]]/Table5[[#This Row],[se.exposure]])^2 -> 8.896967401
A147: ACLY | B147: HDL cholesterol | C147: Glycated hemoglobin levels | D147: rs117726639 | E147: A | F147: G | G147: A | H147: G | I147: -0.0272416 | J147: -0.0058 | K147: 0.013227 | L147: 0.024 | M147: FALSE | N147: FALSE | O147: FALSE | P147: ebi-a-GCST90002244 | Q147: 17 | R147: 40110377 | S147: 0.0057 | T147: 0.3125 | U147: 146806 | V147: TRUE | W147: reported | X147: 17 | Y147: 40110377 | Z147: 0.00843624 | AA147: 0.0012 | AB147: ACLY_ieu-b-109 | AC147: TRUE | AD147: reported | AE147: 2 | AF147: 1 | AG147: TRUE | AH147: =(Table5[[#This Row],[beta.exposure]]/Table5[[#This Row],[se.exposure]])^2 -> 10.42719201
A148: ACLY | B148: HDL cholesterol | C148: Glycated hemoglobin levels | D148: rs117981684 | E148: A | F148: G | G148: A | H148: G | I148: -0.00246655 | J148: -0.0022 | K148: 0.018358 | L148: 0.02 | M148: FALSE | N148: FALSE | O148: FALSE | P148: ebi-a-GCST90002244 | Q148: 17 | R148: 40113010 | S148: 0.0053 | T148: 0.8602 | U148: 146806 | V148: TRUE | W148: reported | X148: 17 | Y148: 40113010 | Z148: 0.00709867 | AA148: 0.73 | AB148: ACLY_ieu-b-109 | AC148: TRUE | AD148: reported | AE148: 2 | AF148: 1 | AG148: TRUE | AH148: =(Table5[[#This Row],[beta.exposure]]/Table5[[#This Row],[se.exposure]])^2 -> 0.1207329667
A149: ACLY | B149: HDL cholesterol | C149: Glycated hemoglobin levels | D149: rs139992232 | E149: A | F149: G | G149: A | H149: G | I149: 0.0181932 | J149: 0.0036 | K149: 0.014179 | L149: 0.011 | M149: FALSE | N149: FALSE | O149: FALSE | P149: ebi-a-GCST90002244 | Q149: 17 | R149: 39954855 | S149: 0.0115 | T149: 0.4797 | U149: 146806 | V149: TRUE | W149: reported | X149: 17 | Y149: 39954855 | Z149: 0.00852011 | AA149: 0.0329997 | AB149: ACLY_ieu-b-109 | AC149: TRUE | AD149: reported | AE149: 2 | AF149: 1 | AG149: TRUE | AH149: =(Table5[[#This Row],[beta.exposure]]/Table5[[#This Row],[se.exposure]])^2 -> 4.559610908
A150: ACLY | B150: HDL cholesterol | C150: Glycated hemoglobin levels | D150: rs141387386 | E150: T | F150: G | G150: T | H150: G | I150: -0.00857679 | J150: 0.0066 | K150: 0.010802 | L150: 0.013 | M150: FALSE | N150: FALSE | O150: FALSE | P150: ebi-a-GCST90002244 | Q150: 17 | R150: 39975704 | S150: 0.0152 | T150: 0.842 | U150: 146806 | V150: TRUE | W150: reported | X150: 17 | Y150: 39975704 | Z150: 0.0100696 | AA150: 0.39 | AB150: ACLY_ieu-b-109 | AC150: TRUE | AD150: reported | AE150: 2 | AF150: 1 | AG150: TRUE | AH150: =(Table5[[#This Row],[beta.exposure]]/Table5[[#This Row],[se.exposure]])^2 -> 0.7254794497
A151: ACLY | B151: HDL cholesterol | C151: Glycated hemoglobin levels | D151: rs143382920 | E151: G | F151: A | G151: G | H151: A | I151: -0.00872184 | J151: -0.0039 | K151: 0.016657 | L151: 0.017 | M151: FALSE | N151: FALSE | O151: FALSE | P151: ebi-a-GCST90002244 | Q151: 17 | R151: 39990916 | S151: 0.0087 | T151: 0.662 | U151: 146806 | V151: TRUE | W151: reported | X151: 17 | Y151: 39990916 | Z151: 0.00751101 | AA151: 0.25 | AB151: ACLY_ieu-b-109 | AC151: TRUE | AD151: reported | AE151: 2 | AF151: 1 | AG151: TRUE | AH151: =(Table5[[#This Row],[beta.exposure]]/Table5[[#This Row],[se.exposure]])^2 -> 1.348402504
A152: ACLY | B152: HDL cholesterol | C152: Glycated hemoglobin levels | D152: rs145550321 | E152: T | F152: C | G152: T | H152: C | I152: -0.00778006 | J152: 0.011 | K152: 0.02951 | L152: 0.025 | M152: FALSE | N152: FALSE | O152: FALSE | P152: ebi-a-GCST90002244 | Q152: 17 | R152: 39980350 | S152: 0.0071 | T152: 0.0881008 | U152: 146806 | V152: TRUE | W152: reported | X152: 17 | Y152: 39980350 | Z152: 0.00581919 | AA152: 0.18 | AB152: ACLY_ieu-b-109 | AC152: TRUE | AD152: reported | AE152: 2 | AF152: 1 | AG152: TRUE | AH152: =(Table5[[#This Row],[beta.exposure]]/Table5[[#This Row],[se.exposure]])^2 -> 1.787478463
A153: ACLY | B153: HDL cholesterol | C153: Glycated hemoglobin levels | D153: rs184826248 | E153: T | F153: C | G153: T | H153: C | I153: -0.0191774 | J153: -0.0236 | K153: 0.012351 | L153: 0.013 | M153: FALSE | N153: FALSE | O153: FALSE | P153: ebi-a-GCST90002244 | Q153: 17 | R153: 40136478 | S153: 0.0108 | T153: 0.0109001 | U153: 146806 | V153: TRUE | W153: reported | X153: 17 | Y153: 40136478 | Z153: 0.00889096 | AA153: 0.0309999 | AB153: ACLY_ieu-b-109 | AC153: TRUE | AD153: reported | AE153: 2 | AF153: 1 | AG153: TRUE | AH153: =(Table5[[#This Row],[beta.exposure]]/Table5[[#This Row],[se.exposure]])^2 -> 4.652454568
A154: ACLY | B154: HDL cholesterol | C154: Glycated hemoglobin levels | D154: rs185282939 | E154: A | F154: G | G154: A | H154: G | I154: -0.00538923 | J154: -0.0202 | K154: 0.023452 | M154: FALSE | N154: FALSE | O154: FALSE | P154: ebi-a-GCST90002244 | Q154: 17 | R154: 40031726 | S154: 0.0173 | T154: 0.3035 | U154: 146806 | V154: TRUE | W154: reported | X154: 17 | Y154: 40031726 | Z154: 0.00630116 | AA154: 0.39 | AB154: ACLY_ieu-b-109 | AC154: TRUE | AD154: reported | AE154: 2 | AF154: 1 | AG154: TRUE | AH154: =(Table5[[#This Row],[beta.exposure]]/Table5[[#This Row],[se.exposure]])^2 -> 0.7314967864
A155: ACLY | B155: HDL cholesterol | C155: Glycated hemoglobin levels | D155: rs3887424 | E155: C | F155: T | G155: C | H155: T | I155: -0.00976261 | J155: -0.0023 | K155: 0.052699 | L155: 0.032 | M155: FALSE | N155: FALSE | O155: FALSE | P155: ebi-a-GCST90002244 | Q155: 17 | R155: 40026218 | S155: 0.005 | T155: 0.730999 | U155: 146806 | V155: TRUE | W155: reported | X155: 17 | Y155: 40026218 | Z155: 0.0042667 | AA155: 0.0219999 | AB155: ACLY_ieu-b-109 | AC155: TRUE | AD155: reported | AE155: 2 | AF155: 1 | AG155: TRUE | AH155: =(Table5[[#This Row],[beta.exposure]]/Table5[[#This Row],[se.exposure]])^2 -> 5.235373434
A156: ACLY | B156: HDL cholesterol | C156: Glycated hemoglobin levels | D156: rs41275671 | E156: C | F156: T | G156: C | H156: T | I156: 0.00827439 | J156: 0.0273 | K156: 0.015216 | L156: 0.014 | M156: FALSE | N156: FALSE | O156: FALSE | P156: ebi-a-GCST90002244 | Q156: 17 | R156: 40026697 | S156: 0.0175 | T156: 0.0317702 | U156: 146806 | V156: TRUE | W156: reported | X156: 17 | Y156: 40026697 | Z156: 0.00819415 | AA156: 0.31 | AB156: ACLY_ieu-b-109 | AC156: TRUE | AD156: reported | AE156: 2 | AF156: 1 | AG156: TRUE | AH156: =(Table5[[#This Row],[beta.exposure]]/Table5[[#This Row],[se.exposure]])^2 -> 1.019680594
A157: ACLY | B157: HDL cholesterol | C157: Glycated hemoglobin levels | D157: rs562072845 | E157: A | F157: G | G157: A | H157: G | I157: 0.0115088 | J157: -0.0044 | K157: 0.039805 | M157: FALSE | N157: FALSE | O157: FALSE | P157: ebi-a-GCST90002244 | Q157: 17 | R157: 40031748 | S157: 0.0134 | T157: 0.751299 | U157: 146806 | V157: TRUE | W157: reported | X157: 17 | Y157: 40031748 | Z157: 0.00507533 | AA157: 0.0230001 | AB157: ACLY_ieu-b-109 | AC157: TRUE | AD157: reported | AE157: 2 | AF157: 1 | AG157: TRUE | AH157: =(Table5[[#This Row],[beta.exposure]]/Table5[[#This Row],[se.exposure]])^2 -> 5.1419934
A158: ACLY | B158: HDL cholesterol | C158: Glycated hemoglobin levels | D158: rs80162003 | E158: G | F158: A | G158: G | H158: A | I158: 0.0238545 | J158: -0.003 | K158: 0.011613 | L158: 0.021 | M158: FALSE | N158: FALSE | O158: FALSE | P158: ebi-a-GCST90002244 | Q158: 17 | R158: 40106335 | S158: 0.0061 | T158: 0.3778 | U158: 146806 | V158: TRUE | W158: reported | X158: 17 | Y158: 40106335 | Z158: 0.00891055 | AA158: 0.00739997 | AB158: ACLY_ieu-b-109 | AC158: TRUE | AD158: reported | AE158: 2 | AF158: 1 | AG158: TRUE | AH158: =(Table5[[#This Row],[beta.exposure]]/Table5[[#This Row],[se.exposure]])^2 -> 7.166904426
A159: ACLY | B159: HDL cholesterol | C159: HOMA-B | D159: rs11079013 | E159: C | F159: A | G159: C | H159: A | I159: 0.0102964 | J159: 0.0033 | K159: 0.914274 | M159: FALSE | N159: FALSE | O159: FALSE | P159: ieu-b-117 | Q159: 17 | R159: 39947206 | S159: 0.0058 | T159: 0.5651 | U159: 36466 | V159: TRUE | W159: reported | X159: 17 | Y159: 39947206 | Z159: 0.00348458 | AA159: 0.00309999 | AB159: ACLY_ieu-b-109 | AC159: TRUE | AD159: reported | AE159: 2 | AF159: 1 | AG159: TRUE | AH159: =(Table5[[#This Row],[beta.exposure]]/Table5[[#This Row],[se.exposure]])^2 -> 8.731119506
A160: ACLY | B160: HDL cholesterol | C160: HOMA-IR | D160: rs11079013 | E160: C | F160: A | G160: C | H160: A | I160: 0.0102964 | J160: 0.012 | K160: 0.914274 | M160: FALSE | N160: FALSE | O160: FALSE | P160: ieu-b-118 | Q160: 17 | R160: 39947206 | S160: 0.0071 | T160: 0.0871305 | U160: 37037 | V160: TRUE | W160: reported | X160: 17 | Y160: 39947206 | Z160: 0.00348458 | AA160: 0.00309999 | AB160: ACLY_ieu-b-109 | AC160: TRUE | AD160: reported | AE160: 2 | AF160: 1 | AG160: TRUE | AH160: =(Table5[[#This Row],[beta.exposure]]/Table5[[#This Row],[se.exposure]])^2 -> 8.731119506
A161: ACLY | B161: HDL cholesterol | C161: random glucose | D161: rs11652920 | E161: T | F161: C | G161: T | H161: C | I161: -0.0239138 | J161: 0.000599411459 | K161: 0.014366 | L161: 0.0144 | M161: FALSE | N161: FALSE | O161: FALSE | P161: GCST90271557 | Q161: 17 | R161: 40091167 | S161: 0.001252988939 | T161: 0.6324 | U161: 397405 | V161: TRUE | W161: reported | X161: 17 | Y161: 40091167 | Z161: 0.00801729 | AA161: 0.00290001 | AB161: ACLY_ieu-b-109 | AC161: TRUE | AD161: reported | AE161: 2 | AF161: 1 | AG161: TRUE | AH161: =(Table5[[#This Row],[beta.exposure]]/Table5[[#This Row],[se.exposure]])^2 -> 8.896967401
A162: ACLY | B162: HDL cholesterol | C162: random glucose | D162: rs117726639 | E162: A | F162: G | G162: A | H162: G | I162: -0.0272416 | J162: -0.00333047394 | K162: 0.013227 | L162: 0.0133 | M162: FALSE | N162: FALSE | O162: FALSE | P162: GCST90271557 | Q162: 17 | R162: 40110377 | S162: 0.001307280297 | T162: 0.01085 | U162: 410824 | V162: TRUE | W162: reported | X162: 17 | Y162: 40110377 | Z162: 0.00843624 | AA162: 0.0012 | AB162: ACLY_ieu-b-109 | AC162: TRUE | AD162: reported | AE162: 2 | AF162: 1 | AG162: TRUE | AH162: =(Table5[[#This Row],[beta.exposure]]/Table5[[#This Row],[se.exposure]])^2 -> 10.42719201
A163: ACLY | B163: HDL cholesterol | C163: random glucose | D163: rs117981684 | E163: A | F163: G | G163: A | H163: G | I163: -0.00246655 | J163: 0.002144146288 | K163: 0.018358 | L163: 0.0183 | M163: FALSE | N163: FALSE | O163: FALSE | P163: GCST90271557 | Q163: 17 | R163: 40113010 | S163: 0.001099382447 | T163: 0.05114 | U163: 418468 | V163: TRUE | W163: reported | X163: 17 | Y163: 40113010 | Z163: 0.00709867 | AA163: 0.73 | AB163: ACLY_ieu-b-109 | AC163: TRUE | AD163: reported | AE163: 2 | AF163: 1 | AG163: TRUE | AH163: =(Table5[[#This Row],[beta.exposure]]/Table5[[#This Row],[se.exposure]])^2 -> 0.1207329667
A164: ACLY | B164: HDL cholesterol | C164: random glucose | D164: rs138766278 | E164: C | F164: G | G164: C | H164: G | I164: 0.0167867 | J164: 0.001280137382 | K164: 0.016312 | L164: 0.0164 | M164: FALSE | N164: TRUE | O164: FALSE | P164: GCST90271557 | Q164: 17 | R164: 40131428 | S164: 0.001260296089 | T164: 0.3098 | U164: 393841 | V164: TRUE | W164: reported | X164: 17 | Y164: 40131428 | Z164: 0.00805131 | AA164: 0.0369999 | AB164: ACLY_ieu-b-109 | AC164: TRUE | AD164: reported | AE164: 2 | AF164: 1 | AG164: TRUE | AH164: =(Table5[[#This Row],[beta.exposure]]/Table5[[#This Row],[se.exposure]])^2 -> 4.347079282
A165: ACLY | B165: HDL cholesterol | C165: random glucose | D165: rs139992232 | E165: A | F165: G | G165: A | H165: G | I165: 0.0181932 | J165: -0.000348104 | K165: 0.014179 | L165: 0.0142 | M165: FALSE | N165: FALSE | O165: FALSE | P165: GCST90271557 | Q165: 17 | R165: 39954855 | S165: 0.00134265 | T165: 0.7954 | U165: 380422 | V165: TRUE | W165: reported | X165: 17 | Y165: 39954855 | Z165: 0.00852011 | AA165: 0.0329997 | AB165: ACLY_ieu-b-109 | AC165: TRUE | AD165: reported | AE165: 2 | AF165: 1 | AG165: TRUE | AH165: =(Table5[[#This Row],[beta.exposure]]/Table5[[#This Row],[se.exposure]])^2 -> 4.559610908
A166: ACLY | B166: HDL cholesterol | C166: random glucose | D166: rs141387386 | E166: T | F166: G | G166: T | H166: G | I166: -0.00857679 | J166: -0.0021553 | K166: 0.010802 | L166: 0.0107 | M166: FALSE | N166: FALSE | O166: FALSE | P166: GCST90271557 | Q166: 17 | R166: 39975704 | S166: 0.0015982 | T166: 0.1775 | U166: 380422 | V166: TRUE | W166: reported | X166: 17 | Y166: 39975704 | Z166: 0.0100696 | AA166: 0.39 | AB166: ACLY_ieu-b-109 | AC166: TRUE | AD166: reported | AE166: 2 | AF166: 1 | AG166: TRUE | AH166: =(Table5[[#This Row],[beta.exposure]]/Table5[[#This Row],[se.exposure]])^2 -> 0.7254794497
A167: ACLY | B167: HDL cholesterol | C167: random glucose | D167: rs143382920 | E167: G | F167: A | G167: G | H167: A | I167: -0.00872184 | J167: 0.000435383133 | K167: 0.016657 | L167: 0.0165 | M167: FALSE | N167: FALSE | O167: FALSE | P167: GCST90271557 | Q167: 17 | R167: 39990916 | S167: 0.001165769511 | T167: 0.7088 | U167: 418468 | V167: TRUE | W167: reported | X167: 17 | Y167: 39990916 | Z167: 0.00751101 | AA167: 0.25 | AB167: ACLY_ieu-b-109 | AC167: TRUE | AD167: reported | AE167: 2 | AF167: 1 | AG167: TRUE | AH167: =(Table5[[#This Row],[beta.exposure]]/Table5[[#This Row],[se.exposure]])^2 -> 1.348402504
A168: ACLY | B168: HDL cholesterol | C168: random glucose | D168: rs143529430 | E168: T | F168: C | G168: T | H168: C | I168: 0.0103205 | J168: -0.000644847 | K168: 0.024519 | L168: 0.0245 | M168: FALSE | N168: FALSE | O168: FALSE | P168: GCST90271557 | Q168: 17 | R168: 40014772 | S168: 0.00104001 | T168: 0.5352 | U168: 380422 | V168: TRUE | W168: reported | X168: 17 | Y168: 40014772 | Z168: 0.00658122 | AA168: 0.12 | AB168: ACLY_ieu-b-109 | AC168: TRUE | AD168: reported | AE168: 2 | AF168: 1 | AG168: TRUE | AH168: =(Table5[[#This Row],[beta.exposure]]/Table5[[#This Row],[se.exposure]])^2 -> 2.459170603
A169: ACLY | B169: HDL cholesterol | C169: random glucose | D169: rs147290013 | E169: T | F169: C | G169: T | H169: C | I169: -0.0117064 | J169: -0.001359593908 | K169: 0.029128 | L169: 0.0291 | M169: FALSE | N169: FALSE | O169: FALSE | P169: GCST90271557 | Q169: 17 | R169: 40145226 | S169: 0.00090571652 | T169: 0.1333 | U169: 393841 | V169: TRUE | W169: reported | X169: 17 | Y169: 40145226 | Z169: 0.00577195 | AA169: 0.0430002 | AB169: ACLY_ieu-b-109 | AC169: TRUE | AD169: reported | AE169: 2 | AF169: 1 | AG169: TRUE | AH169: =(Table5[[#This Row],[beta.exposure]]/Table5[[#This Row],[se.exposure]])^2 -> 4.113406202
A170: ACLY | B170: HDL cholesterol | C170: random glucose | D170: rs184826248 | E170: T | F170: C | G170: T | H170: C | I170: -0.0191774 | J170: 0.000402658 | K170: 0.012351 | L170: 0.0123 | M170: FALSE | N170: FALSE | O170: FALSE | P170: GCST90271557 | Q170: 17 | R170: 40136478 | S170: 0.00140425 | T170: 0.7743 | U170: 380422 | V170: TRUE | W170: reported | X170: 17 | Y170: 40136478 | Z170: 0.00889096 | AA170: 0.0309999 | AB170: ACLY_ieu-b-109 | AC170: TRUE | AD170: reported | AE170: 2 | AF170: 1 | AG170: TRUE | AH170: =(Table5[[#This Row],[beta.exposure]]/Table5[[#This Row],[se.exposure]])^2 -> 4.652454568
A171: ACLY | B171: HDL cholesterol | C171: random glucose | D171: rs34684777 | E171: A | F171: G | G171: A | H171: G | I171: -0.00511306 | J171: -0.002303240317 | K171: 0.023625 | L171: 0.0236 | M171: FALSE | N171: FALSE | O171: FALSE | P171: GCST90271557 | Q171: 17 | R171: 40010070 | S171: 0.000979889642 | T171: 0.01875 | U171: 401485 | V171: TRUE | W171: reported | X171: 17 | Y171: 40010070 | Z171: 0.00626997 | AA171: 0.41 | AB171: ACLY_ieu-b-109 | AC171: TRUE | AD171: reported | AE171: 2 | AF171: 1 | AG171: TRUE | AH171: =(Table5[[#This Row],[beta.exposure]]/Table5[[#This Row],[se.exposure]])^2 -> 0.6650140982
A172: ACLY | B172: HDL cholesterol | C172: random glucose | D172: rs3887424 | E172: C | F172: T | G172: C | H172: T | I172: -0.00976261 | J172: -0.000797417786 | K172: 0.052699 | L172: 0.0527 | M172: FALSE | N172: FALSE | O172: FALSE | P172: GCST90271557 | Q172: 17 | R172: 40026218 | S172: 0.000668274693 | T172: 0.2328 | U172: 404693 | V172: TRUE | W172: reported | X172: 17 | Y172: 40026218 | Z172: 0.0042667 | AA172: 0.0219999 | AB172: ACLY_ieu-b-109 | AC172: TRUE | AD172: reported | AE172: 2 | AF172: 1 | AG172: TRUE | AH172: =(Table5[[#This Row],[beta.exposure]]/Table5[[#This Row],[se.exposure]])^2 -> 5.235373434
A173: ACLY | B173: HDL cholesterol | C173: random glucose | D173: rs41275671 | E173: C | F173: T | G173: C | H173: T | I173: 0.00827439 | J173: 0.000306234411 | K173: 0.015216 | L173: 0.0152 | M173: FALSE | N173: FALSE | O173: FALSE | P173: GCST90271557 | Q173: 17 | R173: 40026697 | S173: 0.001274196704 | T173: 0.8101 | U173: 410824 | V173: TRUE | W173: reported | X173: 17 | Y173: 40026697 | Z173: 0.00819415 | AA173: 0.31 | AB173: ACLY_ieu-b-109 | AC173: TRUE | AD173: reported | AE173: 2 | AF173: 1 | AG173: TRUE | AH173: =(Table5[[#This Row],[beta.exposure]]/Table5[[#This Row],[se.exposure]])^2 -> 1.019680594
A174: ACLY | B174: HDL cholesterol | C174: random glucose | D174: rs80162003 | E174: G | F174: A | G174: G | H174: A | I174: 0.0238545 | J174: 0.00035395722 | K174: 0.011613 | L174: 0.0117 | M174: FALSE | N174: FALSE | O174: FALSE | P174: GCST90271557 | Q174: 17 | R174: 40106335 | S174: 0.001377669773 | T174: 0.7972 | U174: 418468 | V174: TRUE | W174: reported | X174: 17 | Y174: 40106335 | Z174: 0.00891055 | AA174: 0.00739997 | AB174: ACLY_ieu-b-109 | AC174: TRUE | AD174: reported | AE174: 2 | AF174: 1 | AG174: TRUE | AH174: =(Table5[[#This Row],[beta.exposure]]/Table5[[#This Row],[se.exposure]])^2 -> 7.166904426
A175: ACLY | B175: HDL cholesterol | C175: T2D GWAS DIAMANTE | D175: rs11652920 | E175: T | F175: C | G175: T | H175: C | I175: -0.0239138 | J175: -0.0261 | K175: 0.014366 | L175: 0.0241 | M175: FALSE | N175: FALSE | O175: FALSE | P175: kPjrgy | Q175: 17 | R175: 40091167 | S175: 0.0251 | T175: 0.299 | U175: 251739.5 | V175: TRUE | W175: reported | X175: 17 | Y175: 40091167 | Z175: 0.00801729 | AA175: 0.00290001 | AB175: ACLY_ieu-b-109 | AC175: TRUE | AD175: reported | AE175: 2 | AF175: 1 | AG175: TRUE | AH175: =(Table5[[#This Row],[beta.exposure]]/Table5[[#This Row],[se.exposure]])^2 -> 8.896967401
A176: ACLY | B176: HDL cholesterol | C176: T2D GWAS DIAMANTE | D176: rs117726639 | E176: A | F176: G | G176: A | H176: G | I176: -0.0272416 | J176: -0.0116 | K176: 0.013227 | L176: 0.0234 | M176: FALSE | N176: FALSE | O176: FALSE | P176: kPjrgy | Q176: 17 | R176: 40110377 | S176: 0.0248 | T176: 0.6402 | U176: 251739.5 | V176: TRUE | W176: reported | X176: 17 | Y176: 40110377 | Z176: 0.00843624 | AA176: 0.0012 | AB176: ACLY_ieu-b-109 | AC176: TRUE | AD176: reported | AE176: 2 | AF176: 1 | AG176: TRUE | AH176: =(Table5[[#This Row],[beta.exposure]]/Table5[[#This Row],[se.exposure]])^2 -> 10.42719201
A177: ACLY | B177: HDL cholesterol | C177: T2D GWAS DIAMANTE | D177: rs117981684 | E177: A | F177: G | G177: A | H177: G | I177: -0.00246655 | J177: 0.0226 | K177: 0.018358 | L177: 0.0176 | M177: FALSE | N177: FALSE | O177: FALSE | P177: kPjrgy | Q177: 17 | R177: 40113010 | S177: 0.0243 | T177: 0.3522 | U177: 251739.5 | V177: TRUE | W177: reported | X177: 17 | Y177: 40113010 | Z177: 0.00709867 | AA177: 0.73 | AB177: ACLY_ieu-b-109 | AC177: TRUE | AD177: reported | AE177: 2 | AF177: 1 | AG177: TRUE | AH177: =(Table5[[#This Row],[beta.exposure]]/Table5[[#This Row],[se.exposure]])^2 -> 0.1207329667
A178: ACLY | B178: HDL cholesterol | C178: T2D GWAS DIAMANTE | D178: rs138766278 | E178: C | F178: G | G178: C | H178: G | I178: 0.0167867 | J178: -0.0353 | K178: 0.016312 | L178: 0.0165 | M178: FALSE | N178: TRUE | O178: FALSE | P178: kPjrgy | Q178: 17 | R178: 40131428 | S178: 0.0289 | T178: 0.2219 | U178: 251739.5 | V178: TRUE | W178: reported | X178: 17 | Y178: 40131428 | Z178: 0.00805131 | AA178: 0.0369999 | AB178: ACLY_ieu-b-109 | AC178: TRUE | AD178: reported | AE178: 2 | AF178: 1 | AG178: TRUE | AH178: =(Table5[[#This Row],[beta.exposure]]/Table5[[#This Row],[se.exposure]])^2 -> 4.347079282
A179: ACLY | B179: HDL cholesterol | C179: T2D GWAS DIAMANTE | D179: rs139992232 | E179: A | F179: G | G179: A | H179: G | I179: 0.0181932 | J179: -0.012 | K179: 0.014179 | L179: 0.0125 | M179: FALSE | N179: FALSE | O179: FALSE | P179: kPjrgy | Q179: 17 | R179: 39954855 | S179: 0.0328 | T179: 0.7142 | U179: 251739.5 | V179: TRUE | W179: reported | X179: 17 | Y179: 39954855 | Z179: 0.00852011 | AA179: 0.0329997 | AB179: ACLY_ieu-b-109 | AC179: TRUE | AD179: reported | AE179: 2 | AF179: 1 | AG179: TRUE | AH179: =(Table5[[#This Row],[beta.exposure]]/Table5[[#This Row],[se.exposure]])^2 -> 4.559610908
A180: ACLY | B180: HDL cholesterol | C180: T2D GWAS DIAMANTE | D180: rs141387386 | E180: T | F180: G | G180: T | H180: G | I180: -0.00857679 | J180: 0.0312 | K180: 0.010802 | L180: 0.0123 | M180: FALSE | N180: FALSE | O180: FALSE | P180: kPjrgy | Q180: 17 | R180: 39975704 | S180: 0.0336 | T180: 0.3532 | U180: 251739.5 | V180: TRUE | W180: reported | X180: 17 | Y180: 39975704 | Z180: 0.0100696 | AA180: 0.39 | AB180: ACLY_ieu-b-109 | AC180: TRUE | AD180: reported | AE180: 2 | AF180: 1 | AG180: TRUE | AH180: =(Table5[[#This Row],[beta.exposure]]/Table5[[#This Row],[se.exposure]])^2 -> 0.7254794497
A181: ACLY | B181: HDL cholesterol | C181: T2D GWAS DIAMANTE | D181: rs143382920 | E181: G | F181: A | G181: G | H181: A | I181: -0.00872184 | J181: 0.0438 | K181: 0.016657 | L181: 0.0173 | M181: FALSE | N181: FALSE | O181: FALSE | P181: kPjrgy | Q181: 17 | R181: 39990916 | S181: 0.0264 | T181: 0.09691 | U181: 251739.5 | V181: TRUE | W181: reported | X181: 17 | Y181: 39990916 | Z181: 0.00751101 | AA181: 0.25 | AB181: ACLY_ieu-b-109 | AC181: TRUE | AD181: reported | AE181: 2 | AF181: 1 | AG181: TRUE | AH181: =(Table5[[#This Row],[beta.exposure]]/Table5[[#This Row],[se.exposure]])^2 -> 1.348402504
A182: ACLY | B182: HDL cholesterol | C182: T2D GWAS DIAMANTE | D182: rs143529430 | E182: T | F182: C | G182: T | H182: C | I182: 0.0103205 | J182: -0.0111 | K182: 0.024519 | L182: 0.0228 | M182: FALSE | N182: FALSE | O182: FALSE | P182: kPjrgy | Q182: 17 | R182: 40014772 | S182: 0.0248 | T182: 0.6546 | U182: 251739.5 | V182: TRUE | W182: reported | X182: 17 | Y182: 40014772 | Z182: 0.00658122 | AA182: 0.12 | AB182: ACLY_ieu-b-109 | AC182: TRUE | AD182: reported | AE182: 2 | AF182: 1 | AG182: TRUE | AH182: =(Table5[[#This Row],[beta.exposure]]/Table5[[#This Row],[se.exposure]])^2 -> 2.459170603
A183: ACLY | B183: HDL cholesterol | C183: T2D GWAS DIAMANTE | D183: rs147290013 | E183: T | F183: C | G183: T | H183: C | I183: -0.0117064 | J183: 0.0332 | K183: 0.029128 | L183: 0.0279 | M183: FALSE | N183: FALSE | O183: FALSE | P183: kPjrgy | Q183: 17 | R183: 40145226 | S183: 0.0205 | T183: 0.1057 | U183: 251739.5 | V183: TRUE | W183: reported | X183: 17 | Y183: 40145226 | Z183: 0.00577195 | AA183: 0.0430002 | AB183: ACLY_ieu-b-109 | AC183: TRUE | AD183: reported | AE183: 2 | AF183: 1 | AG183: TRUE | AH183: =(Table5[[#This Row],[beta.exposure]]/Table5[[#This Row],[se.exposure]])^2 -> 4.113406202
A184: ACLY | B184: HDL cholesterol | C184: T2D GWAS DIAMANTE | D184: rs184826248 | E184: T | F184: C | G184: T | H184: C | I184: -0.0191774 | J184: 0.065 | K184: 0.012351 | L184: 0.0112 | M184: FALSE | N184: FALSE | O184: FALSE | P184: kPjrgy | Q184: 17 | R184: 40136478 | S184: 0.0373 | T184: 0.08119 | U184: 251739.5 | V184: TRUE | W184: reported | X184: 17 | Y184: 40136478 | Z184: 0.00889096 | AA184: 0.0309999 | AB184: ACLY_ieu-b-109 | AC184: TRUE | AD184: reported | AE184: 2 | AF184: 1 | AG184: TRUE | AH184: =(Table5[[#This Row],[beta.exposure]]/Table5[[#This Row],[se.exposure]])^2 -> 4.652454568
A185: ACLY | B185: HDL cholesterol | C185: T2D GWAS DIAMANTE | D185: rs34684777 | E185: A | F185: G | G185: A | H185: G | I185: -0.00511306 | J185: 0.0262 | K185: 0.023625 | L185: 0.0232 | M185: FALSE | N185: FALSE | O185: FALSE | P185: kPjrgy | Q185: 17 | R185: 40010070 | S185: 0.0223 | T185: 0.2401 | U185: 251739.5 | V185: TRUE | W185: reported | X185: 17 | Y185: 40010070 | Z185: 0.00626997 | AA185: 0.41 | AB185: ACLY_ieu-b-109 | AC185: TRUE | AD185: reported | AE185: 2 | AF185: 1 | AG185: TRUE | AH185: =(Table5[[#This Row],[beta.exposure]]/Table5[[#This Row],[se.exposure]])^2 -> 0.6650140982
A186: ACLY | B186: HDL cholesterol | C186: T2D GWAS DIAMANTE | D186: rs3887424 | E186: C | F186: T | G186: C | H186: T | I186: -0.00976261 | J186: 0.0236 | K186: 0.052699 | L186: 0.0476 | M186: FALSE | N186: FALSE | O186: FALSE | P186: kPjrgy | Q186: 17 | R186: 40026218 | S186: 0.016 | T186: 0.1407 | U186: 251739.5 | V186: TRUE | W186: reported | X186: 17 | Y186: 40026218 | Z186: 0.0042667 | AA186: 0.0219999 | AB186: ACLY_ieu-b-109 | AC186: TRUE | AD186: reported | AE186: 2 | AF186: 1 | AG186: TRUE | AH186: =(Table5[[#This Row],[beta.exposure]]/Table5[[#This Row],[se.exposure]])^2 -> 5.235373434
A187: ACLY | B187: HDL cholesterol | C187: T2D GWAS DIAMANTE | D187: rs41275671 | E187: C | F187: T | G187: C | H187: T | I187: 0.00827439 | J187: 0.0449 | K187: 0.015216 | L187: 0.0197 | M187: FALSE | N187: FALSE | O187: FALSE | P187: kPjrgy | Q187: 17 | R187: 40026697 | S187: 0.0274 | T187: 0.1017 | U187: 251739.5 | V187: TRUE | W187: reported | X187: 17 | Y187: 40026697 | Z187: 0.00819415 | AA187: 0.31 | AB187: ACLY_ieu-b-109 | AC187: TRUE | AD187: reported | AE187: 2 | AF187: 1 | AG187: TRUE | AH187: =(Table5[[#This Row],[beta.exposure]]/Table5[[#This Row],[se.exposure]])^2 -> 1.019680594
A188: ACLY | B188: HDL cholesterol | C188: T2D GWAS DIAMANTE | D188: rs80162003 | E188: G | F188: A | G188: G | H188: A | I188: 0.0238545 | J188: 0.0784 | K188: 0.011613 | L188: 0.0222 | M188: FALSE | N188: FALSE | O188: FALSE | P188: kPjrgy | Q188: 17 | R188: 40106335 | S188: 0.026 | T188: 0.002534 | U188: 251739.5 | V188: TRUE | W188: reported | X188: 17 | Y188: 40106335 | Z188: 0.00891055 | AA188: 0.00739997 | AB188: ACLY_ieu-b-109 | AC188: TRUE | AD188: reported | AE188: 2 | AF188: 1 | AG188: TRUE | AH188: =(Table5[[#This Row],[beta.exposure]]/Table5[[#This Row],[se.exposure]])^2 -> 7.166904426
A189: ACLY | B189: HDL cholesterol | C189: T2D_FinnGen_r10 | D189: rs11652920 | E189: T | F189: C | G189: T | H189: C | I189: -0.0239138 | J189: -0.0187171 | K189: 0.014366 | L189: 0.0548685 | M189: FALSE | N189: FALSE | O189: FALSE | P189: aeAC7B | Q189: 17 | R189: 40091167 | S189: 0.0144314 | T189: 0.19464 | U189: 109000.14 | V189: TRUE | W189: reported | X189: 17 | Y189: 40091167 | Z189: 0.00801729 | AA189: 0.00290001 | AB189: ACLY_ieu-b-109 | AC189: TRUE | AD189: reported | AE189: 2 | AF189: 1 | AG189: TRUE | AH189: =(Table5[[#This Row],[beta.exposure]]/Table5[[#This Row],[se.exposure]])^2 -> 8.896967401
A190: ACLY | B190: HDL cholesterol | C190: T2D_FinnGen_r10 | D190: rs117726639 | E190: A | F190: G | G190: A | H190: G | I190: -0.0272416 | J190: 0.000495925 | K190: 0.013227 | L190: 0.0467176 | M190: FALSE | N190: FALSE | O190: FALSE | P190: aeAC7B | Q190: 17 | R190: 40110377 | S190: 0.0155556 | T190: 0.974567 | U190: 109000.14 | V190: TRUE | W190: reported | X190: 17 | Y190: 40110377 | Z190: 0.00843624 | AA190: 0.0012 | AB190: ACLY_ieu-b-109 | AC190: TRUE | AD190: reported | AE190: 2 | AF190: 1 | AG190: TRUE | AH190: =(Table5[[#This Row],[beta.exposure]]/Table5[[#This Row],[se.exposure]])^2 -> 10.42719201
A191: ACLY | B191: HDL cholesterol | C191: T2D_FinnGen_r10 | D191: rs117981684 | E191: A | F191: G | G191: A | H191: G | I191: -0.00246655 | J191: -0.0227593 | K191: 0.018358 | L191: 0.0151205 | M191: FALSE | N191: FALSE | O191: FALSE | P191: aeAC7B | Q191: 17 | R191: 40113010 | S191: 0.0269478 | T191: 0.398351 | U191: 109000.14 | V191: TRUE | W191: reported | X191: 17 | Y191: 40113010 | Z191: 0.00709867 | AA191: 0.73 | AB191: ACLY_ieu-b-109 | AC191: TRUE | AD191: reported | AE191: 2 | AF191: 1 | AG191: TRUE | AH191: =(Table5[[#This Row],[beta.exposure]]/Table5[[#This Row],[se.exposure]])^2 -> 0.1207329667
A192: ACLY | B192: HDL cholesterol | C192: T2D_FinnGen_r10 | D192: rs139992232 | E192: A | F192: G | G192: A | H192: G | I192: 0.0181932 | J192: 0.00239801 | K192: 0.014179 | L192: 0.0138754 | M192: FALSE | N192: FALSE | O192: FALSE | P192: aeAC7B | Q192: 17 | R192: 39954855 | S192: 0.0282349 | T192: 0.932317 | U192: 109000.14 | V192: TRUE | W192: reported | X192: 17 | Y192: 39954855 | Z192: 0.00852011 | AA192: 0.0329997 | AB192: ACLY_ieu-b-109 | AC192: TRUE | AD192: reported | AE192: 2 | AF192: 1 | AG192: TRUE | AH192: =(Table5[[#This Row],[beta.exposure]]/Table5[[#This Row],[se.exposure]])^2 -> 4.559610908
A193: ACLY | B193: HDL cholesterol | C193: T2D_FinnGen_r10 | D193: rs141387386 | E193: T | F193: G | G193: T | H193: G | I193: -0.00857679 | J193: 0.0288376 | K193: 0.010802 | L193: 0.00919556 | M193: FALSE | N193: FALSE | O193: FALSE | P193: aeAC7B | Q193: 17 | R193: 39975704 | S193: 0.0347697 | T193: 0.406883 | U193: 109000.14 | V193: TRUE | W193: reported | X193: 17 | Y193: 39975704 | Z193: 0.0100696 | AA193: 0.39 | AB193: ACLY_ieu-b-109 | AC193: TRUE | AD193: reported | AE193: 2 | AF193: 1 | AG193: TRUE | AH193: =(Table5[[#This Row],[beta.exposure]]/Table5[[#This Row],[se.exposure]])^2 -> 0.7254794497
A194: ACLY | B194: HDL cholesterol | C194: T2D_FinnGen_r10 | D194: rs143382920 | E194: G | F194: A | G194: G | H194: A | I194: -0.00872184 | J194: -0.0474635 | K194: 0.016657 | L194: 0.00692783 | M194: FALSE | N194: FALSE | O194: FALSE | P194: aeAC7B | Q194: 17 | R194: 39990916 | S194: 0.0399144 | T194: 0.234387 | U194: 109000.14 | V194: TRUE | W194: reported | X194: 17 | Y194: 39990916 | Z194: 0.00751101 | AA194: 0.25 | AB194: ACLY_ieu-b-109 | AC194: TRUE | AD194: reported | AE194: 2 | AF194: 1 | AG194: TRUE | AH194: =(Table5[[#This Row],[beta.exposure]]/Table5[[#This Row],[se.exposure]])^2 -> 1.348402504
A195: ACLY | B195: HDL cholesterol | C195: T2D_FinnGen_r10 | D195: rs145550321 | E195: T | F195: C | G195: T | H195: C | I195: -0.00778006 | J195: -0.00393795 | K195: 0.02951 | L195: 0.0155699 | M195: FALSE | N195: FALSE | O195: FALSE | P195: aeAC7B | Q195: 17 | R195: 39980350 | S195: 0.0267597 | T195: 0.883006 | U195: 109000.14 | V195: TRUE | W195: reported | X195: 17 | Y195: 39980350 | Z195: 0.00581919 | AA195: 0.18 | AB195: ACLY_ieu-b-109 | AC195: TRUE | AD195: reported | AE195: 2 | AF195: 1 | AG195: TRUE | AH195: =(Table5[[#This Row],[beta.exposure]]/Table5[[#This Row],[se.exposure]])^2 -> 1.787478463
A196: ACLY | B196: HDL cholesterol | C196: T2D_FinnGen_r10 | D196: rs184826248 | E196: T | F196: C | G196: T | H196: C | I196: -0.0191774 | J196: -0.072233 | K196: 0.012351 | L196: 0.0018105 | M196: FALSE | N196: FALSE | O196: FALSE | P196: aeAC7B | Q196: 17 | R196: 40136478 | S196: 0.0779781 | T196: 0.354278 | U196: 109000.14 | V196: TRUE | W196: reported | X196: 17 | Y196: 40136478 | Z196: 0.00889096 | AA196: 0.0309999 | AB196: ACLY_ieu-b-109 | AC196: TRUE | AD196: reported | AE196: 2 | AF196: 1 | AG196: TRUE | AH196: =(Table5[[#This Row],[beta.exposure]]/Table5[[#This Row],[se.exposure]])^2 -> 4.652454568
A197: ACLY | B197: HDL cholesterol | C197: T2D_FinnGen_r10 | D197: rs34684777 | E197: A | F197: G | G197: A | H197: G | I197: -0.00511306 | J197: 0.0154988 | K197: 0.023625 | L197: 0.00878504 | M197: FALSE | N197: FALSE | O197: FALSE | P197: aeAC7B | Q197: 17 | R197: 40010070 | S197: 0.0353285 | T197: 0.660875 | U197: 109000.14 | V197: TRUE | W197: reported | X197: 17 | Y197: 40010070 | Z197: 0.00626997 | AA197: 0.41 | AB197: ACLY_ieu-b-109 | AC197: TRUE | AD197: reported | AE197: 2 | AF197: 1 | AG197: TRUE | AH197: =(Table5[[#This Row],[beta.exposure]]/Table5[[#This Row],[se.exposure]])^2 -> 0.6650140982
A198: ACLY | B198: HDL cholesterol | C198: T2D_FinnGen_r10 | D198: rs3887424 | E198: C | F198: T | G198: C | H198: T | I198: -0.00976261 | J198: 0.0243667 | K198: 0.052699 | L198: 0.0168415 | M198: FALSE | N198: FALSE | O198: FALSE | P198: aeAC7B | Q198: 17 | R198: 40026218 | S198: 0.0254329 | T198: 0.338024 | U198: 109000.14 | V198: TRUE | W198: reported | X198: 17 | Y198: 40026218 | Z198: 0.0042667 | AA198: 0.0219999 | AB198: ACLY_ieu-b-109 | AC198: TRUE | AD198: reported | AE198: 2 | AF198: 1 | AG198: TRUE | AH198: =(Table5[[#This Row],[beta.exposure]]/Table5[[#This Row],[se.exposure]])^2 -> 5.235373434
A199: ACLY | B199: HDL cholesterol | C199: T2D_FinnGen_r10 | D199: rs41275671 | E199: C | F199: T | G199: C | H199: T | I199: 0.00827439 | J199: -0.0410489 | K199: 0.015216 | L199: 0.0154935 | M199: FALSE | N199: FALSE | O199: FALSE | P199: aeAC7B | Q199: 17 | R199: 40026697 | S199: 0.0268953 | T199: 0.126947 | U199: 109000.14 | V199: TRUE | W199: reported | X199: 17 | Y199: 40026697 | Z199: 0.00819415 | AA199: 0.31 | AB199: ACLY_ieu-b-109 | AC199: TRUE | AD199: reported | AE199: 2 | AF199: 1 | AG199: TRUE | AH199: =(Table5[[#This Row],[beta.exposure]]/Table5[[#This Row],[se.exposure]])^2 -> 1.019680594
A200: ACLY | B200: HDL cholesterol | C200: T2D_FinnGen_r10 | D200: rs562072845 | E200: A | F200: G | G200: A | H200: G | I200: 0.0115088 | J200: -0.00275336 | K200: 0.039805 | L200: 0.0453306 | M200: FALSE | N200: FALSE | O200: FALSE | P200: aeAC7B | Q200: 17 | R200: 40031748 | S200: 0.0158537 | T200: 0.862122 | U200: 109000.14 | V200: TRUE | W200: reported | X200: 17 | Y200: 40031748 | Z200: 0.00507533 | AA200: 0.0230001 | AB200: ACLY_ieu-b-109 | AC200: TRUE | AD200: reported | AE200: 2 | AF200: 1 | AG200: TRUE | AH200: =(Table5[[#This Row],[beta.exposure]]/Table5[[#This Row],[se.exposure]])^2 -> 5.1419934
... 2050 more rows

Sheet S2b. lenient clumping
A1: Table S2b. MR instruments (lenient clumping LD r2<0.2 within 1Mb)
A2: gene.exposure | B2: weighting_biomarker | C2: outcome | D2: SNP | E2: effect_allele.exposure | F2: other_allele.exposure | G2: effect_allele.outcome | H2: other_allele.outcome | I2: beta.exposure | J2: beta.outcome | K2: eaf.exposure | L2: eaf.outcome | M2: remove | N2: palindromic | O2: ambiguous | P2: id.outcome | Q2: chr.outcome | R2: pos.outcome | S2: se.outcome | T2: pval.outcome | U2: samplesize.outcome | V2: mr_keep.outcome | W2: pval_origin.outcome | X2: chr.exposure | Y2: pos.exposure | Z2: se.exposure | AA2: pval.exposure | AB2: id.exposure | AC2: mr_keep.exposure | AD2: pval_origin.exposure | AE2: action | AF2: SNP_index | AG2: mr_keep | AH2: F
A3: ACLY | B3: apolipoprotein A-I | C3: CAD GWAS Cardiogram | D3: rs11079028 | E3: A | F3: G | G3: A | H3: G | I3: 0.000641469 | J3: 0.00625137 | K3: 0.1993 | L3: 0.22 | M3: FALSE | N3: FALSE | O3: FALSE | P3: Blrstk | Q3: 17 | R3: 40126133 | S3: 0.0071530756 | T3: 0.3822 | U3: 1079050 | V3: TRUE | W3: reported | X3: 17 | Y3: 40126133 | Z3: 0.00284507 | AA3: 0.82 | AB3: ACLY_ieu-b-107 | AC3: TRUE | AD3: reported | AE3: 2 | AF3: 1 | AG3: TRUE | AH3: =(Table10[[#This Row],[beta.exposure]]/Table10[[#This Row],[se.exposure]])^2 -> 0.05083530506
A4: ACLY | B4: apolipoprotein A-I | C4: CAD GWAS Cardiogram | D4: rs113401712 | E4: T | F4: G | G4: T | H4: G | I4: -0.0112334 | J4: 0.04804158 | K4: 0.028251 | L4: 0.0354 | M4: FALSE | N4: FALSE | O4: FALSE | P4: Blrstk | Q4: 17 | R4: 40116342 | S4: 0.016398549 | T4: 0.003394 | U4: 1100570 | V4: TRUE | W4: reported | X4: 17 | Y4: 40116342 | Z4: 0.00604499 | AA4: 0.0629999 | AB4: ACLY_ieu-b-107 | AC4: TRUE | AD4: reported | AE4: 2 | AF4: 1 | AG4: TRUE | AH4: =(Table10[[#This Row],[beta.exposure]]/Table10[[#This Row],[se.exposure]])^2 -> 3.453275867
A5: ACLY | B5: apolipoprotein A-I | C5: CAD GWAS Cardiogram | D5: rs113608552 | E5: C | F5: T | G5: C | H5: T | I5: -0.00834957 | J5: -0.00383244 | K5: 0.017079 | L5: 0.0182 | M5: FALSE | N5: FALSE | O5: FALSE | P5: Blrstk | Q5: 17 | R5: 40124686 | S5: 0.021591548 | T5: 0.8591 | U5: 1097730 | V5: TRUE | W5: reported | X5: 17 | Y5: 40124686 | Z5: 0.00782557 | AA5: 0.29 | AB5: ACLY_ieu-b-107 | AC5: TRUE | AD5: reported | AE5: 2 | AF5: 1 | AG5: TRUE | AH5: =(Table10[[#This Row],[beta.exposure]]/Table10[[#This Row],[se.exposure]])^2 -> 1.138403596
A6: ACLY | B6: apolipoprotein A-I | C6: CAD GWAS Cardiogram | D6: rs11653117 | E6: T | F6: C | G6: T | H6: C | I6: 0.0110806 | J6: -0.00434947 | K6: 0.050732 | L6: 0.0678 | M6: FALSE | N6: FALSE | O6: FALSE | P6: Blrstk | Q6: 17 | R6: 40115739 | S6: 0.011957466 | T6: 0.716 | U6: 1102930 | V6: TRUE | W6: reported | X6: 17 | Y6: 40115739 | Z6: 0.00460813 | AA6: 0.016 | AB6: ACLY_ieu-b-107 | AC6: TRUE | AD6: reported | AE6: 2 | AF6: 1 | AG6: TRUE | AH6: =(Table10[[#This Row],[beta.exposure]]/Table10[[#This Row],[se.exposure]])^2 -> 5.781986989
A7: ACLY | B7: apolipoprotein A-I | C7: CAD GWAS Cardiogram | D7: rs117366719 | E7: A | F7: G | G7: A | H7: G | I7: 0.000882769 | J7: -0.03085206 | K7: 0.016872 | L7: 0.0163 | M7: FALSE | N7: FALSE | O7: FALSE | P7: Blrstk | Q7: 17 | R7: 40113958 | S7: 0.023197003 | T7: 0.1835 | U7: 1103700 | V7: TRUE | W7: reported | X7: 17 | Y7: 40113958 | Z7: 0.00821984 | AA7: 0.91 | AB7: ACLY_ieu-b-107 | AC7: TRUE | AD7: reported | AE7: 2 | AF7: 1 | AG7: TRUE | AH7: =(Table10[[#This Row],[beta.exposure]]/Table10[[#This Row],[se.exposure]])^2 -> 0.01153366729
A8: ACLY | B8: apolipoprotein A-I | C8: CAD GWAS Cardiogram | D8: rs117675515 | E8: A | F8: C | G8: A | H8: C | I8: 0.0124797 | J8: -0.02406613 | K8: 0.026442 | L8: 0.0248 | M8: FALSE | N8: FALSE | O8: FALSE | P8: Blrstk | Q8: 17 | R8: 39984363 | S8: 0.020371005 | T8: 0.2374 | U8: 945369 | V8: TRUE | W8: reported | X8: 17 | Y8: 39984363 | Z8: 0.00612521 | AA8: 0.0420001 | AB8: ACLY_ieu-b-107 | AC8: TRUE | AD8: reported | AE8: 2 | AF8: 1 | AG8: TRUE | AH8: =(Table10[[#This Row],[beta.exposure]]/Table10[[#This Row],[se.exposure]])^2 -> 4.151129913
A9: ACLY | B9: apolipoprotein A-I | C9: CAD GWAS Cardiogram | D9: rs117889290 | E9: C | F9: T | G9: C | H9: T | I9: 0.00918465 | J9: -0.03902502 | K9: 0.043417 | L9: 0.0407 | M9: FALSE | N9: FALSE | O9: FALSE | P9: Blrstk | Q9: 17 | R9: 40015853 | S9: 0.013721404 | T9: 0.004454 | U9: 1128500 | V9: TRUE | W9: reported | X9: 17 | Y9: 40015853 | Z9: 0.00491387 | AA9: 0.0619998 | AB9: ACLY_ieu-b-107 | AC9: TRUE | AD9: reported | AE9: 2 | AF9: 1 | AG9: TRUE | AH9: =(Table10[[#This Row],[beta.exposure]]/Table10[[#This Row],[se.exposure]])^2 -> 3.493637955
A10: ACLY | B10: apolipoprotein A-I | C10: CAD GWAS Cardiogram | D10: rs12936463 | E10: G | F10: C | G10: G | H10: C | I10: 0.0076641 | J10: -0.01302987 | K10: 0.019368 | L10: 0.0188 | M10: FALSE | N10: TRUE | O10: FALSE | P10: Blrstk | Q10: 17 | R10: 39926898 | S10: 0.022400081 | T10: 0.5608 | U10: 967799 | V10: TRUE | W10: reported | X10: 17 | Y10: 39926898 | Z10: 0.00746866 | AA10: 0.3 | AB10: ACLY_ieu-b-107 | AC10: TRUE | AD10: reported | AE10: 2 | AF10: 1 | AG10: TRUE | AH10: =(Table10[[#This Row],[beta.exposure]]/Table10[[#This Row],[se.exposure]])^2 -> 1.053020793
A11: ACLY | B11: apolipoprotein A-I | C11: CAD GWAS Cardiogram | D11: rs139414355 | E11: T | F11: C | G11: T | H11: C | I11: 0.0110876 | J11: -0.02344785 | K11: 0.019073 | L11: 0.0188 | M11: FALSE | N11: FALSE | O11: FALSE | P11: Blrstk | Q11: 17 | R11: 40145953 | S11: 0.02003435 | T11: 0.2418 | U11: 1094980 | V11: TRUE | W11: reported | X11: 17 | Y11: 40145953 | Z11: 0.00721699 | AA11: 0.12 | AB11: ACLY_ieu-b-107 | AC11: TRUE | AD11: reported | AE11: 2 | AF11: 1 | AG11: TRUE | AH11: =(Table10[[#This Row],[beta.exposure]]/Table10[[#This Row],[se.exposure]])^2 -> 2.360276555
A12: ACLY | B12: apolipoprotein A-I | C12: CAD GWAS Cardiogram | D12: rs141387386 | E12: T | F12: G | G12: T | H12: G | I12: -0.0111599 | J12: -0.07272149 | K12: 0.010815 | L12: 0.0111 | M12: FALSE | N12: FALSE | O12: FALSE | P12: Blrstk | Q12: 17 | R12: 39975704 | S12: 0.033412179 | T12: 0.02952 | U12: 914528 | V12: TRUE | W12: reported | X12: 17 | Y12: 39975704 | Z12: 0.0103556 | AA12: 0.28 | AB12: ACLY_ieu-b-107 | AC12: TRUE | AD12: reported | AE12: 2 | AF12: 1 | AG12: TRUE | AH12: =(Table10[[#This Row],[beta.exposure]]/Table10[[#This Row],[se.exposure]])^2 -> 1.16136858
A13: ACLY | B13: apolipoprotein A-I | C13: CAD GWAS Cardiogram | D13: rs142229145 | E13: G | F13: A | G13: G | H13: A | I13: -0.0114882 | J13: -0.03313856 | K13: 0.024157 | L13: 0.024 | M13: FALSE | N13: FALSE | O13: FALSE | P13: Blrstk | Q13: 17 | R13: 39936934 | S13: 0.020343941 | T13: 0.1033 | U13: 967799 | V13: TRUE | W13: reported | X13: 17 | Y13: 39936934 | Z13: 0.00688649 | AA13: 0.0949992 | AB13: ACLY_ieu-b-107 | AC13: TRUE | AD13: reported | AE13: 2 | AF13: 1 | AG13: TRUE | AH13: =(Table10[[#This Row],[beta.exposure]]/Table10[[#This Row],[se.exposure]])^2 -> 2.78296749
A14: ACLY | B14: apolipoprotein A-I | C14: CAD GWAS Cardiogram | D14: rs143252279 | E14: T | F14: C | G14: T | H14: C | I14: -0.00134588 | J14: -0.0147516 | K14: 0.029326 | L14: 0.0261 | M14: FALSE | N14: FALSE | O14: FALSE | P14: Blrstk | Q14: 17 | R14: 39993536 | S14: 0.018973425 | T14: 0.4369 | U14: 1087200 | V14: TRUE | W14: reported | X14: 17 | Y14: 39993536 | Z14: 0.00600689 | AA14: 0.82 | AB14: ACLY_ieu-b-107 | AC14: TRUE | AD14: reported | AE14: 2 | AF14: 1 | AG14: TRUE | AH14: =(Table10[[#This Row],[beta.exposure]]/Table10[[#This Row],[se.exposure]])^2 -> 0.0502011101
A15: ACLY | B15: apolipoprotein A-I | C15: CAD GWAS Cardiogram | D15: rs143382920 | E15: G | F15: A | G15: G | H15: A | I15: -0.0102424 | J15: 0.02186496 | K15: 0.016646 | L15: 0.0169 | M15: FALSE | N15: FALSE | O15: FALSE | P15: Blrstk | Q15: 17 | R15: 39990916 | S15: 0.021325241 | T15: 0.3052 | U15: 1105100 | V15: TRUE | W15: reported | X15: 17 | Y15: 39990916 | Z15: 0.00773182 | AA15: 0.19 | AB15: ACLY_ieu-b-107 | AC15: TRUE | AD15: reported | AE15: 2 | AF15: 1 | AG15: TRUE | AH15: =(Table10[[#This Row],[beta.exposure]]/Table10[[#This Row],[se.exposure]])^2 -> 1.75484998
A16: ACLY | B16: apolipoprotein A-I | C16: CAD GWAS Cardiogram | D16: rs143529430 | E16: T | F16: C | G16: T | H16: C | I16: 0.00310724 | J16: 0.03861632 | K16: 0.024494 | L16: 0.0228 | M16: FALSE | N16: FALSE | O16: FALSE | P16: Blrstk | Q16: 17 | R16: 40014772 | S16: 0.021477073 | T16: 0.07217 | U16: 961275 | V16: TRUE | W16: reported | X16: 17 | Y16: 40014772 | Z16: 0.00677724 | AA16: 0.649999 | AB16: ACLY_ieu-b-107 | AC16: TRUE | AD16: reported | AE16: 2 | AF16: 1 | AG16: TRUE | AH16: =(Table10[[#This Row],[beta.exposure]]/Table10[[#This Row],[se.exposure]])^2 -> 0.2102053994
A17: ACLY | B17: apolipoprotein A-I | C17: CAD GWAS Cardiogram | D17: rs147290013 | E17: T | F17: C | G17: T | H17: C | I17: -0.0195437 | J17: 0.01714753 | K17: 0.029109 | L17: 0.0266 | M17: FALSE | N17: FALSE | O17: FALSE | P17: Blrstk | Q17: 17 | R17: 40145226 | S17: 0.01701342 | T17: 0.3135 | U17: 1137140 | V17: TRUE | W17: reported | X17: 17 | Y17: 40145226 | Z17: 0.00594242 | AA17: 0.001 | AB17: ACLY_ieu-b-107 | AC17: TRUE | AD17: reported | AE17: 2 | AF17: 1 | AG17: TRUE | AH17: =(Table10[[#This Row],[beta.exposure]]/Table10[[#This Row],[se.exposure]])^2 -> 10.81650331
A18: ACLY | B18: apolipoprotein A-I | C18: CAD GWAS Cardiogram | D18: rs148029598 | E18: T | F18: C | G18: T | H18: C | I18: -0.00283456 | J18: -0.00773806 | K18: 0.045697 | L18: 0.0386 | M18: FALSE | N18: FALSE | O18: FALSE | P18: Blrstk | Q18: 17 | R18: 40000685 | S18: 0.014763099 | T18: 0.6002 | U18: 1096630 | V18: TRUE | W18: reported | X18: 17 | Y18: 40000685 | Z18: 0.0048633 | AA18: 0.56 | AB18: ACLY_ieu-b-107 | AC18: TRUE | AD18: reported | AE18: 2 | AF18: 1 | AG18: TRUE | AH18: =(Table10[[#This Row],[beta.exposure]]/Table10[[#This Row],[se.exposure]])^2 -> 0.3397106697
A19: ACLY | B19: apolipoprotein A-I | C19: CAD GWAS Cardiogram | D19: rs148175793 | E19: C | F19: T | G19: C | H19: T | I19: 0.00339136 | J19: 0.00116119 | K19: 0.012959 | L19: 0.0147 | M19: FALSE | N19: FALSE | O19: FALSE | P19: Blrstk | Q19: 17 | R19: 39923268 | S19: 0.023601192 | T19: 0.9608 | U19: 1075430 | V19: TRUE | W19: reported | X19: 17 | Y19: 39923268 | Z19: 0.00898621 | AA19: 0.709999 | AB19: ACLY_ieu-b-107 | AC19: TRUE | AD19: reported | AE19: 2 | AF19: 1 | AG19: TRUE | AH19: =(Table10[[#This Row],[beta.exposure]]/Table10[[#This Row],[se.exposure]])^2 -> 0.1424277652
A20: ACLY | B20: apolipoprotein A-I | C20: CAD GWAS Cardiogram | D20: rs182486971 | E20: A | F20: G | G20: A | H20: G | I20: -0.00145092 | J20: 0.01575852 | K20: 0.01284 | L20: 0.0147 | M20: FALSE | N20: FALSE | O20: FALSE | P20: Blrstk | Q20: 17 | R20: 40111019 | S20: 0.027234006 | T20: 0.5628 | U20: 957171 | V20: TRUE | W20: reported | X20: 17 | Y20: 40111019 | Z20: 0.00951556 | AA20: 0.88 | AB20: ACLY_ieu-b-107 | AC20: TRUE | AD20: reported | AE20: 2 | AF20: 1 | AG20: TRUE | AH20: =(Table10[[#This Row],[beta.exposure]]/Table10[[#This Row],[se.exposure]])^2 -> 0.02324974695
A21: ACLY | B21: apolipoprotein A-I | C21: CAD GWAS Cardiogram | D21: rs184826248 | E21: T | F21: C | G21: T | H21: C | I21: -0.00877705 | J21: 0.01209525 | K21: 0.012359 | L21: 0.0108 | M21: FALSE | N21: FALSE | O21: FALSE | P21: Blrstk | Q21: 17 | R21: 40136478 | S21: 0.035353474 | T21: 0.7323 | U21: 934741 | V21: TRUE | W21: reported | X21: 17 | Y21: 40136478 | Z21: 0.00914701 | AA21: 0.34 | AB21: ACLY_ieu-b-107 | AC21: TRUE | AD21: reported | AE21: 2 | AF21: 1 | AG21: TRUE | AH21: =(Table10[[#This Row],[beta.exposure]]/Table10[[#This Row],[se.exposure]])^2 -> 0.9207438719
A22: ACLY | B22: apolipoprotein A-I | C22: CAD GWAS Cardiogram | D22: rs185282939 | E22: A | F22: G | G22: A | H22: G | I22: -0.0114489 | J22: 0.02365026 | K22: 0.023443 | L22: 0.025 | M22: FALSE | N22: FALSE | O22: FALSE | P22: Blrstk | Q22: 17 | R22: 40031726 | S22: 0.020607356 | T22: 0.2511 | U22: 922234 | V22: TRUE | W22: reported | X22: 17 | Y22: 40031726 | Z22: 0.00648597 | AA22: 0.0779992 | AB22: ACLY_ieu-b-107 | AC22: TRUE | AD22: reported | AE22: 2 | AF22: 1 | AG22: TRUE | AH22: =(Table10[[#This Row],[beta.exposure]]/Table10[[#This Row],[se.exposure]])^2 -> 3.11585797
A23: ACLY | B23: apolipoprotein A-I | C23: CAD GWAS Cardiogram | D23: rs189618311 | E23: T | F23: C | G23: T | H23: C | I23: -0.0123276 | J23: -0.00920732 | K23: 0.018734 | L23: 0.0183 | M23: FALSE | N23: FALSE | O23: FALSE | P23: Blrstk | Q23: 17 | R23: 39927501 | S23: 0.024267175 | T23: 0.7044 | U23: 957171 | V23: TRUE | W23: reported | X23: 17 | Y23: 39927501 | Z23: 0.00793126 | AA23: 0.12 | AB23: ACLY_ieu-b-107 | AC23: TRUE | AD23: reported | AE23: 2 | AF23: 1 | AG23: TRUE | AH23: =(Table10[[#This Row],[beta.exposure]]/Table10[[#This Row],[se.exposure]])^2 -> 2.41586518
A24: ACLY | B24: apolipoprotein A-I | C24: CAD GWAS Cardiogram | D24: rs191273121 | E24: G | F24: C | G24: G | H24: C | I24: 0.00116535 | J24: -0.01073882 | K24: 0.043173 | L24: 0.0415 | M24: FALSE | N24: TRUE | O24: FALSE | P24: Blrstk | Q24: 17 | R24: 40022913 | S24: 0.015235104 | T24: 0.4809 | U24: 1027610 | V24: TRUE | W24: reported | X24: 17 | Y24: 40022913 | Z24: 0.00512977 | AA24: 0.82 | AB24: ACLY_ieu-b-107 | AC24: TRUE | AD24: reported | AE24: 2 | AF24: 1 | AG24: TRUE | AH24: =(Table10[[#This Row],[beta.exposure]]/Table10[[#This Row],[se.exposure]])^2 -> 0.05160799351
A25: ACLY | B25: apolipoprotein A-I | C25: CAD GWAS Cardiogram | D25: rs193120793 | E25: G | F25: A | G25: G | H25: A | I25: 0.0166592 | J25: -0.02877414 | K25: 0.018166 | L25: 0.017 | M25: FALSE | N25: FALSE | O25: FALSE | P25: Blrstk | Q25: 17 | R25: 40012107 | S25: 0.020144488 | T25: 0.1532 | U25: 1143630 | V25: TRUE | W25: reported | X25: 17 | Y25: 40012107 | Z25: 0.00741369 | AA25: 0.025 | AB25: ACLY_ieu-b-107 | AC25: TRUE | AD25: reported | AE25: 2 | AF25: 1 | AG25: TRUE | AH25: =(Table10[[#This Row],[beta.exposure]]/Table10[[#This Row],[se.exposure]])^2 -> 5.049396093
A26: ACLY | B26: apolipoprotein A-I | C26: CAD GWAS Cardiogram | D26: rs2070106 | E26: A | F26: G | G26: A | H26: G | I26: -0.000441819 | J26: -0.00395947 | K26: 0.329419 | L26: 0.3171 | M26: FALSE | N26: FALSE | O26: FALSE | P26: Blrstk | Q26: 17 | R26: 40125864 | S26: 0.0055859794 | T26: 0.4784 | U26: 1136290 | V26: TRUE | W26: reported | X26: 17 | Y26: 40125864 | Z26: 0.00208874 | AA26: 0.83 | AB26: ACLY_ieu-b-107 | AC26: TRUE | AD26: reported | AE26: 2 | AF26: 1 | AG26: TRUE | AH26: =(Table10[[#This Row],[beta.exposure]]/Table10[[#This Row],[se.exposure]])^2 -> 0.04474247554
A27: ACLY | B27: apolipoprotein A-I | C27: CAD GWAS Cardiogram | D27: rs34200091 | E27: A | F27: G | G27: A | H27: G | I27: 0.00944576 | J27: 0.00195083 | K27: 0.162654 | L27: 0.1627 | M27: FALSE | N27: FALSE | O27: FALSE | P27: Blrstk | Q27: 17 | R27: 40014216 | S27: 0.0066606639 | T27: 0.7696 | U27: 1162800 | V27: TRUE | W27: reported | X27: 17 | Y27: 40014216 | Z27: 0.00266024 | AA27: 0.000379997 | AB27: ACLY_ieu-b-107 | AC27: TRUE | AD27: reported | AE27: 2 | AF27: 1 | AG27: TRUE | AH27: =(Table10[[#This Row],[beta.exposure]]/Table10[[#This Row],[se.exposure]])^2 -> 12.60759284
A28: ACLY | B28: apolipoprotein A-I | C28: CAD GWAS Cardiogram | D28: rs34326614 | E28: G | F28: C | G28: G | H28: C | I28: 0.0221924 | J28: 0.03837149 | K28: 0.012412 | L28: 0.0143 | M28: FALSE | N28: TRUE | O28: FALSE | P28: Blrstk | Q28: 17 | R28: 40177411 | S28: 0.022518439 | T28: 0.08838 | U28: 1117370 | V28: TRUE | W28: reported | X28: 17 | Y28: 40177411 | Z28: 0.00891229 | AA28: 0.0129999 | AB28: ACLY_ieu-b-107 | AC28: TRUE | AD28: reported | AE28: 2 | AF28: 1 | AG28: TRUE | AH28: =(Table10[[#This Row],[beta.exposure]]/Table10[[#This Row],[se.exposure]])^2 -> 6.200545858
A29: ACLY | B29: apolipoprotein A-I | C29: CAD GWAS Cardiogram | D29: rs35569264 | E29: T | F29: C | G29: T | H29: C | I29: 0.012337 | J29: -0.00877464 | K29: 0.013826 | L29: 0.0163 | M29: FALSE | N29: FALSE | O29: FALSE | P29: Blrstk | Q29: 17 | R29: 39940637 | S29: 0.024963779 | T29: 0.7252 | U29: 945369 | V29: TRUE | W29: reported | X29: 17 | Y29: 39940637 | Z29: 0.0084077 | AA29: 0.14 | AB29: ACLY_ieu-b-107 | AC29: TRUE | AD29: reported | AE29: 2 | AF29: 1 | AG29: TRUE | AH29: =(Table10[[#This Row],[beta.exposure]]/Table10[[#This Row],[se.exposure]])^2 -> 2.153102551
A30: ACLY | B30: apolipoprotein A-I | C30: CAD GWAS Cardiogram | D30: rs35967904 | E30: A | F30: G | G30: A | H30: G | I30: 0.00111417 | J30: -0.00297765 | K30: 0.130718 | L30: 0.1355 | M30: FALSE | N30: FALSE | O30: FALSE | P30: Blrstk | Q30: 17 | R30: 40126187 | S30: 0.0089460091 | T30: 0.7393 | U30: 1061790 | V30: TRUE | W30: reported | X30: 17 | Y30: 40126187 | Z30: 0.0032924 | AA30: 0.74 | AB30: ACLY_ieu-b-107 | AC30: TRUE | AD30: reported | AE30: 2 | AF30: 1 | AG30: TRUE | AH30: =(Table10[[#This Row],[beta.exposure]]/Table10[[#This Row],[se.exposure]])^2 -> 0.1145190496
A31: ACLY | B31: apolipoprotein A-I | C31: CAD GWAS Cardiogram | D31: rs41275671 | E31: C | F31: T | G31: C | H31: T | I31: 0.0158596 | J31: 0.03108923 | K31: 0.015219 | L31: 0.016 | M31: FALSE | N31: FALSE | O31: FALSE | P31: Blrstk | Q31: 17 | R31: 40026697 | S31: 0.025193503 | T31: 0.2172 | U31: 967799 | V31: TRUE | W31: reported | X31: 17 | Y31: 40026697 | Z31: 0.00843243 | AA31: 0.0599998 | AB31: ACLY_ieu-b-107 | AC31: TRUE | AD31: reported | AE31: 2 | AF31: 1 | AG31: TRUE | AH31: =(Table10[[#This Row],[beta.exposure]]/Table10[[#This Row],[se.exposure]])^2 -> 3.537357633
A32: ACLY | B32: apolipoprotein A-I | C32: CAD GWAS Cardiogram | D32: rs41283427 | E32: T | F32: C | G32: T | H32: C | I32: 0.0142313 | J32: -0.00759548 | K32: 0.04121 | L32: 0.0402 | M32: FALSE | N32: FALSE | O32: FALSE | P32: Blrstk | Q32: 17 | R32: 39928598 | S32: 0.014196668 | T32: 0.5926 | U32: 1115460 | V32: TRUE | W32: reported | X32: 17 | Y32: 39928598 | Z32: 0.00509441 | AA32: 0.00519996 | AB32: ACLY_ieu-b-107 | AC32: TRUE | AD32: reported | AE32: 2 | AF32: 1 | AG32: TRUE | AH32: =(Table10[[#This Row],[beta.exposure]]/Table10[[#This Row],[se.exposure]])^2 -> 7.803714264
A33: ACLY | B33: apolipoprotein A-I | C33: CAD GWAS Cardiogram | D33: rs4239268 | E33: A | F33: G | G33: A | H33: G | I33: -0.0057765 | J33: -0.01325512 | K33: 0.933723 | L33: 0.9186 | M33: FALSE | N33: FALSE | O33: FALSE | P33: Blrstk | Q33: 17 | R33: 40154777 | S33: 0.0099385413 | T33: 0.1823 | U33: 1140250 | V33: TRUE | W33: reported | X33: 17 | Y33: 40154777 | Z33: 0.00395384 | AA33: 0.14 | AB33: ACLY_ieu-b-107 | AC33: TRUE | AD33: reported | AE33: 2 | AF33: 1 | AG33: TRUE | AH33: =(Table10[[#This Row],[beta.exposure]]/Table10[[#This Row],[se.exposure]])^2 -> 2.134476481
A34: ACLY | B34: apolipoprotein A-I | C34: CAD GWAS Cardiogram | D34: rs4796702 | E34: C | F34: T | G34: C | H34: T | I34: 0.00617626 | J34: -0.01034872 | K34: 0.690306 | L34: 0.6724 | M34: FALSE | N34: FALSE | O34: FALSE | P34: Blrstk | Q34: 17 | R34: 39942919 | S34: 0.0054246287 | T34: 0.05643 | U34: 1156170 | V34: TRUE | W34: reported | X34: 17 | Y34: 39942919 | Z34: 0.00214156 | AA34: 0.00389996 | AB34: ACLY_ieu-b-107 | AC34: TRUE | AD34: reported | AE34: 2 | AF34: 1 | AG34: TRUE | AH34: =(Table10[[#This Row],[beta.exposure]]/Table10[[#This Row],[se.exposure]])^2 -> 8.317458586
A35: ACLY | B35: apolipoprotein A-I | C35: CAD GWAS Cardiogram | D35: rs562072845 | E35: A | F35: G | G35: A | H35: G | I35: 0.0130685 | J35: -0.00080855 | K35: 0.039795 | L35: 0.0373 | M35: FALSE | N35: FALSE | O35: FALSE | P35: Blrstk | Q35: 17 | R35: 40031748 | S35: 0.018075516 | T35: 0.9643 | U35: 895497 | V35: TRUE | W35: reported | X35: 17 | Y35: 40031748 | Z35: 0.00522343 | AA35: 0.012 | AB35: ACLY_ieu-b-107 | AC35: TRUE | AD35: reported | AE35: 2 | AF35: 1 | AG35: TRUE | AH35: =(Table10[[#This Row],[beta.exposure]]/Table10[[#This Row],[se.exposure]])^2 -> 6.259504073
A36: ACLY | B36: apolipoprotein A-I | C36: CAD GWAS Cardiogram | D36: rs6503665 | E36: C | F36: G | G36: C | H36: G | I36: 0.0146525 | J36: -0.01266775 | K36: 0.915281 | L36: 0.8951 | M36: FALSE | N36: TRUE | O36: FALSE | P36: Blrstk | Q36: 17 | R36: 39953539 | S36: 0.0086435518 | T36: 0.1428 | U36: 1150770 | V36: TRUE | W36: reported | X36: 17 | Y36: 39953539 | Z36: 0.00359333 | AA36: 4.50E-05 | AB36: ACLY_ieu-b-107 | AC36: TRUE | AD36: reported | AE36: 2 | AF36: 1 | AG36: TRUE | AH36: =(Table10[[#This Row],[beta.exposure]]/Table10[[#This Row],[se.exposure]])^2 -> 16.62758795
A37: ACLY | B37: apolipoprotein A-I | C37: CAD GWAS Cardiogram | D37: rs7213095 | E37: T | F37: G | G37: T | H37: G | I37: 0.000709334 | J37: -0.01770967 | K37: 0.497044 | L37: 0.4824 | M37: FALSE | N37: FALSE | O37: FALSE | P37: Blrstk | Q37: 17 | R37: 39940768 | S37: 0.0056038064 | T37: 0.001576 | U37: 1129950 | V37: TRUE | W37: reported | X37: 17 | Y37: 39940768 | Z37: 0.00212427 | AA37: 0.74 | AB37: ACLY_ieu-b-107 | AC37: TRUE | AD37: reported | AE37: 2 | AF37: 1 | AG37: TRUE | AH37: =(Table10[[#This Row],[beta.exposure]]/Table10[[#This Row],[se.exposure]])^2 -> 0.1115018627
A38: ACLY | B38: apolipoprotein A-I | C38: CAD GWAS Cardiogram | D38: rs7222250 | E38: T | F38: C | G38: T | H38: C | I38: -0.00473722 | J38: -0.00173086 | K38: 0.590044 | L38: 0.5617 | M38: FALSE | N38: FALSE | O38: FALSE | P38: Blrstk | Q38: 17 | R38: 39938469 | S38: 0.0053746245 | T38: 0.7474 | U38: 1138250 | V38: TRUE | W38: reported | X38: 17 | Y38: 39938469 | Z38: 0.00199746 | AA38: 0.0179999 | AB38: ACLY_ieu-b-107 | AC38: TRUE | AD38: reported | AE38: 2 | AF38: 1 | AG38: TRUE | AH38: =(Table10[[#This Row],[beta.exposure]]/Table10[[#This Row],[se.exposure]])^2 -> 5.624590721
A39: ACLY | B39: apolipoprotein A-I | C39: CAD GWAS Cardiogram | D39: rs72820838 | E39: T | F39: C | G39: T | H39: C | I39: -0.0105012 | J39: 0.01037175 | K39: 0.053218 | L39: 0.0469 | M39: FALSE | N39: FALSE | O39: FALSE | P39: Blrstk | Q39: 17 | R39: 40113631 | S39: 0.013022498 | T39: 0.4258 | U39: 1116720 | V39: TRUE | W39: reported | X39: 17 | Y39: 40113631 | Z39: 0.00437099 | AA39: 0.016 | AB39: ACLY_ieu-b-107 | AC39: TRUE | AD39: reported | AE39: 2 | AF39: 1 | AG39: TRUE | AH39: =(Table10[[#This Row],[beta.exposure]]/Table10[[#This Row],[se.exposure]])^2 -> 5.771892501
A40: ACLY | B40: apolipoprotein A-I | C40: CAD GWAS Cardiogram | D40: rs72820855 | E40: A | F40: G | G40: A | H40: G | I40: 0.0087674 | J40: -0.05041622 | K40: 0.015846 | L40: 0.0176 | M40: FALSE | N40: FALSE | O40: FALSE | P40: Blrstk | Q40: 17 | R40: 40154440 | S40: 0.024914538 | T40: 0.04301 | U40: 934741 | V40: TRUE | W40: reported | X40: 17 | Y40: 40154440 | Z40: 0.00817824 | AA40: 0.28 | AB40: ACLY_ieu-b-107 | AC40: TRUE | AD40: reported | AE40: 2 | AF40: 1 | AG40: TRUE | AH40: =(Table10[[#This Row],[beta.exposure]]/Table10[[#This Row],[se.exposure]])^2 -> 1.149269654
A41: ACLY | B41: apolipoprotein A-I | C41: CAD GWAS Cardiogram | D41: rs7405731 | E41: G | F41: A | G41: G | H41: A | I41: -0.0045397 | J41: -0.00987777 | K41: 0.763734 | L41: 0.7578 | M41: FALSE | N41: FALSE | O41: FALSE | P41: Blrstk | Q41: 17 | R41: 39925925 | S41: 0.0061150849 | T41: 0.1062 | U41: 1142400 | V41: TRUE | W41: reported | X41: 17 | Y41: 39925925 | Z41: 0.0023572 | AA41: 0.0539995 | AB41: ACLY_ieu-b-107 | AC41: TRUE | AD41: reported | AE41: 2 | AF41: 1 | AG41: TRUE | AH41: =(Table10[[#This Row],[beta.exposure]]/Table10[[#This Row],[se.exposure]])^2 -> 3.70903937
A42: ACLY | B42: apolipoprotein A-I | C42: CAD GWAS Cardiogram | D42: rs74621319 | E42: C | F42: A | G42: C | H42: A | I42: -0.0214943 | J42: -0.02609273 | K42: 0.014177 | L42: 0.0221 | M42: FALSE | N42: FALSE | O42: FALSE | P42: Blrstk | Q42: 17 | R42: 40160073 | S42: 0.021856423 | T42: 0.2325 | U42: 967799 | V42: TRUE | W42: reported | X42: 17 | Y42: 40160073 | Z42: 0.00838643 | AA42: 0.01 | AB42: ACLY_ieu-b-107 | AC42: TRUE | AD42: reported | AE42: 2 | AF42: 1 | AG42: TRUE | AH42: =(Table10[[#This Row],[beta.exposure]]/Table10[[#This Row],[se.exposure]])^2 -> 6.568895598
A43: ACLY | B43: apolipoprotein A-I | C43: CAD GWAS Cardiogram | D43: rs74871137 | E43: G | F43: A | G43: G | H43: A | I43: 0.00110804 | J43: 0.02232671 | K43: 0.062928 | L43: 0.0801 | M43: FALSE | N43: FALSE | O43: FALSE | P43: Blrstk | Q43: 17 | R43: 39939430 | S43: 0.010321331 | T43: 0.03053 | U43: 1121930 | V43: TRUE | W43: reported | X43: 17 | Y43: 39939430 | Z43: 0.00422854 | AA43: 0.79 | AB43: ACLY_ieu-b-107 | AC43: TRUE | AD43: reported | AE43: 2 | AF43: 1 | AG43: TRUE | AH43: =(Table10[[#This Row],[beta.exposure]]/Table10[[#This Row],[se.exposure]])^2 -> 0.06866414093
A44: ACLY | B44: apolipoprotein A-I | C44: CAD GWAS Cardiogram | D44: rs76230895 | E44: G | F44: C | G44: G | H44: C | I44: -0.0137419 | J44: -0.02718325 | K44: 0.047061 | L44: 0.043 | M44: FALSE | N44: TRUE | O44: FALSE | P44: Blrstk | Q44: 17 | R44: 39934019 | S44: 0.014738006 | T44: 0.06512 | U44: 1100230 | V44: TRUE | W44: reported | X44: 17 | Y44: 39934019 | Z44: 0.00504609 | AA44: 0.00649995 | AB44: ACLY_ieu-b-107 | AC44: TRUE | AD44: reported | AE44: 2 | AF44: 1 | AG44: TRUE | AH44: =(Table10[[#This Row],[beta.exposure]]/Table10[[#This Row],[se.exposure]])^2 -> 7.416236715
A45: ACLY | B45: apolipoprotein A-I | C45: CAD GWAS Cardiogram | D45: rs78463825 | E45: G | F45: A | G45: G | H45: A | I45: -0.00311573 | J45: -0.00349324 | K45: 0.019318 | L45: 0.0175 | M45: FALSE | N45: FALSE | O45: FALSE | P45: Blrstk | Q45: 17 | R45: 40164055 | S45: 0.02521743 | T45: 0.8898 | U45: 945369 | V45: TRUE | W45: reported | X45: 17 | Y45: 40164055 | Z45: 0.00727112 | AA45: 0.67 | AB45: ACLY_ieu-b-107 | AC45: TRUE | AD45: reported | AE45: 2 | AF45: 1 | AG45: TRUE | AH45: =(Table10[[#This Row],[beta.exposure]]/Table10[[#This Row],[se.exposure]])^2 -> 0.183618742
A46: ACLY | B46: apolipoprotein A-I | C46: CAD GWAS Cardiogram | D46: rs9895477 | E46: A | F46: G | G46: A | H46: G | I46: 0.00465556 | J46: -0.00414835 | K46: 0.120332 | L46: 0.1126 | M46: FALSE | N46: FALSE | O46: FALSE | P46: Blrstk | Q46: 17 | R46: 39934892 | S46: 0.0086336669 | T46: 0.6309 | U46: 1138330 | V46: TRUE | W46: reported | X46: 17 | Y46: 39934892 | Z46: 0.00314396 | AA46: 0.14 | AB46: ACLY_ieu-b-107 | AC46: TRUE | AD46: reported | AE46: 2 | AF46: 1 | AG46: TRUE | AH46: =(Table10[[#This Row],[beta.exposure]]/Table10[[#This Row],[se.exposure]])^2 -> 2.192753598
A47: ACLY | B47: apolipoprotein A-I | C47: CAD GWAS Cardiogram | D47: rs9899285 | E47: A | F47: G | G47: A | H47: G | I47: -0.00406859 | J47: -0.01387044 | K47: 0.099169 | L47: 0.0941 | M47: FALSE | N47: FALSE | O47: FALSE | P47: Blrstk | Q47: 17 | R47: 40049694 | S47: 0.008885544 | T47: 0.1185 | U47: 1151840 | V47: TRUE | W47: reported | X47: 17 | Y47: 40049694 | Z47: 0.00333258 | AA47: 0.22 | AB47: ACLY_ieu-b-107 | AC47: TRUE | AD47: reported | AE47: 2 | AF47: 1 | AG47: TRUE | AH47: =(Table10[[#This Row],[beta.exposure]]/Table10[[#This Row],[se.exposure]])^2 -> 1.490481835
A48: ANGPTL3 | B48: apolipoprotein A-I | C48: CAD GWAS Cardiogram | D48: rs10458569 | E48: A | F48: C | G48: A | H48: C | I48: -0.0185591 | J48: -0.00541773 | K48: 0.041351 | L48: 0.0452 | M48: FALSE | N48: FALSE | O48: FALSE | P48: Blrstk | Q48: 1 | R48: 62997601 | S48: 0.011991861 | T48: 0.6514 | U48: 1156530 | V48: TRUE | W48: reported | X48: 1 | Y48: 62997601 | Z48: 0.00491802 | AA48: 0.00016 | AB48: ANGPTL3_ieu-b-107 | AC48: TRUE | AD48: reported | AE48: 2 | AF48: 1 | AG48: TRUE | AH48: =(Table10[[#This Row],[beta.exposure]]/Table10[[#This Row],[se.exposure]])^2 -> 14.24076247
A49: ANGPTL3 | B49: apolipoprotein A-I | C49: CAD GWAS Cardiogram | D49: rs112548469 | E49: C | F49: T | G49: C | H49: T | I49: -0.0344405 | J49: -0.00782117 | K49: 0.017397 | L49: 0.0192 | M49: FALSE | N49: FALSE | O49: FALSE | P49: Blrstk | Q49: 1 | R49: 63121468 | S49: 0.021339191 | T49: 0.714 | U49: 1116790 | V49: TRUE | W49: reported | X49: 1 | Y49: 63121468 | Z49: 0.00790081 | AA49: 1.30E-05 | AB49: ANGPTL3_ieu-b-107 | AC49: TRUE | AD49: reported | AE49: 2 | AF49: 1 | AG49: TRUE | AH49: =(Table10[[#This Row],[beta.exposure]]/Table10[[#This Row],[se.exposure]])^2 -> 19.00184013
A50: ANGPTL3 | B50: apolipoprotein A-I | C50: CAD GWAS Cardiogram | D50: rs114368431 | E50: T | F50: A | G50: T | H50: A | I50: -0.023866 | J50: 0.01650742 | K50: 0.0175 | L50: 0.0199 | M50: FALSE | N50: TRUE | O50: FALSE | P50: Blrstk | Q50: 1 | R50: 63010830 | S50: 0.01877361 | T50: 0.3792 | U50: 1119650 | V50: TRUE | W50: reported | X50: 1 | Y50: 63010830 | Z50: 0.00754944 | AA50: 0.0016 | AB50: ANGPTL3_ieu-b-107 | AC50: TRUE | AD50: reported | AE50: 2 | AF50: 1 | AG50: TRUE | AH50: =(Table10[[#This Row],[beta.exposure]]/Table10[[#This Row],[se.exposure]])^2 -> 9.993780278
A51: ANGPTL3 | B51: apolipoprotein A-I | C51: CAD GWAS Cardiogram | D51: rs115346228 | E51: A | F51: T | G51: A | H51: T | I51: -0.0319383 | J51: -0.02246468 | K51: 0.010267 | L51: 0.0104 | M51: FALSE | N51: TRUE | O51: FALSE | P51: Blrstk | Q51: 1 | R51: 62978754 | S51: 0.027274458 | T51: 0.4101 | U51: 1111410 | V51: TRUE | W51: reported | X51: 1 | Y51: 62978754 | Z51: 0.00993033 | AA51: 0.00129999 | AB51: ANGPTL3_ieu-b-107 | AC51: TRUE | AD51: reported | AE51: 2 | AF51: 1 | AG51: TRUE | AH51: =(Table10[[#This Row],[beta.exposure]]/Table10[[#This Row],[se.exposure]])^2 -> 10.34418383
A52: ACLY | B52: apolipoprotein B | C52: CAD GWAS Cardiogram | D52: rs13412 | E52: C | F52: T | G52: C | H52: T | I52: -0.0108859 | J52: -0.0029495 | K52: 0.344318 | L52: 0.3577 | M52: FALSE | N52: FALSE | O52: FALSE | P52: Blrstk | Q52: 17 | R52: 39967442 | S52: 0.0052141998 | T52: 0.5716 | U52: 1161210 | V52: TRUE | W52: reported | X52: 17 | Y52: 39967442 | Z52: 0.00218441 | AA52: 6.20E-07 | AB52: ACLY_ieu-b-108 | AC52: TRUE | AD52: reported | AE52: 2 | AF52: 1 | AG52: TRUE | AH52: =(Table10[[#This Row],[beta.exposure]]/Table10[[#This Row],[se.exposure]])^2 -> 24.83478296
A53: ACLY | B53: LDL cholesterol | C53: CAD GWAS Cardiogram | D53: rs13412 | E53: C | F53: T | G53: C | H53: T | I53: -0.0107114 | J53: -0.0029495 | K53: 0.344318 | L53: 0.3577 | M53: FALSE | N53: FALSE | O53: FALSE | P53: Blrstk | Q53: 17 | R53: 39967442 | S53: 0.0052141998 | T53: 0.5716 | U53: 1161210 | V53: TRUE | W53: reported | X53: 17 | Y53: 39967442 | Z53: 0.0021918 | AA53: 1.00E-06 | AB53: ACLY_ieu-b-110 | AC53: TRUE | AD53: reported | AE53: 2 | AF53: 1 | AG53: TRUE | AH53: =(Table10[[#This Row],[beta.exposure]]/Table10[[#This Row],[se.exposure]])^2 -> 23.88309632
A54: ACLY | B54: apolipoprotein B | C54: Fasting glucose | D54: rs13412 | E54: C | F54: T | G54: C | H54: T | I54: -0.0108859 | J54: 0.0031 | K54: 0.344318 | L54: 0.355 | M54: FALSE | N54: FALSE | O54: FALSE | P54: ebi-a-GCST90002232 | Q54: 17 | R54: 39967442 | S54: 0.0019 | T54: 0.0547797 | U54: 200622 | V54: TRUE | W54: reported | X54: 17 | Y54: 39967442 | Z54: 0.00218441 | AA54: 6.20E-07 | AB54: ACLY_ieu-b-108 | AC54: TRUE | AD54: reported | AE54: 2 | AF54: 1 | AG54: TRUE | AH54: =(Table10[[#This Row],[beta.exposure]]/Table10[[#This Row],[se.exposure]])^2 -> 24.83478296
A55: ANGPTL3 | B55: apolipoprotein A-I | C55: CAD GWAS Cardiogram | D55: rs142009097 | E55: C | F55: T | G55: C | H55: T | I55: 0.025935 | J55: -0.01297349 | K55: 0.026553 | L55: 0.0264 | M55: FALSE | N55: FALSE | O55: FALSE | P55: Blrstk | Q55: 1 | R55: 63126604 | S55: 0.01677971 | T55: 0.4394 | U55: 1112510 | V55: TRUE | W55: reported | X55: 1 | Y55: 63126604 | Z55: 0.00612689 | AA55: 2.30E-05 | AB55: ANGPTL3_ieu-b-107 | AC55: TRUE | AD55: reported | AE55: 2 | AF55: 1 | AG55: TRUE | AH55: =(Table10[[#This Row],[beta.exposure]]/Table10[[#This Row],[se.exposure]])^2 -> 17.91811577
A56: ANGPTL3 | B56: apolipoprotein A-I | C56: CAD GWAS Cardiogram | D56: rs143780678 | E56: T | F56: A | G56: T | H56: A | I56: 0.0147906 | J56: 0.01440331 | K56: 0.014607 | L56: 0.0143 | M56: FALSE | N56: TRUE | O56: FALSE | P56: Blrstk | Q56: 1 | R56: 62984352 | S56: 0.024134517 | T56: 0.5506 | U56: 1116830 | V56: TRUE | W56: reported | X56: 1 | Y56: 62984352 | Z56: 0.0084857 | AA56: 0.0810009 | AB56: ANGPTL3_ieu-b-107 | AC56: TRUE | AD56: reported | AE56: 2 | AF56: 1 | AG56: TRUE | AH56: =(Table10[[#This Row],[beta.exposure]]/Table10[[#This Row],[se.exposure]])^2 -> 3.038059229
A57: ANGPTL3 | B57: apolipoprotein A-I | C57: CAD GWAS Cardiogram | D57: rs144001572 | E57: C | F57: T | G57: C | H57: T | I57: 0.0115371 | J57: 0.0051136 | K57: 0.017625 | L57: 0.0157 | M57: FALSE | N57: FALSE | O57: FALSE | P57: Blrstk | Q57: 1 | R57: 62986188 | S57: 0.023736099 | T57: 0.8294 | U57: 1075140 | V57: TRUE | W57: reported | X57: 1 | Y57: 62986188 | Z57: 0.00803138 | AA57: 0.15 | AB57: ANGPTL3_ieu-b-107 | AC57: TRUE | AD57: reported | AE57: 2 | AF57: 1 | AG57: TRUE | AH57: =(Table10[[#This Row],[beta.exposure]]/Table10[[#This Row],[se.exposure]])^2 -> 2.063540345
A58: ANGPTL3 | B58: apolipoprotein A-I | C58: CAD GWAS Cardiogram | D58: rs146479011 | E58: A | F58: G | G58: A | H58: G | I58: 0.0177977 | J58: -0.03652033 | K58: 0.015324 | L58: 0.0162 | M58: FALSE | N58: FALSE | O58: FALSE | P58: Blrstk | Q58: 1 | R58: 62963790 | S58: 0.025299684 | T58: 0.1489 | U58: 945369 | V58: TRUE | W58: reported | X58: 1 | Y58: 62963790 | Z58: 0.0083872 | AA58: 0.0340001 | AB58: ANGPTL3_ieu-b-107 | AC58: TRUE | AD58: reported | AE58: 2 | AF58: 1 | AG58: TRUE | AH58: =(Table10[[#This Row],[beta.exposure]]/Table10[[#This Row],[se.exposure]])^2 -> 4.50291517
A59: ACLY | B59: LDL cholesterol | C59: Fasting glucose | D59: rs13412 | E59: C | F59: T | G59: C | H59: T | I59: -0.0107114 | J59: 0.0031 | K59: 0.344318 | L59: 0.355 | M59: FALSE | N59: FALSE | O59: FALSE | P59: ebi-a-GCST90002232 | Q59: 17 | R59: 39967442 | S59: 0.0019 | T59: 0.0547797 | U59: 200622 | V59: TRUE | W59: reported | X59: 17 | Y59: 39967442 | Z59: 0.0021918 | AA59: 1.00E-06 | AB59: ACLY_ieu-b-110 | AC59: TRUE | AD59: reported | AE59: 2 | AF59: 1 | AG59: TRUE | AH59: =(Table10[[#This Row],[beta.exposure]]/Table10[[#This Row],[se.exposure]])^2 -> 23.88309632
A60: ANGPTL3 | B60: apolipoprotein A-I | C60: CAD GWAS Cardiogram | D60: rs17123728 | E60: A | F60: G | G60: A | H60: G | I60: 0.0146243 | J60: -0.00501702 | K60: 0.040389 | L60: 0.0422 | M60: FALSE | N60: FALSE | O60: FALSE | P60: Blrstk | Q60: 1 | R60: 63068299 | S60: 0.012925609 | T60: 0.6979 | U60: 1143560 | V60: TRUE | W60: reported | X60: 1 | Y60: 63068299 | Z60: 0.0049671 | AA60: 0.0032 | AB60: ANGPTL3_ieu-b-107 | AC60: TRUE | AD60: reported | AE60: 2 | AF60: 1 | AG60: TRUE | AH60: =(Table10[[#This Row],[beta.exposure]]/Table10[[#This Row],[se.exposure]])^2 -> 8.668508273
A61: ACLY | B61: apolipoprotein B | C61: Fasting insulin | D61: rs13412 | E61: C | F61: T | G61: C | H61: T | I61: -0.0108859 | J61: 0.0013 | K61: 0.344318 | L61: 0.355 | M61: FALSE | N61: FALSE | O61: FALSE | P61: ebi-a-GCST90002238 | Q61: 17 | R61: 39967442 | S61: 0.0021 | T61: 0.623199 | U61: 151013 | V61: TRUE | W61: reported | X61: 17 | Y61: 39967442 | Z61: 0.00218441 | AA61: 6.20E-07 | AB61: ACLY_ieu-b-108 | AC61: TRUE | AD61: reported | AE61: 2 | AF61: 1 | AG61: TRUE | AH61: =(Table10[[#This Row],[beta.exposure]]/Table10[[#This Row],[se.exposure]])^2 -> 24.83478296
A62: ANGPTL3 | B62: apolipoprotein A-I | C62: CAD GWAS Cardiogram | D62: rs191782192 | E62: G | F62: A | G62: G | H62: A | I62: 0.020391 | J62: 0.00525038 | K62: 0.014117 | L62: 0.0127 | M62: FALSE | N62: FALSE | O62: FALSE | P62: Blrstk | Q62: 1 | R62: 63165631 | S62: 0.028472325 | T62: 0.8537 | U62: 1042500 | V62: TRUE | W62: reported | X62: 1 | Y62: 63165631 | Z62: 0.00918491 | AA62: 0.0259998 | AB62: ANGPTL3_ieu-b-107 | AC62: TRUE | AD62: reported | AE62: 2 | AF62: 1 | AG62: TRUE | AH62: =(Table10[[#This Row],[beta.exposure]]/Table10[[#This Row],[se.exposure]])^2 -> 4.928641607
A63: ANGPTL3 | B63: apolipoprotein A-I | C63: CAD GWAS Cardiogram | D63: rs61775882 | E63: C | F63: T | G63: C | H63: T | I63: 0.0125256 | J63: 0.00680113 | K63: 0.107732 | L63: 0.1012 | M63: FALSE | N63: FALSE | O63: FALSE | P63: Blrstk | Q63: 1 | R63: 62974656 | S63: 0.0086670562 | T63: 0.4326 | U63: 1158220 | V63: TRUE | W63: reported | X63: 1 | Y63: 62974656 | Z63: 0.00323979 | AA63: 0.000109999 | AB63: ANGPTL3_ieu-b-107 | AC63: TRUE | AD63: reported | AE63: 2 | AF63: 1 | AG63: TRUE | AH63: =(Table10[[#This Row],[beta.exposure]]/Table10[[#This Row],[se.exposure]])^2 -> 14.94732082
A64: ANGPTL3 | B64: apolipoprotein A-I | C64: CAD GWAS Cardiogram | D64: rs71643639 | E64: C | F64: T | G64: C | H64: T | I64: 0.0186776 | J64: -0.00110768 | K64: 0.053741 | L64: 0.06 | M64: FALSE | N64: FALSE | O64: FALSE | P64: Blrstk | Q64: 1 | R64: 63144920 | S64: 0.01098495 | T64: 0.9197 | U64: 1153910 | V64: TRUE | W64: reported | X64: 1 | Y64: 63144920 | Z64: 0.00433639 | AA64: 1.70E-05 | AB64: ANGPTL3_ieu-b-107 | AC64: TRUE | AD64: reported | AE64: 2 | AF64: 1 | AG64: TRUE | AH64: =(Table10[[#This Row],[beta.exposure]]/Table10[[#This Row],[se.exposure]])^2 -> 18.55177516
A65: ACLY | B65: LDL cholesterol | C65: Fasting insulin | D65: rs13412 | E65: C | F65: T | G65: C | H65: T | I65: -0.0107114 | J65: 0.0013 | K65: 0.344318 | L65: 0.355 | M65: FALSE | N65: FALSE | O65: FALSE | P65: ebi-a-GCST90002238 | Q65: 17 | R65: 39967442 | S65: 0.0021 | T65: 0.623199 | U65: 151013 | V65: TRUE | W65: reported | X65: 17 | Y65: 39967442 | Z65: 0.0021918 | AA65: 1.00E-06 | AB65: ACLY_ieu-b-110 | AC65: TRUE | AD65: reported | AE65: 2 | AF65: 1 | AG65: TRUE | AH65: =(Table10[[#This Row],[beta.exposure]]/Table10[[#This Row],[se.exposure]])^2 -> 23.88309632
A66: ACLY | B66: apolipoprotein B | C66: Glycated hemoglobin levels | D66: rs13412 | E66: C | F66: T | G66: C | H66: T | I66: -0.0108859 | J66: 8.00E-04 | K66: 0.344318 | L66: 0.355 | M66: FALSE | N66: FALSE | O66: FALSE | P66: ebi-a-GCST90002244 | Q66: 17 | R66: 39967442 | S66: 0.0014 | T66: 0.679301 | U66: 146806 | V66: TRUE | W66: reported | X66: 17 | Y66: 39967442 | Z66: 0.00218441 | AA66: 6.20E-07 | AB66: ACLY_ieu-b-108 | AC66: TRUE | AD66: reported | AE66: 2 | AF66: 1 | AG66: TRUE | AH66: =(Table10[[#This Row],[beta.exposure]]/Table10[[#This Row],[se.exposure]])^2 -> 24.83478296
A67: ANGPTL3 | B67: apolipoprotein A-I | C67: CAD GWAS Cardiogram | D67: rs77923039 | E67: G | F67: C | G67: G | H67: C | I67: 0.0284745 | J67: -0.01502783 | K67: 0.016892 | L67: 0.0229 | M67: FALSE | N67: TRUE | O67: FALSE | P67: Blrstk | Q67: 1 | R67: 63083388 | S67: 0.017900728 | T67: 0.4012 | U67: 1145090 | V67: TRUE | W67: reported | X67: 1 | Y67: 63083388 | Z67: 0.00766891 | AA67: 2.00E-04 | AB67: ANGPTL3_ieu-b-107 | AC67: TRUE | AD67: reported | AE67: 2 | AF67: 1 | AG67: TRUE | AH67: =(Table10[[#This Row],[beta.exposure]]/Table10[[#This Row],[se.exposure]])^2 -> 13.78621133
A68: ANGPTL3 | B68: apolipoprotein A-I | C68: CAD GWAS Cardiogram | D68: rs79152165 | E68: A | F68: G | G68: A | H68: G | I68: 0.0190042 | J68: 0.01295867 | K68: 0.043376 | L68: 0.0433 | M68: FALSE | N68: FALSE | O68: FALSE | P68: Blrstk | Q68: 1 | R68: 63092886 | S68: 0.013148853 | T68: 0.3244 | U68: 1142660 | V68: TRUE | W68: reported | X68: 1 | Y68: 63092886 | Z68: 0.00495869 | AA68: 0.000129999 | AB68: ANGPTL3_ieu-b-107 | AC68: TRUE | AD68: reported | AE68: 2 | AF68: 1 | AG68: TRUE | AH68: =(Table10[[#This Row],[beta.exposure]]/Table10[[#This Row],[se.exposure]])^2 -> 14.68808805
A69: ACLY | B69: LDL cholesterol | C69: Glycated hemoglobin levels | D69: rs13412 | E69: C | F69: T | G69: C | H69: T | I69: -0.0107114 | J69: 8.00E-04 | K69: 0.344318 | L69: 0.355 | M69: FALSE | N69: FALSE | O69: FALSE | P69: ebi-a-GCST90002244 | Q69: 17 | R69: 39967442 | S69: 0.0014 | T69: 0.679301 | U69: 146806 | V69: TRUE | W69: reported | X69: 17 | Y69: 39967442 | Z69: 0.0021918 | AA69: 1.00E-06 | AB69: ACLY_ieu-b-110 | AC69: TRUE | AD69: reported | AE69: 2 | AF69: 1 | AG69: TRUE | AH69: =(Table10[[#This Row],[beta.exposure]]/Table10[[#This Row],[se.exposure]])^2 -> 23.88309632
A70: ANGPTL4 | B70: apolipoprotein A-I | C70: CAD GWAS Cardiogram | D70: rs112363339 | E70: C | F70: T | G70: C | H70: T | I70: 0.0342574 | J70: 0.01857587 | K70: 0.016008 | L70: 0.0234 | M70: FALSE | N70: FALSE | O70: FALSE | P70: Blrstk | Q70: 19 | R70: 8502101 | S70: 0.018722912 | T70: 0.3211 | U70: 1110970 | V70: TRUE | W70: reported | X70: 19 | Y70: 8502101 | Z70: 0.00784238 | AA70: 1.30E-05 | AB70: ANGPTL4_ieu-b-107 | AC70: TRUE | AD70: reported | AE70: 2 | AF70: 1 | AG70: TRUE | AH70: =(Table10[[#This Row],[beta.exposure]]/Table10[[#This Row],[se.exposure]])^2 -> 19.08152291
A71: ACLY | B71: apolipoprotein B | C71: HOMA-B | D71: rs13412 | E71: C | F71: T | G71: C | H71: T | I71: -0.0108859 | J71: -0.0018 | K71: 0.344318 | M71: FALSE | N71: FALSE | O71: FALSE | P71: ieu-b-117 | Q71: 17 | R71: 39967442 | S71: 0.0037 | T71: 0.6353 | U71: 36466 | V71: TRUE | W71: reported | X71: 17 | Y71: 39967442 | Z71: 0.00218441 | AA71: 6.20E-07 | AB71: ACLY_ieu-b-108 | AC71: TRUE | AD71: reported | AE71: 2 | AF71: 1 | AG71: TRUE | AH71: =(Table10[[#This Row],[beta.exposure]]/Table10[[#This Row],[se.exposure]])^2 -> 24.83478296
A72: ANGPTL4 | B72: apolipoprotein A-I | C72: CAD GWAS Cardiogram | D72: rs113507209 | E72: C | F72: G | G72: C | H72: G | I72: -0.00635054 | J72: 0.00146221 | K72: 0.125034 | L72: 0.1327 | M72: FALSE | N72: TRUE | O72: FALSE | P72: Blrstk | Q72: 19 | R72: 8414166 | S72: 0.010262568 | T72: 0.8867 | U72: 987142 | V72: TRUE | W72: reported | X72: 19 | Y72: 8414166 | Z72: 0.00344043 | AA72: 0.0649995 | AB72: ANGPTL4_ieu-b-107 | AC72: TRUE | AD72: reported | AE72: 2 | AF72: 1 | AG72: TRUE | AH72: =(Table10[[#This Row],[beta.exposure]]/Table10[[#This Row],[se.exposure]])^2 -> 3.407186135
A73: ANGPTL4 | B73: apolipoprotein A-I | C73: CAD GWAS Cardiogram | D73: rs113894477 | E73: G | F73: A | G73: G | H73: A | I73: -0.0109031 | J73: 0.00612111 | K73: 0.030845 | L73: 0.028 | M73: FALSE | N73: FALSE | O73: FALSE | P73: Blrstk | Q73: 19 | R73: 8471612 | S73: 0.016865948 | T73: 0.7167 | U73: 1104930 | V73: TRUE | W73: reported | X73: 19 | Y73: 8471612 | Z73: 0.00599738 | AA73: 0.0690001 | AB73: ANGPTL4_ieu-b-107 | AC73: TRUE | AD73: reported | AE73: 2 | AF73: 1 | AG73: TRUE | AH73: =(Table10[[#This Row],[beta.exposure]]/Table10[[#This Row],[se.exposure]])^2 -> 3.305041039
A74: ANGPTL4 | B74: apolipoprotein A-I | C74: CAD GWAS Cardiogram | D74: rs116211475 | E74: T | F74: G | G74: T | H74: G | I74: 0.0175697 | J74: -0.01214212 | K74: 0.015108 | L74: 0.0248 | M74: FALSE | N74: FALSE | O74: FALSE | P74: Blrstk | Q74: 19 | R74: 8329038 | S74: 0.018516573 | T74: 0.512 | U74: 1101650 | V74: TRUE | W74: reported | X74: 19 | Y74: 8329038 | Z74: 0.00804614 | AA74: 0.0290001 | AB74: ANGPTL4_ieu-b-107 | AC74: TRUE | AD74: reported | AE74: 2 | AF74: 1 | AG74: TRUE | AH74: =(Table10[[#This Row],[beta.exposure]]/Table10[[#This Row],[se.exposure]])^2 -> 4.768189668
A75: ANGPTL4 | B75: apolipoprotein A-I | C75: CAD GWAS Cardiogram | D75: rs11667277 | E75: A | F75: G | G75: A | H75: G | I75: -0.00955922 | J75: -0.00357636 | K75: 0.03162 | L75: 0.0266 | M75: FALSE | N75: FALSE | O75: FALSE | P75: Blrstk | Q75: 19 | R75: 8476358 | S75: 0.017536438 | T75: 0.8384 | U75: 1094520 | V75: TRUE | W75: reported | X75: 19 | Y75: 8476358 | Z75: 0.00559612 | AA75: 0.0879995 | AB75: ANGPTL4_ieu-b-107 | AC75: TRUE | AD75: reported | AE75: 2 | AF75: 1 | AG75: TRUE | AH75: =(Table10[[#This Row],[beta.exposure]]/Table10[[#This Row],[se.exposure]])^2 -> 2.917903172
A76: ACLY | B76: LDL cholesterol | C76: HOMA-B | D76: rs13412 | E76: C | F76: T | G76: C | H76: T | I76: -0.0107114 | J76: -0.0018 | K76: 0.344318 | M76: FALSE | N76: FALSE | O76: FALSE | P76: ieu-b-117 | Q76: 17 | R76: 39967442 | S76: 0.0037 | T76: 0.6353 | U76: 36466 | V76: TRUE | W76: reported | X76: 17 | Y76: 39967442 | Z76: 0.0021918 | AA76: 1.00E-06 | AB76: ACLY_ieu-b-110 | AC76: TRUE | AD76: reported | AE76: 2 | AF76: 1 | AG76: TRUE | AH76: =(Table10[[#This Row],[beta.exposure]]/Table10[[#This Row],[se.exposure]])^2 -> 23.88309632
A77: ANGPTL4 | B77: apolipoprotein A-I | C77: CAD GWAS Cardiogram | D77: rs116966673 | E77: A | F77: G | G77: A | H77: G | I77: -0.00752999 | J77: 0.0172464 | K77: 0.021018 | L77: 0.0202 | M77: FALSE | N77: FALSE | O77: FALSE | P77: Blrstk | Q77: 19 | R77: 8336797 | S77: 0.022432943 | T77: 0.442 | U77: 941265 | V77: TRUE | W77: reported | X77: 19 | Y77: 8336797 | Z77: 0.00683312 | AA77: 0.27 | AB77: ANGPTL4_ieu-b-107 | AC77: TRUE | AD77: reported | AE77: 2 | AF77: 1 | AG77: TRUE | AH77: =(Table10[[#This Row],[beta.exposure]]/Table10[[#This Row],[se.exposure]])^2 -> 1.214369088
A78: ANGPTL4 | B78: apolipoprotein A-I | C78: CAD GWAS Cardiogram | D78: rs117019601 | E78: C | F78: T | G78: C | H78: T | I78: -0.0147727 | J78: 0.00557921 | K78: 0.039324 | L78: 0.0331 | M78: FALSE | N78: FALSE | O78: FALSE | P78: Blrstk | Q78: 19 | R78: 8500664 | S78: 0.016643167 | T78: 0.7375 | U78: 1053640 | V78: TRUE | W78: reported | X78: 19 | Y78: 8500664 | Z78: 0.0053166 | AA78: 0.00549997 | AB78: ANGPTL4_ieu-b-107 | AC78: TRUE | AD78: reported | AE78: 2 | AF78: 1 | AG78: TRUE | AH78: =(Table10[[#This Row],[beta.exposure]]/Table10[[#This Row],[se.exposure]])^2 -> 7.720612985
A79: ANGPTL4 | B79: apolipoprotein A-I | C79: CAD GWAS Cardiogram | D79: rs117069620 | E79: G | F79: A | G79: G | H79: A | I79: 0.0132348 | J79: -0.03698643 | K79: 0.021796 | L79: 0.0231 | M79: FALSE | N79: FALSE | O79: FALSE | P79: Blrstk | Q79: 19 | R79: 8328368 | S79: 0.018352075 | T79: 0.04386 | U79: 1128190 | V79: TRUE | W79: reported | X79: 19 | Y79: 8328368 | Z79: 0.00682516 | AA79: 0.0519996 | AB79: ANGPTL4_ieu-b-107 | AC79: TRUE | AD79: reported | AE79: 2 | AF79: 1 | AG79: TRUE | AH79: =(Table10[[#This Row],[beta.exposure]]/Table10[[#This Row],[se.exposure]])^2 -> 3.760183954
A80: ANGPTL4 | B80: apolipoprotein A-I | C80: CAD GWAS Cardiogram | D80: rs117833207 | E80: C | F80: G | G80: C | H80: G | I80: 0.0104374 | J80: -0.00341652 | K80: 0.065084 | L80: 0.0676 | M80: FALSE | N80: TRUE | O80: FALSE | P80: Blrstk | Q80: 19 | R80: 8408044 | S80: 0.011378166 | T80: 0.764 | U80: 1088460 | V80: TRUE | W80: reported | X80: 19 | Y80: 8408044 | Z80: 0.00416821 | AA80: 0.012 | AB80: ANGPTL4_ieu-b-107 | AC80: TRUE | AD80: reported | AE80: 2 | AF80: 1 | AG80: TRUE | AH80: =(Table10[[#This Row],[beta.exposure]]/Table10[[#This Row],[se.exposure]])^2 -> 6.270258893
A81: ANGPTL4 | B81: apolipoprotein A-I | C81: CAD GWAS Cardiogram | D81: rs117844599 | E81: A | F81: G | G81: A | H81: G | I81: -0.00457958 | J81: -0.00071359 | K81: 0.145865 | L81: 0.134 | M81: FALSE | N81: FALSE | O81: FALSE | P81: Blrstk | Q81: 19 | R81: 8414512 | S81: 0.0081060371 | T81: 0.9299 | U81: 1077590 | V81: TRUE | W81: reported | X81: 19 | Y81: 8414512 | Z81: 0.00292827 | AA81: 0.12 | AB81: ANGPTL4_ieu-b-107 | AC81: TRUE | AD81: reported | AE81: 2 | AF81: 1 | AG81: TRUE | AH81: =(Table10[[#This Row],[beta.exposure]]/Table10[[#This Row],[se.exposure]])^2 -> 2.445845747
A82: ACLY | B82: apolipoprotein B | C82: HOMA-IR | D82: rs13412 | E82: C | F82: T | G82: C | H82: T | I82: -0.0108859 | J82: -3.00E-04 | K82: 0.344318 | M82: FALSE | N82: FALSE | O82: FALSE | P82: ieu-b-118 | Q82: 17 | R82: 39967442 | S82: 0.0047 | T82: 0.9528 | U82: 37037 | V82: TRUE | W82: reported | X82: 17 | Y82: 39967442 | Z82: 0.00218441 | AA82: 6.20E-07 | AB82: ACLY_ieu-b-108 | AC82: TRUE | AD82: reported | AE82: 2 | AF82: 1 | AG82: TRUE | AH82: =(Table10[[#This Row],[beta.exposure]]/Table10[[#This Row],[se.exposure]])^2 -> 24.83478296
A83: ANGPTL4 | B83: apolipoprotein A-I | C83: CAD GWAS Cardiogram | D83: rs12610494 | E83: C | F83: G | G83: C | H83: G | I83: -0.00266425 | J83: -0.00610524 | K83: 0.102593 | L83: 0.1005 | M83: FALSE | N83: TRUE | O83: FALSE | P83: Blrstk | Q83: 19 | R83: 8407470 | S83: 0.0091740003 | T83: 0.5057 | U83: 1140530 | V83: TRUE | W83: reported | X83: 19 | Y83: 8407470 | Z83: 0.00345342 | AA83: 0.44 | AB83: ANGPTL4_ieu-b-107 | AC83: TRUE | AD83: reported | AE83: 2 | AF83: 1 | AG83: TRUE | AH83: =(Table10[[#This Row],[beta.exposure]]/Table10[[#This Row],[se.exposure]])^2 -> 0.5951838649
A84: ANGPTL4 | B84: apolipoprotein A-I | C84: CAD GWAS Cardiogram | D84: rs12979241 | E84: T | F84: C | G84: T | H84: C | I84: -0.0103774 | J84: 0.0062308 | K84: 0.154348 | L84: 0.1906 | M84: FALSE | N84: FALSE | O84: FALSE | P84: Blrstk | Q84: 19 | R84: 8340618 | S84: 0.010478263 | T84: 0.5521 | U84: 829210 | V84: TRUE | W84: reported | X84: 19 | Y84: 8340618 | Z84: 0.00335448 | AA84: 0.002 | AB84: ANGPTL4_ieu-b-107 | AC84: TRUE | AD84: reported | AE84: 2 | AF84: 1 | AG84: TRUE | AH84: =(Table10[[#This Row],[beta.exposure]]/Table10[[#This Row],[se.exposure]])^2 -> 9.57032531
A85: ANGPTL4 | B85: apolipoprotein A-I | C85: CAD GWAS Cardiogram | D85: rs12980131 | E85: G | F85: A | G85: G | H85: A | I85: -0.00889391 | J85: -0.00680089 | K85: 0.341442 | L85: 0.3234 | M85: FALSE | N85: FALSE | O85: FALSE | P85: Blrstk | Q85: 19 | R85: 8484796 | S85: 0.0057471225 | T85: 0.2367 | U85: 1110870 | V85: TRUE | W85: reported | X85: 19 | Y85: 8484796 | Z85: 0.00207394 | AA85: 1.80E-05 | AB85: ANGPTL4_ieu-b-107 | AC85: TRUE | AD85: reported | AE85: 2 | AF85: 1 | AG85: TRUE | AH85: =(Table10[[#This Row],[beta.exposure]]/Table10[[#This Row],[se.exposure]])^2 -> 18.39048086
A86: ANGPTL4 | B86: apolipoprotein A-I | C86: CAD GWAS Cardiogram | D86: rs12982889 | E86: T | F86: A | G86: T | H86: A | I86: -0.0113327 | J86: 0.01816607 | K86: 0.051792 | L86: 0.058 | M86: FALSE | N86: TRUE | O86: FALSE | P86: Blrstk | Q86: 19 | R86: 8332580 | S86: 0.011174435 | T86: 0.104 | U86: 1145300 | V86: TRUE | W86: reported | X86: 19 | Y86: 8332580 | Z86: 0.004455 | AA86: 0.0109999 | AB86: ANGPTL4_ieu-b-107 | AC86: TRUE | AD86: reported | AE86: 2 | AF86: 1 | AG86: TRUE | AH86: =(Table10[[#This Row],[beta.exposure]]/Table10[[#This Row],[se.exposure]])^2 -> 6.470999522
A87: ANGPTL4 | B87: apolipoprotein A-I | C87: CAD GWAS Cardiogram | D87: rs12986323 | E87: G | F87: T | G87: G | H87: T | I87: -0.0192823 | J87: 0.04046993 | K87: 0.014065 | L87: 0.0199 | M87: FALSE | N87: FALSE | O87: FALSE | P87: Blrstk | Q87: 19 | R87: 8381489 | S87: 0.019997357 | T87: 0.04299 | U87: 1118220 | V87: TRUE | W87: reported | X87: 19 | Y87: 8381489 | Z87: 0.00831861 | AA87: 0.02 | AB87: ANGPTL4_ieu-b-107 | AC87: TRUE | AD87: reported | AE87: 2 | AF87: 1 | AG87: TRUE | AH87: =(Table10[[#This Row],[beta.exposure]]/Table10[[#This Row],[se.exposure]])^2 -> 5.372991373
A88: ANGPTL4 | B88: apolipoprotein A-I | C88: CAD GWAS Cardiogram | D88: rs138124955 | E88: A | F88: G | G88: A | H88: G | I88: 0.0197349 | J88: -0.01687585 | K88: 0.014936 | L88: 0.0188 | M88: FALSE | N88: FALSE | O88: FALSE | P88: Blrstk | Q88: 19 | R88: 8490690 | S88: 0.020462635 | T88: 0.4095 | U88: 1092400 | V88: TRUE | W88: reported | X88: 19 | Y88: 8490690 | Z88: 0.00812749 | AA88: 0.015 | AB88: ANGPTL4_ieu-b-107 | AC88: TRUE | AD88: reported | AE88: 2 | AF88: 1 | AG88: TRUE | AH88: =(Table10[[#This Row],[beta.exposure]]/Table10[[#This Row],[se.exposure]])^2 -> 5.895993181
A89: ANGPTL4 | B89: apolipoprotein A-I | C89: CAD GWAS Cardiogram | D89: rs138149247 | E89: T | F89: C | G89: T | H89: C | I89: -0.0180637 | J89: 0.03121176 | K89: 0.011733 | L89: 0.012 | M89: FALSE | N89: FALSE | O89: FALSE | P89: Blrstk | Q89: 19 | R89: 8466908 | S89: 0.029447739 | T89: 0.2892 | U89: 934741 | V89: TRUE | W89: reported | X89: 19 | Y89: 8466908 | Z89: 0.00928631 | AA89: 0.0519996 | AB89: ANGPTL4_ieu-b-107 | AC89: TRUE | AD89: reported | AE89: 2 | AF89: 1 | AG89: TRUE | AH89: =(Table10[[#This Row],[beta.exposure]]/Table10[[#This Row],[se.exposure]])^2 -> 3.783790383
A90: ANGPTL4 | B90: apolipoprotein A-I | C90: CAD GWAS Cardiogram | D90: rs139662507 | E90: G | F90: C | G90: G | H90: C | I90: 0.00260024 | J90: 0.00496314 | K90: 0.334491 | L90: 0.3239 | M90: FALSE | N90: TRUE | O90: FALSE | P90: Blrstk | Q90: 19 | R90: 8338573 | S90: 0.0077283734 | T90: 0.5207 | U90: 895497 | V90: TRUE | W90: reported | X90: 19 | Y90: 8338573 | Z90: 0.00236056 | AA90: 0.27 | AB90: ANGPTL4_ieu-b-107 | AC90: TRUE | AD90: reported | AE90: 2 | AF90: 1 | AG90: TRUE | AH90: =(Table10[[#This Row],[beta.exposure]]/Table10[[#This Row],[se.exposure]])^2 -> 1.213379861
A91: ANGPTL4 | B91: apolipoprotein A-I | C91: CAD GWAS Cardiogram | D91: rs139864259 | E91: T | F91: C | G91: T | H91: C | I91: 0.00811141 | J91: 0.00375588 | K91: 0.021532 | L91: 0.0269 | M91: FALSE | N91: FALSE | O91: FALSE | P91: Blrstk | Q91: 19 | R91: 8510223 | S91: 0.021968596 | T91: 0.8643 | U91: 922234 | V91: TRUE | W91: reported | X91: 19 | Y91: 8510223 | Z91: 0.00750994 | AA91: 0.28 | AB91: ANGPTL4_ieu-b-107 | AC91: TRUE | AD91: reported | AE91: 2 | AF91: 1 | AG91: TRUE | AH91: =(Table10[[#This Row],[beta.exposure]]/Table10[[#This Row],[se.exposure]])^2 -> 1.166594093
A92: ANGPTL4 | B92: apolipoprotein A-I | C92: CAD GWAS Cardiogram | D92: rs140767199 | E92: C | F92: T | G92: C | H92: T | I92: -0.0145674 | J92: 0.03626689 | K92: 0.013406 | L92: 0.0148 | M92: FALSE | N92: FALSE | O92: FALSE | P92: Blrstk | Q92: 19 | R92: 8538886 | S92: 0.023395166 | T92: 0.1211 | U92: 1093190 | V92: TRUE | W92: reported | X92: 19 | Y92: 8538886 | Z92: 0.0086181 | AA92: 0.0909997 | AB92: ANGPTL4_ieu-b-107 | AC92: TRUE | AD92: reported | AE92: 2 | AF92: 1 | AG92: TRUE | AH92: =(Table10[[#This Row],[beta.exposure]]/Table10[[#This Row],[se.exposure]])^2 -> 2.857202574
A93: ANGPTL4 | B93: apolipoprotein A-I | C93: CAD GWAS Cardiogram | D93: rs141428049 | E93: T | F93: C | G93: T | H93: C | I93: 0.00872654 | J93: -0.00547226 | K93: 0.023209 | L93: 0.0235 | M93: FALSE | N93: FALSE | O93: FALSE | P93: Blrstk | Q93: 19 | R93: 8481002 | S93: 0.018642454 | T93: 0.7691 | U93: 1100100 | V93: TRUE | W93: reported | X93: 19 | Y93: 8481002 | Z93: 0.006578 | AA93: 0.18 | AB93: ANGPTL4_ieu-b-107 | AC93: TRUE | AD93: reported | AE93: 2 | AF93: 1 | AG93: TRUE | AH93: =(Table10[[#This Row],[beta.exposure]]/Table10[[#This Row],[se.exposure]])^2 -> 1.759934193
A94: ANGPTL4 | B94: apolipoprotein A-I | C94: CAD GWAS Cardiogram | D94: rs141903508 | E94: A | F94: G | G94: A | H94: G | I94: -0.0165985 | J94: 0.02964078 | K94: 0.024146 | L94: 0.0227 | M94: FALSE | N94: FALSE | O94: FALSE | P94: Blrstk | Q94: 19 | R94: 8463316 | S94: 0.017150868 | T94: 0.08395 | U94: 1137610 | V94: TRUE | W94: reported | X94: 19 | Y94: 8463316 | Z94: 0.00644929 | AA94: 0.01 | AB94: ANGPTL4_ieu-b-107 | AC94: TRUE | AD94: reported | AE94: 2 | AF94: 1 | AG94: TRUE | AH94: =(Table10[[#This Row],[beta.exposure]]/Table10[[#This Row],[se.exposure]])^2 -> 6.623901622
A95: ANGPTL4 | B95: apolipoprotein A-I | C95: CAD GWAS Cardiogram | D95: rs142328451 | E95: T | F95: C | G95: T | H95: C | I95: -0.0096601 | J95: 0.01262127 | K95: 0.017778 | L95: 0.0181 | M95: FALSE | N95: FALSE | O95: FALSE | P95: Blrstk | Q95: 19 | R95: 8396057 | S95: 0.024755621 | T95: 0.6102 | U95: 938845 | V95: TRUE | W95: reported | X95: 19 | Y95: 8396057 | Z95: 0.00794542 | AA95: 0.22 | AB95: ANGPTL4_ieu-b-107 | AC95: TRUE | AD95: reported | AE95: 2 | AF95: 1 | AG95: TRUE | AH95: =(Table10[[#This Row],[beta.exposure]]/Table10[[#This Row],[se.exposure]])^2 -> 1.478187502
A96: ANGPTL4 | B96: apolipoprotein A-I | C96: CAD GWAS Cardiogram | D96: rs143106879 | E96: T | F96: A | G96: T | H96: A | I96: -0.00528983 | J96: 0.01289065 | K96: 0.012963 | L96: 0.0128 | M96: FALSE | N96: TRUE | O96: FALSE | P96: Blrstk | Q96: 19 | R96: 8335115 | S96: 0.027932354 | T96: 0.6444 | U96: 963695 | V96: TRUE | W96: reported | X96: 19 | Y96: 8335115 | Z96: 0.00907172 | AA96: 0.56 | AB96: ANGPTL4_ieu-b-107 | AC96: TRUE | AD96: reported | AE96: 2 | AF96: 1 | AG96: TRUE | AH96: =(Table10[[#This Row],[beta.exposure]]/Table10[[#This Row],[se.exposure]])^2 -> 0.3400197598
A97: ANGPTL4 | B97: apolipoprotein A-I | C97: CAD GWAS Cardiogram | D97: rs144110893 | E97: A | F97: G | G97: A | H97: G | I97: -0.0139631 | J97: -0.00943474 | K97: 0.044061 | L97: 0.04 | M97: FALSE | N97: FALSE | O97: FALSE | P97: Blrstk | Q97: 19 | R97: 8425649 | S97: 0.01492192 | T97: 0.5272 | U97: 1074090 | V97: TRUE | W97: reported | X97: 19 | Y97: 8425649 | Z97: 0.00508711 | AA97: 0.0061 | AB97: ANGPTL4_ieu-b-107 | AC97: TRUE | AD97: reported | AE97: 2 | AF97: 1 | AG97: TRUE | AH97: =(Table10[[#This Row],[beta.exposure]]/Table10[[#This Row],[se.exposure]])^2 -> 7.533927549
A98: ANGPTL4 | B98: apolipoprotein A-I | C98: CAD GWAS Cardiogram | D98: rs150562358 | E98: C | F98: G | G98: C | H98: G | I98: 0.0079448 | J98: -0.0250537 | K98: 0.034308 | L98: 0.0346 | M98: FALSE | N98: TRUE | O98: FALSE | P98: Blrstk | Q98: 19 | R98: 8490834 | S98: 0.014875666 | T98: 0.09214 | U98: 1098120 | V98: TRUE | W98: reported | X98: 19 | Y98: 8490834 | Z98: 0.0054248 | AA98: 0.14 | AB98: ANGPTL4_ieu-b-107 | AC98: TRUE | AD98: reported | AE98: 2 | AF98: 1 | AG98: TRUE | AH98: =(Table10[[#This Row],[beta.exposure]]/Table10[[#This Row],[se.exposure]])^2 -> 2.144857654
A99: ANGPTL4 | B99: apolipoprotein A-I | C99: CAD GWAS Cardiogram | D99: rs191591450 | E99: T | F99: C | G99: T | H99: C | I99: 0.00678445 | J99: 0.02218047 | K99: 0.019647 | L99: 0.0212 | M99: FALSE | N99: FALSE | O99: FALSE | P99: Blrstk | Q99: 19 | R99: 8460712 | S99: 0.021635072 | T99: 0.3053 | U99: 967799 | V99: TRUE | W99: reported | X99: 19 | Y99: 8460712 | Z99: 0.00755302 | AA99: 0.37 | AB99: ANGPTL4_ieu-b-107 | AC99: TRUE | AD99: reported | AE99: 2 | AF99: 1 | AG99: TRUE | AH99: =(Table10[[#This Row],[beta.exposure]]/Table10[[#This Row],[se.exposure]])^2 -> 0.8068411188
A100: ANGPTL4 | B100: apolipoprotein A-I | C100: CAD GWAS Cardiogram | D100: rs2232777 | E100: G | F100: C | G100: G | H100: C | I100: 0.0152172 | J100: -0.00685679 | K100: 0.019394 | L100: 0.0254 | M100: FALSE | N100: TRUE | O100: FALSE | P100: Blrstk | Q100: 19 | R100: 8372994 | S100: 0.018465488 | T100: 0.7104 | U100: 1093220 | V100: TRUE | W100: reported | X100: 19 | Y100: 8372994 | Z100: 0.00721736 | AA100: 0.0350002 | AB100: ANGPTL4_ieu-b-107 | AC100: TRUE | AD100: reported | AE100: 2 | AF100: 1 | AG100: TRUE | AH100: =(Table10[[#This Row],[beta.exposure]]/Table10[[#This Row],[se.exposure]])^2 -> 4.445419606
A101: ANGPTL4 | B101: apolipoprotein A-I | C101: CAD GWAS Cardiogram | D101: rs2447896 | E101: T | F101: C | G101: T | H101: C | I101: -0.00522607 | J101: 5.72E-05 | K101: 0.090518 | L101: 0.1063 | M101: FALSE | N101: FALSE | O101: FALSE | P101: Blrstk | Q101: 19 | R101: 8329334 | S101: 0.0085091884 | T101: 0.9946 | U101: 1123920 | V101: TRUE | W101: reported | X101: 19 | Y101: 8329334 | Z101: 0.00347988 | AA101: 0.13 | AB101: ANGPTL4_ieu-b-107 | AC101: TRUE | AD101: reported | AE101: 2 | AF101: 1 | AG101: TRUE | AH101: =(Table10[[#This Row],[beta.exposure]]/Table10[[#This Row],[se.exposure]])^2 -> 2.255391343
A102: ANGPTL4 | B102: apolipoprotein A-I | C102: CAD GWAS Cardiogram | D102: rs28830565 | E102: T | F102: C | G102: T | H102: C | I102: -0.0108105 | J102: 0.01648645 | K102: 0.029686 | L102: 0.0384 | M102: FALSE | N102: FALSE | O102: FALSE | P102: Blrstk | Q102: 19 | R102: 8445606 | S102: 0.015413959 | T102: 0.2848 | U102: 1111580 | V102: TRUE | W102: reported | X102: 19 | Y102: 8445606 | Z102: 0.00585763 | AA102: 0.0649995 | AB102: ANGPTL4_ieu-b-107 | AC102: TRUE | AD102: reported | AE102: 2 | AF102: 1 | AG102: TRUE | AH102: =(Table10[[#This Row],[beta.exposure]]/Table10[[#This Row],[se.exposure]])^2 -> 3.406023897
A103: ANGPTL4 | B103: apolipoprotein A-I | C103: CAD GWAS Cardiogram | D103: rs2913933 | E103: T | F103: A | G103: T | H103: A | I103: -0.00435849 | J103: -0.00028408 | K103: 0.289702 | L103: 0.2798 | M103: FALSE | N103: TRUE | O103: FALSE | P103: Blrstk | Q103: 19 | R103: 8334438 | S103: 0.0056154387 | T103: 0.9597 | U103: 1159610 | V103: TRUE | W103: reported | X103: 19 | Y103: 8334438 | Z103: 0.00217146 | AA103: 0.0449997 | AB103: ANGPTL4_ieu-b-107 | AC103: TRUE | AD103: reported | AE103: 2 | AF103: 1 | AG103: TRUE | AH103: =(Table10[[#This Row],[beta.exposure]]/Table10[[#This Row],[se.exposure]])^2 -> 4.028732577
A104: ACLY | B104: LDL cholesterol | C104: HOMA-IR | D104: rs13412 | E104: C | F104: T | G104: C | H104: T | I104: -0.0107114 | J104: -3.00E-04 | K104: 0.344318 | M104: FALSE | N104: FALSE | O104: FALSE | P104: ieu-b-118 | Q104: 17 | R104: 39967442 | S104: 0.0047 | T104: 0.9528 | U104: 37037 | V104: TRUE | W104: reported | X104: 17 | Y104: 39967442 | Z104: 0.0021918 | AA104: 1.00E-06 | AB104: ACLY_ieu-b-110 | AC104: TRUE | AD104: reported | AE104: 2 | AF104: 1 | AG104: TRUE | AH104: =(Table10[[#This Row],[beta.exposure]]/Table10[[#This Row],[se.exposure]])^2 -> 23.88309632
A105: ACLY | B105: apolipoprotein B | C105: random glucose | D105: rs13412 | E105: C | F105: T | G105: C | H105: T | I105: -0.0108859 | J105: 0.000456404456 | K105: 0.344318 | L105: 0.3444 | M105: FALSE | N105: FALSE | O105: FALSE | P105: GCST90271557 | Q105: 17 | R105: 39967442 | S105: 0.000312693398 | T105: 0.1444 | U105: 440190 | V105: TRUE | W105: reported | X105: 17 | Y105: 39967442 | Z105: 0.00218441 | AA105: 6.20E-07 | AB105: ACLY_ieu-b-108 | AC105: TRUE | AD105: reported | AE105: 2 | AF105: 1 | AG105: TRUE | AH105: =(Table10[[#This Row],[beta.exposure]]/Table10[[#This Row],[se.exposure]])^2 -> 24.83478296
A106: ACLY | B106: LDL cholesterol | C106: random glucose | D106: rs13412 | E106: C | F106: T | G106: C | H106: T | I106: -0.0107114 | J106: 0.000456404456 | K106: 0.344318 | L106: 0.3444 | M106: FALSE | N106: FALSE | O106: FALSE | P106: GCST90271557 | Q106: 17 | R106: 39967442 | S106: 0.000312693398 | T106: 0.1444 | U106: 440190 | V106: TRUE | W106: reported | X106: 17 | Y106: 39967442 | Z106: 0.0021918 | AA106: 1.00E-06 | AB106: ACLY_ieu-b-110 | AC106: TRUE | AD106: reported | AE106: 2 | AF106: 1 | AG106: TRUE | AH106: =(Table10[[#This Row],[beta.exposure]]/Table10[[#This Row],[se.exposure]])^2 -> 23.88309632
A107: ANGPTL4 | B107: apolipoprotein A-I | C107: CAD GWAS Cardiogram | D107: rs34099346 | E107: C | F107: G | G107: C | H107: G | I107: 0.00911354 | J107: 0.0032208 | K107: 0.136484 | L107: 0.148 | M107: FALSE | N107: TRUE | O107: FALSE | P107: Blrstk | Q107: 19 | R107: 8503345 | S107: 0.0071037601 | T107: 0.6503 | U107: 1157560 | V107: TRUE | W107: reported | X107: 19 | Y107: 8503345 | Z107: 0.00285595 | AA107: 0.00140001 | AB107: ANGPTL4_ieu-b-107 | AC107: TRUE | AD107: reported | AE107: 2 | AF107: 1 | AG107: TRUE | AH107: =(Table10[[#This Row],[beta.exposure]]/Table10[[#This Row],[se.exposure]])^2 -> 10.18293586
A108: ANGPTL4 | B108: apolipoprotein A-I | C108: CAD GWAS Cardiogram | D108: rs35036141 | E108: C | F108: G | G108: C | H108: G | I108: -0.00630475 | J108: 0.01051221 | K108: 0.149643 | L108: 0.1418 | M108: FALSE | N108: TRUE | O108: FALSE | P108: Blrstk | Q108: 19 | R108: 8433683 | S108: 0.0071916235 | T108: 0.1438 | U108: 1148950 | V108: TRUE | W108: reported | X108: 19 | Y108: 8433683 | Z108: 0.00275525 | AA108: 0.0219999 | AB108: ANGPTL4_ieu-b-107 | AC108: TRUE | AD108: reported | AE108: 2 | AF108: 1 | AG108: TRUE | AH108: =(Table10[[#This Row],[beta.exposure]]/Table10[[#This Row],[se.exposure]])^2 -> 5.236169764
A109: ACLY | B109: apolipoprotein B | C109: T2D GWAS DIAMANTE | D109: rs13412 | E109: C | F109: T | G109: C | H109: T | I109: -0.0108859 | J109: -0.0117 | K109: 0.344318 | L109: 0.359 | M109: FALSE | N109: FALSE | O109: FALSE | P109: kPjrgy | Q109: 17 | R109: 39967442 | S109: 0.0068 | T109: 0.08559 | U109: 251739.5 | V109: TRUE | W109: reported | X109: 17 | Y109: 39967442 | Z109: 0.00218441 | AA109: 6.20E-07 | AB109: ACLY_ieu-b-108 | AC109: TRUE | AD109: reported | AE109: 2 | AF109: 1 | AG109: TRUE | AH109: =(Table10[[#This Row],[beta.exposure]]/Table10[[#This Row],[se.exposure]])^2 -> 24.83478296
A110: ANGPTL4 | B110: apolipoprotein A-I | C110: CAD GWAS Cardiogram | D110: rs35564758 | E110: G | F110: C | G110: G | H110: C | I110: -0.0180486 | J110: 0.00382986 | K110: 0.014915 | L110: 0.0141 | M110: FALSE | N110: TRUE | O110: FALSE | P110: Blrstk | Q110: 19 | R110: 8409211 | S110: 0.027262282 | T110: 0.8883 | U110: 957171 | V110: TRUE | W110: reported | X110: 19 | Y110: 8409211 | Z110: 0.00873298 | AA110: 0.0389996 | AB110: ANGPTL4_ieu-b-107 | AC110: TRUE | AD110: reported | AE110: 2 | AF110: 1 | AG110: TRUE | AH110: =(Table10[[#This Row],[beta.exposure]]/Table10[[#This Row],[se.exposure]])^2 -> 4.271319997
A111: ANGPTL4 | B111: apolipoprotein A-I | C111: CAD GWAS Cardiogram | D111: rs35814151 | E111: A | F111: G | G111: A | H111: G | I111: -0.00708075 | J111: 0.00509434 | K111: 0.609874 | L111: 0.6239 | M111: FALSE | N111: FALSE | O111: FALSE | P111: Blrstk | Q111: 19 | R111: 8343666 | S111: 0.0074680186 | T111: 0.4951 | U111: 934558 | V111: TRUE | W111: reported | X111: 19 | Y111: 8343666 | Z111: 0.0024722 | AA111: 0.00420001 | AB111: ANGPTL4_ieu-b-107 | AC111: TRUE | AD111: reported | AE111: 2 | AF111: 1 | AG111: TRUE | AH111: =(Table10[[#This Row],[beta.exposure]]/Table10[[#This Row],[se.exposure]])^2 -> 8.203351446
A112: ANGPTL4 | B112: apolipoprotein A-I | C112: CAD GWAS Cardiogram | D112: rs35947568 | E112: A | F112: G | G112: A | H112: G | I112: -0.0204476 | J112: 0.00162837 | K112: 0.034783 | L112: 0.0365 | M112: FALSE | N112: FALSE | O112: FALSE | P112: Blrstk | Q112: 19 | R112: 8426530 | S112: 0.014307398 | T112: 0.9094 | U112: 1136380 | V112: TRUE | W112: reported | X112: 19 | Y112: 8426530 | Z112: 0.00535619 | AA112: 0.000129999 | AB112: ANGPTL4_ieu-b-107 | AC112: TRUE | AD112: reported | AE112: 2 | AF112: 1 | AG112: TRUE | AH112: =(Table10[[#This Row],[beta.exposure]]/Table10[[#This Row],[se.exposure]])^2 -> 14.57379757
A113: ACLY | B113: LDL cholesterol | C113: T2D GWAS DIAMANTE | D113: rs13412 | E113: C | F113: T | G113: C | H113: T | I113: -0.0107114 | J113: -0.0117 | K113: 0.344318 | L113: 0.359 | M113: FALSE | N113: FALSE | O113: FALSE | P113: kPjrgy | Q113: 17 | R113: 39967442 | S113: 0.0068 | T113: 0.08559 | U113: 251739.5 | V113: TRUE | W113: reported | X113: 17 | Y113: 39967442 | Z113: 0.0021918 | AA113: 1.00E-06 | AB113: ACLY_ieu-b-110 | AC113: TRUE | AD113: reported | AE113: 2 | AF113: 1 | AG113: TRUE | AH113: =(Table10[[#This Row],[beta.exposure]]/Table10[[#This Row],[se.exposure]])^2 -> 23.88309632
A114: ANGPTL4 | B114: apolipoprotein A-I | C114: CAD GWAS Cardiogram | D114: rs555276719 | E114: A | F114: C | G114: A | H114: C | I114: 0.0230718 | J114: -0.04620504 | K114: 0.034697 | L114: 0.0367 | M114: FALSE | N114: FALSE | O114: FALSE | P114: Blrstk | Q114: 19 | R114: 8366064 | S114: 0.019562261 | T114: 0.01818 | U114: 829210 | V114: TRUE | W114: reported | X114: 19 | Y114: 8366064 | Z114: 0.00544097 | AA114: 2.20E-05 | AB114: ANGPTL4_ieu-b-107 | AC114: TRUE | AD114: reported | AE114: 2 | AF114: 1 | AG114: TRUE | AH114: =(Table10[[#This Row],[beta.exposure]]/Table10[[#This Row],[se.exposure]])^2 -> 17.98085314
A115: ANGPTL4 | B115: apolipoprotein A-I | C115: CAD GWAS Cardiogram | D115: rs56404494 | E115: G | F115: A | G115: G | H115: A | I115: -0.00236309 | J115: 0.00168254 | K115: 0.053306 | L115: 0.0525 | M115: FALSE | N115: FALSE | O115: FALSE | P115: Blrstk | Q115: 19 | R115: 8518260 | S115: 0.011993761 | T115: 0.8884 | U115: 1148100 | V115: TRUE | W115: reported | X115: 19 | Y115: 8518260 | Z115: 0.00442418 | AA115: 0.59 | AB115: ANGPTL4_ieu-b-107 | AC115: TRUE | AD115: reported | AE115: 2 | AF115: 1 | AG115: TRUE | AH115: =(Table10[[#This Row],[beta.exposure]]/Table10[[#This Row],[se.exposure]])^2 -> 0.2852955177
A116: ANGPTL4 | B116: apolipoprotein A-I | C116: CAD GWAS Cardiogram | D116: rs566062807 | E116: A | F116: G | G116: A | H116: G | I116: -0.0205757 | J116: -0.01051575 | K116: 0.027308 | L116: 0.0412 | M116: FALSE | N116: FALSE | O116: FALSE | P116: Blrstk | Q116: 19 | R116: 8351742 | S116: 0.022124411 | T116: 0.6346 | U116: 829210 | V116: TRUE | W116: reported | X116: 19 | Y116: 8351742 | Z116: 0.00756105 | AA116: 0.00649995 | AB116: ANGPTL4_ieu-b-107 | AC116: TRUE | AD116: reported | AE116: 2 | AF116: 1 | AG116: TRUE | AH116: =(Table10[[#This Row],[beta.exposure]]/Table10[[#This Row],[se.exposure]])^2 -> 7.405340261
A117: ANGPTL4 | B117: apolipoprotein A-I | C117: CAD GWAS Cardiogram | D117: rs566341779 | E117: C | F117: A | G117: C | H117: A | I117: 0.00308343 | J117: -0.00049734 | K117: 0.061047 | L117: 0.0798 | M117: FALSE | N117: FALSE | O117: FALSE | P117: Blrstk | Q117: 19 | R117: 8352330 | S117: 0.016328335 | T117: 0.9757 | U117: 829210 | V117: TRUE | W117: reported | X117: 19 | Y117: 8352330 | Z117: 0.00530961 | AA117: 0.56 | AB117: ANGPTL4_ieu-b-107 | AC117: TRUE | AD117: reported | AE117: 2 | AF117: 1 | AG117: TRUE | AH117: =(Table10[[#This Row],[beta.exposure]]/Table10[[#This Row],[se.exposure]])^2 -> 0.3372429984
A118: ANGPTL4 | B118: apolipoprotein A-I | C118: CAD GWAS Cardiogram | D118: rs576092762 | E118: T | F118: C | G118: T | H118: C | I118: -0.000803766 | J118: 0.00665097 | K118: 0.319932 | L118: 0.2818 | M118: FALSE | N118: FALSE | O118: FALSE | P118: Blrstk | Q118: 19 | R118: 8358922 | S118: 0.009050102 | T118: 0.4624 | U118: 829210 | V118: TRUE | W118: reported | X118: 19 | Y118: 8358922 | Z118: 0.00252705 | AA118: 0.75 | AB118: ANGPTL4_ieu-b-107 | AC118: TRUE | AD118: reported | AE118: 2 | AF118: 1 | AG118: TRUE | AH118: =(Table10[[#This Row],[beta.exposure]]/Table10[[#This Row],[se.exposure]])^2 -> 0.1011653044
A119: ANGPTL4 | B119: apolipoprotein A-I | C119: CAD GWAS Cardiogram | D119: rs577020248 | E119: T | F119: C | G119: T | H119: C | I119: -0.00700569 | J119: -0.018552 | K119: 0.037043 | L119: 0.0455 | M119: FALSE | N119: FALSE | O119: FALSE | P119: Blrstk | Q119: 19 | R119: 8338096 | S119: 0.018892295 | T119: 0.3261 | U119: 829210 | V119: TRUE | W119: reported | X119: 19 | Y119: 8338096 | Z119: 0.00583334 | AA119: 0.23 | AB119: ANGPTL4_ieu-b-107 | AC119: TRUE | AD119: reported | AE119: 2 | AF119: 1 | AG119: TRUE | AH119: =(Table10[[#This Row],[beta.exposure]]/Table10[[#This Row],[se.exposure]])^2 -> 1.442338683
A120: ANGPTL4 | B120: apolipoprotein A-I | C120: CAD GWAS Cardiogram | D120: rs62117482 | E120: T | F120: C | G120: T | H120: C | I120: -0.00584728 | J120: 0.00405248 | K120: 0.244671 | L120: 0.2514 | M120: FALSE | N120: FALSE | O120: FALSE | P120: Blrstk | Q120: 19 | R120: 8413171 | S120: 0.0070342556 | T120: 0.5645 | U120: 1077610 | V120: TRUE | W120: reported | X120: 19 | Y120: 8413171 | Z120: 0.00253892 | AA120: 0.021 | AB120: ANGPTL4_ieu-b-107 | AC120: TRUE | AD120: reported | AE120: 2 | AF120: 1 | AG120: TRUE | AH120: =(Table10[[#This Row],[beta.exposure]]/Table10[[#This Row],[se.exposure]])^2 -> 5.30407612
A121: ANGPTL4 | B121: apolipoprotein A-I | C121: CAD GWAS Cardiogram | D121: rs62117484 | E121: C | F121: T | G121: C | H121: T | I121: 0.000583873 | J121: -0.00418458 | K121: 0.347735 | L121: 0.319 | M121: FALSE | N121: FALSE | O121: FALSE | P121: Blrstk | Q121: 19 | R121: 8414226 | S121: 0.0071779403 | T121: 0.5599 | U121: 1007760 | V121: TRUE | W121: reported | X121: 19 | Y121: 8414226 | Z121: 0.00236538 | AA121: 0.81 | AB121: ANGPTL4_ieu-b-107 | AC121: TRUE | AD121: reported | AE121: 2 | AF121: 1 | AG121: TRUE | AH121: =(Table10[[#This Row],[beta.exposure]]/Table10[[#This Row],[se.exposure]])^2 -> 0.06093052842
A122: ANGPTL4 | B122: apolipoprotein A-I | C122: CAD GWAS Cardiogram | D122: rs675179 | E122: G | F122: A | G122: G | H122: A | I122: -0.0042639 | J122: 0.00582553 | K122: 0.068294 | L122: 0.0643 | M122: FALSE | N122: FALSE | O122: FALSE | P122: Blrstk | Q122: 19 | R122: 8342972 | S122: 0.018666831 | T122: 0.755 | U122: 570315 | V122: TRUE | W122: reported | X122: 19 | Y122: 8342972 | Z122: 0.0049385 | AA122: 0.39 | AB122: ANGPTL4_ieu-b-107 | AC122: TRUE | AD122: reported | AE122: 2 | AF122: 1 | AG122: TRUE | AH122: =(Table10[[#This Row],[beta.exposure]]/Table10[[#This Row],[se.exposure]])^2 -> 0.7454592453
A123: ANGPTL4 | B123: apolipoprotein A-I | C123: CAD GWAS Cardiogram | D123: rs72998796 | E123: T | F123: G | G123: T | H123: G | I123: 0.00431662 | J123: -0.01834446 | K123: 0.084578 | L123: 0.0906 | M123: FALSE | N123: FALSE | O123: FALSE | P123: Blrstk | Q123: 19 | R123: 8529764 | S123: 0.009688189 | T123: 0.05829 | U123: 1138260 | V123: TRUE | W123: reported | X123: 19 | Y123: 8529764 | Z123: 0.0036088 | AA123: 0.23 | AB123: ANGPTL4_ieu-b-107 | AC123: TRUE | AD123: reported | AE123: 2 | AF123: 1 | AG123: TRUE | AH123: =(Table10[[#This Row],[beta.exposure]]/Table10[[#This Row],[se.exposure]])^2 -> 1.430744249
A124: ANGPTL4 | B124: apolipoprotein A-I | C124: CAD GWAS Cardiogram | D124: rs75570695 | E124: A | F124: G | G124: A | H124: G | I124: 0.00841542 | J124: 0.02239109 | K124: 0.01915 | L124: 0.0249 | M124: FALSE | N124: FALSE | O124: FALSE | P124: Blrstk | Q124: 19 | R124: 8333330 | S124: 0.019145298 | T124: 0.2422 | U124: 1072100 | V124: TRUE | W124: reported | X124: 19 | Y124: 8333330 | Z124: 0.00743751 | AA124: 0.26 | AB124: ANGPTL4_ieu-b-107 | AC124: TRUE | AD124: reported | AE124: 2 | AF124: 1 | AG124: TRUE | AH124: =(Table10[[#This Row],[beta.exposure]]/Table10[[#This Row],[se.exposure]])^2 -> 1.280254958
A125: ANGPTL4 | B125: apolipoprotein A-I | C125: CAD GWAS Cardiogram | D125: rs75630517 | E125: T | F125: C | G125: T | H125: C | I125: -0.0218393 | J125: 0.03542601 | K125: 0.020405 | L125: 0.0176 | M125: FALSE | N125: FALSE | O125: FALSE | P125: Blrstk | Q125: 19 | R125: 8483036 | S125: 0.025387869 | T125: 0.1629 | U125: 934741 | V125: TRUE | W125: reported | X125: 19 | Y125: 8483036 | Z125: 0.00742117 | AA125: 0.00329997 | AB125: ANGPTL4_ieu-b-107 | AC125: TRUE | AD125: reported | AE125: 2 | AF125: 1 | AG125: TRUE | AH125: =(Table10[[#This Row],[beta.exposure]]/Table10[[#This Row],[se.exposure]])^2 -> 8.660294637
A126: ANGPTL4 | B126: apolipoprotein A-I | C126: CAD GWAS Cardiogram | D126: rs76624499 | E126: A | F126: C | G126: A | H126: C | I126: -0.00558178 | J126: 0.00710017 | K126: 0.729896 | L126: 0.5724 | M126: FALSE | N126: FALSE | O126: FALSE | P126: Blrstk | Q126: 19 | R126: 8339547 | S126: 0.0070293649 | T126: 0.3125 | U126: 1000860 | V126: TRUE | W126: reported | X126: 19 | Y126: 8339547 | Z126: 0.00254119 | AA126: 0.0280001 | AB126: ANGPTL4_ieu-b-107 | AC126: TRUE | AD126: reported | AE126: 2 | AF126: 1 | AG126: TRUE | AH126: =(Table10[[#This Row],[beta.exposure]]/Table10[[#This Row],[se.exposure]])^2 -> 4.824709344
A127: ANGPTL4 | B127: apolipoprotein A-I | C127: CAD GWAS Cardiogram | D127: rs77063268 | E127: G | F127: A | G127: G | H127: A | I127: -0.00652555 | J127: 0.02203731 | K127: 0.027823 | L127: 0.0255 | M127: FALSE | N127: FALSE | O127: FALSE | P127: Blrstk | Q127: 19 | R127: 8526822 | S127: 0.017637598 | T127: 0.2115 | U127: 1075330 | V127: TRUE | W127: reported | X127: 19 | Y127: 8526822 | Z127: 0.00596875 | AA127: 0.27 | AB127: ANGPTL4_ieu-b-107 | AC127: TRUE | AD127: reported | AE127: 2 | AF127: 1 | AG127: TRUE | AH127: =(Table10[[#This Row],[beta.exposure]]/Table10[[#This Row],[se.exposure]])^2 -> 1.19527398
A128: ACLY | B128: apolipoprotein B | C128: T2D_FinnGen_r10 | D128: rs13412 | E128: C | F128: T | G128: C | H128: T | I128: -0.0108859 | J128: -0.0131949 | K128: 0.344318 | L128: 0.456895 | M128: FALSE | N128: FALSE | O128: FALSE | P128: aeAC7B | Q128: 17 | R128: 39967442 | S128: 0.00659815 | T128: 0.045524 | U128: 109000.14 | V128: TRUE | W128: reported | X128: 17 | Y128: 39967442 | Z128: 0.00218441 | AA128: 6.20E-07 | AB128: ACLY_ieu-b-108 | AC128: TRUE | AD128: reported | AE128: 2 | AF128: 1 | AG128: TRUE | AH128: =(Table10[[#This Row],[beta.exposure]]/Table10[[#This Row],[se.exposure]])^2 -> 24.83478296
A129: ANGPTL4 | B129: apolipoprotein A-I | C129: CAD GWAS Cardiogram | D129: rs890856 | E129: C | F129: T | G129: C | H129: T | I129: 0.00523597 | J129: -0.00322542 | K129: 0.894174 | L129: 0.8923 | M129: FALSE | N129: FALSE | O129: FALSE | P129: Blrstk | Q129: 19 | R129: 8369265 | S129: 0.0083930451 | T129: 0.7008 | U129: 1147980 | V129: TRUE | W129: reported | X129: 19 | Y129: 8369265 | Z129: 0.00320042 | AA129: 0.1 | AB129: ANGPTL4_ieu-b-107 | AC129: TRUE | AD129: reported | AE129: 2 | AF129: 1 | AG129: TRUE | AH129: =(Table10[[#This Row],[beta.exposure]]/Table10[[#This Row],[se.exposure]])^2 -> 2.676580734
A130: ACLY | B130: LDL cholesterol | C130: T2D_FinnGen_r10 | D130: rs13412 | E130: C | F130: T | G130: C | H130: T | I130: -0.0107114 | J130: -0.0131949 | K130: 0.344318 | L130: 0.456895 | M130: FALSE | N130: FALSE | O130: FALSE | P130: aeAC7B | Q130: 17 | R130: 39967442 | S130: 0.00659815 | T130: 0.045524 | U130: 109000.14 | V130: TRUE | W130: reported | X130: 17 | Y130: 39967442 | Z130: 0.0021918 | AA130: 1.00E-06 | AB130: ACLY_ieu-b-110 | AC130: TRUE | AD130: reported | AE130: 2 | AF130: 1 | AG130: TRUE | AH130: =(Table10[[#This Row],[beta.exposure]]/Table10[[#This Row],[se.exposure]])^2 -> 23.88309632
A131: ACLY | B131: apolipoprotein B | C131: T2Di UKB+LL | D131: rs13412 | E131: C | F131: T | G131: C | H131: T | I131: -0.0108859 | J131: -0.0153 | K131: 0.344318 | L131: 0.3433 | M131: FALSE | N131: FALSE | O131: FALSE | P131: rWpnrP | Q131: 17 | R131: 39967442 | S131: 0.0107 | T131: 0.1513 | U131: 465422 | V131: TRUE | W131: reported | X131: 17 | Y131: 39967442 | Z131: 0.00218441 | AA131: 6.20E-07 | AB131: ACLY_ieu-b-108 | AC131: TRUE | AD131: reported | AE131: 2 | AF131: 1 | AG131: TRUE | AH131: =(Table10[[#This Row],[beta.exposure]]/Table10[[#This Row],[se.exposure]])^2 -> 24.83478296
A132: APOB | B132: apolipoprotein A-I | C132: CAD GWAS Cardiogram | D132: rs113588790 | E132: T | F132: C | G132: T | H132: C | I132: -0.0169668 | J132: 0.05105238 | K132: 0.040323 | L132: 0.0374 | M132: FALSE | N132: FALSE | O132: FALSE | P132: Blrstk | Q132: 2 | R132: 21364562 | S132: 0.013752734 | T132: 0.0002055 | U132: 1156530 | V132: TRUE | W132: reported | X132: 2 | Y132: 21364562 | Z132: 0.00498592 | AA132: 0.000669993 | AB132: APOB_ieu-b-107 | AC132: TRUE | AD132: reported | AE132: 2 | AF132: 1 | AG132: TRUE | AH132: =(Table10[[#This Row],[beta.exposure]]/Table10[[#This Row],[se.exposure]])^2 -> 11.58001893
A133: APOB | B133: apolipoprotein A-I | C133: CAD GWAS Cardiogram | D133: rs114185526 | E133: T | F133: C | G133: T | H133: C | I133: 0.00358546 | J133: -0.01123351 | K133: 0.011171 | L133: 0.0103 | M133: FALSE | N133: FALSE | O133: FALSE | P133: Blrstk | Q133: 2 | R133: 21334717 | S133: 0.031249749 | T133: 0.7192 | U133: 938845 | V133: TRUE | W133: reported | X133: 2 | Y133: 21334717 | Z133: 0.00932911 | AA133: 0.7 | AB133: APOB_ieu-b-107 | AC133: TRUE | AD133: reported | AE133: 2 | AF133: 1 | AG133: TRUE | AH133: =(Table10[[#This Row],[beta.exposure]]/Table10[[#This Row],[se.exposure]])^2 -> 0.1477098087
A134: ACLY | B134: LDL cholesterol | C134: T2Di UKB+LL | D134: rs13412 | E134: C | F134: T | G134: C | H134: T | I134: -0.0107114 | J134: -0.0153 | K134: 0.344318 | L134: 0.3433 | M134: FALSE | N134: FALSE | O134: FALSE | P134: rWpnrP | Q134: 17 | R134: 39967442 | S134: 0.0107 | T134: 0.1513 | U134: 465422 | V134: TRUE | W134: reported | X134: 17 | Y134: 39967442 | Z134: 0.0021918 | AA134: 1.00E-06 | AB134: ACLY_ieu-b-110 | AC134: TRUE | AD134: reported | AE134: 2 | AF134: 1 | AG134: TRUE | AH134: =(Table10[[#This Row],[beta.exposure]]/Table10[[#This Row],[se.exposure]])^2 -> 23.88309632
A135: ACLY | B135: apolipoprotein B | C135: Two-hour glucose | D135: rs13412 | E135: C | F135: T | G135: C | H135: T | I135: -0.0108859 | J135: 0.0018 | K135: 0.344318 | L135: 0.355 | M135: FALSE | N135: FALSE | O135: FALSE | P135: ebi-a-GCST90002227 | Q135: 17 | R135: 39967442 | S135: 0.0086 | T135: 0.8614 | U135: 63396 | V135: TRUE | W135: reported | X135: 17 | Y135: 39967442 | Z135: 0.00218441 | AA135: 6.20E-07 | AB135: ACLY_ieu-b-108 | AC135: TRUE | AD135: reported | AE135: 2 | AF135: 1 | AG135: TRUE | AH135: =(Table10[[#This Row],[beta.exposure]]/Table10[[#This Row],[se.exposure]])^2 -> 24.83478296
A136: APOB | B136: apolipoprotein A-I | C136: CAD GWAS Cardiogram | D136: rs116359745 | E136: A | F136: C | G136: A | H136: C | I136: -0.0128853 | J136: -0.06369866 | K136: 0.010169 | L136: 0.0105 | M136: FALSE | N136: FALSE | O136: FALSE | P136: Blrstk | Q136: 2 | R136: 21207605 | S136: 0.029128297 | T136: 0.02875 | U136: 1078310 | V136: TRUE | W136: reported | X136: 2 | Y136: 21207605 | Z136: 0.00984815 | AA136: 0.19 | AB136: APOB_ieu-b-107 | AC136: TRUE | AD136: reported | AE136: 2 | AF136: 1 | AG136: TRUE | AH136: =(Table10[[#This Row],[beta.exposure]]/Table10[[#This Row],[se.exposure]])^2 -> 1.711905389
A137: APOB | B137: apolipoprotein A-I | C137: CAD GWAS Cardiogram | D137: rs12720796 | E137: C | F137: A | G137: C | H137: A | I137: -0.0169256 | J137: 0.00014641 | K137: 0.019584 | L137: 0.025 | M137: FALSE | N137: FALSE | O137: FALSE | P137: Blrstk | Q137: 2 | R137: 21261998 | S137: 0.017702749 | T137: 0.9934 | U137: 1116550 | V137: TRUE | W137: reported | X137: 2 | Y137: 21261998 | Z137: 0.00707013 | AA137: 0.017 | AB137: APOB_ieu-b-107 | AC137: TRUE | AD137: reported | AE137: 2 | AF137: 1 | AG137: TRUE | AH137: =(Table10[[#This Row],[beta.exposure]]/Table10[[#This Row],[se.exposure]])^2 -> 5.731038783
A138: APOB | B138: apolipoprotein A-I | C138: CAD GWAS Cardiogram | D138: rs12720807 | E138: T | F138: A | G138: T | H138: A | I138: -0.0133843 | J138: -0.00134255 | K138: 0.118243 | L138: 0.1113 | M138: FALSE | N138: TRUE | O138: FALSE | P138: Blrstk | Q138: 2 | R138: 21253628 | S138: 0.011323038 | T138: 0.9056 | U138: 829210 | V138: TRUE | W138: reported | X138: 2 | Y138: 21253628 | Z138: 0.00307547 | AA138: 1.30E-05 | AB138: APOB_ieu-b-107 | AC138: TRUE | AD138: reported | AE138: 2 | AF138: 1 | AG138: TRUE | AH138: =(Table10[[#This Row],[beta.exposure]]/Table10[[#This Row],[se.exposure]])^2 -> 18.93949239
A139: APOB | B139: apolipoprotein A-I | C139: CAD GWAS Cardiogram | D139: rs12720817 | E139: T | F139: C | G139: T | H139: C | I139: 0.00489228 | J139: -0.00581317 | K139: 0.017419 | L139: 0.0158 | M139: FALSE | N139: FALSE | O139: FALSE | P139: Blrstk | Q139: 2 | R139: 21239772 | S139: 0.022380755 | T139: 0.7951 | U139: 1096040 | V139: TRUE | W139: reported | X139: 2 | Y139: 21239772 | Z139: 0.00761757 | AA139: 0.52 | AB139: APOB_ieu-b-107 | AC139: TRUE | AD139: reported | AE139: 2 | AF139: 1 | AG139: TRUE | AH139: =(Table10[[#This Row],[beta.exposure]]/Table10[[#This Row],[se.exposure]])^2 -> 0.4124674698
A140: APOB | B140: apolipoprotein A-I | C140: CAD GWAS Cardiogram | D140: rs12720838 | E140: T | F140: C | G140: T | H140: C | I140: -0.00990936 | J140: 0.00425702 | K140: 0.164284 | L140: 0.1576 | M140: FALSE | N140: FALSE | O140: FALSE | P140: Blrstk | Q140: 2 | R140: 21247211 | S140: 0.0068096505 | T140: 0.5319 | U140: 1164710 | V140: TRUE | W140: reported | X140: 2 | Y140: 21247211 | Z140: 0.00264622 | AA140: 0.000179999 | AB140: APOB_ieu-b-107 | AC140: TRUE | AD140: reported | AE140: 2 | AF140: 1 | AG140: TRUE | AH140: =(Table10[[#This Row],[beta.exposure]]/Table10[[#This Row],[se.exposure]])^2 -> 14.02294781
A141: ACLY | B141: LDL cholesterol | C141: Two-hour glucose | D141: rs13412 | E141: C | F141: T | G141: C | H141: T | I141: -0.0107114 | J141: 0.0018 | K141: 0.344318 | L141: 0.355 | M141: FALSE | N141: FALSE | O141: FALSE | P141: ebi-a-GCST90002227 | Q141: 17 | R141: 39967442 | S141: 0.0086 | T141: 0.8614 | U141: 63396 | V141: TRUE | W141: reported | X141: 17 | Y141: 39967442 | Z141: 0.0021918 | AA141: 1.00E-06 | AB141: ACLY_ieu-b-110 | AC141: TRUE | AD141: reported | AE141: 2 | AF141: 1 | AG141: TRUE | AH141: =(Table10[[#This Row],[beta.exposure]]/Table10[[#This Row],[se.exposure]])^2 -> 23.88309632
A142: APOB | B142: apolipoprotein A-I | C142: CAD GWAS Cardiogram | D142: rs137978266 | E142: G | F142: A | G142: G | H142: A | I142: -0.00843359 | J142: -0.00413697 | K142: 0.011603 | L142: 0.0137 | M142: FALSE | N142: FALSE | O142: FALSE | P142: Blrstk | Q142: 2 | R142: 21135220 | S142: 0.025053999 | T142: 0.8688 | U142: 1100670 | V142: TRUE | W142: reported | X142: 2 | Y142: 21135220 | Z142: 0.00947472 | AA142: 0.37 | AB142: APOB_ieu-b-107 | AC142: TRUE | AD142: reported | AE142: 2 | AF142: 1 | AG142: TRUE | AH142: =(Table10[[#This Row],[beta.exposure]]/Table10[[#This Row],[se.exposure]])^2 -> 0.7923046394
A143: ANGPTL3 | B143: triglycerides | C143: CAD GWAS Cardiogram | D143: rs1002687 | E143: A | F143: G | G143: A | H143: G | I143: 0.0766616 | J143: 0.00358264 | K143: 0.644893 | L143: 0.6448 | M143: FALSE | N143: FALSE | O143: FALSE | P143: Blrstk | Q143: 1 | R143: 62963737 | S143: 0.0051315934 | T143: 0.4851 | U143: 1165530 | V143: TRUE | W143: reported | X143: 1 | Y143: 62963737 | Z143: 0.00207403 | AA143: 1.00E-200 | AB143: ANGPTL3_ieu-b-111 | AC143: TRUE | AD143: reported | AE143: 2 | AF143: 1 | AG143: TRUE | AH143: =(Table10[[#This Row],[beta.exposure]]/Table10[[#This Row],[se.exposure]])^2 -> 1366.235892
A144: APOB | B144: apolipoprotein A-I | C144: CAD GWAS Cardiogram | D144: rs144470864 | E144: C | F144: A | G144: C | H144: A | I144: -0.0175747 | J144: -0.01702562 | K144: 0.055301 | L144: 0.0565 | M144: FALSE | N144: FALSE | O144: FALSE | P144: Blrstk | Q144: 2 | R144: 21183334 | S144: 0.011334146 | T144: 0.1331 | U144: 1145190 | V144: TRUE | W144: reported | X144: 2 | Y144: 21183334 | Z144: 0.00435997 | AA144: 5.60E-05 | AB144: APOB_ieu-b-107 | AC144: TRUE | AD144: reported | AE144: 2 | AF144: 1 | AG144: TRUE | AH144: =(Table10[[#This Row],[beta.exposure]]/Table10[[#This Row],[se.exposure]])^2 -> 16.24833403
A145: APOB | B145: apolipoprotein A-I | C145: CAD GWAS Cardiogram | D145: rs145449541 | E145: A | F145: G | G145: A | H145: G | I145: 0.00920977 | J145: -0.03822608 | K145: 0.011994 | L145: 0.0166 | M145: FALSE | N145: FALSE | O145: FALSE | P145: Blrstk | Q145: 2 | R145: 21303403 | S145: 0.021678491 | T145: 0.07785 | U145: 1119640 | V145: TRUE | W145: reported | X145: 2 | Y145: 21303403 | Z145: 0.00914646 | AA145: 0.31 | AB145: APOB_ieu-b-107 | AC145: TRUE | AD145: reported | AE145: 2 | AF145: 1 | AG145: TRUE | AH145: =(Table10[[#This Row],[beta.exposure]]/Table10[[#This Row],[se.exposure]])^2 -> 1.013891519
A146: ANGPTL3 | B146: triglycerides | C146: Fasting glucose | D146: rs1002687 | E146: A | F146: G | G146: A | H146: G | I146: 0.0766616 | J146: 0.0041 | K146: 0.644893 | L146: 0.678 | M146: FALSE | N146: FALSE | O146: FALSE | P146: ebi-a-GCST90002232 | Q146: 1 | R146: 62963737 | S146: 0.0018 | T146: 0.006827 | U146: 200622 | V146: TRUE | W146: reported | X146: 1 | Y146: 62963737 | Z146: 0.00207403 | AA146: 1.00E-200 | AB146: ANGPTL3_ieu-b-111 | AC146: TRUE | AD146: reported | AE146: 2 | AF146: 1 | AG146: TRUE | AH146: =(Table10[[#This Row],[beta.exposure]]/Table10[[#This Row],[se.exposure]])^2 -> 1366.235892
A147: APOB | B147: apolipoprotein A-I | C147: CAD GWAS Cardiogram | D147: rs150956240 | E147: G | F147: A | G147: G | H147: A | I147: -0.00431065 | J147: -0.01027887 | K147: 0.010336 | L147: 0.0111 | M147: FALSE | N147: FALSE | O147: FALSE | P147: Blrstk | Q147: 2 | R147: 21238984 | S147: 0.025330096 | T147: 0.6849 | U147: 1137970 | V147: TRUE | W147: reported | X147: 2 | Y147: 21238984 | Z147: 0.00990385 | AA147: 0.66 | AB147: APOB_ieu-b-107 | AC147: TRUE | AD147: reported | AE147: 2 | AF147: 1 | AG147: TRUE | AH147: =(Table10[[#This Row],[beta.exposure]]/Table10[[#This Row],[se.exposure]])^2 -> 0.1894424999
A148: ANGPTL3 | B148: triglycerides | C148: Fasting insulin | D148: rs1002687 | E148: A | F148: G | G148: A | H148: G | I148: 0.0766616 | J148: -0.0033 | K148: 0.644893 | L148: 0.678 | M148: FALSE | N148: FALSE | O148: FALSE | P148: ebi-a-GCST90002238 | Q148: 1 | R148: 62963737 | S148: 0.002 | T148: 0.3764 | U148: 151013 | V148: TRUE | W148: reported | X148: 1 | Y148: 62963737 | Z148: 0.00207403 | AA148: 1.00E-200 | AB148: ANGPTL3_ieu-b-111 | AC148: TRUE | AD148: reported | AE148: 2 | AF148: 1 | AG148: TRUE | AH148: =(Table10[[#This Row],[beta.exposure]]/Table10[[#This Row],[se.exposure]])^2 -> 1366.235892
A149: ANGPTL3 | B149: triglycerides | C149: Glycated hemoglobin levels | D149: rs1002687 | E149: A | F149: G | G149: A | H149: G | I149: 0.0766616 | J149: -0.0029 | K149: 0.644893 | L149: 0.678 | M149: FALSE | N149: FALSE | O149: FALSE | P149: ebi-a-GCST90002244 | Q149: 1 | R149: 62963737 | S149: 0.0013 | T149: 0.04302 | U149: 146806 | V149: TRUE | W149: reported | X149: 1 | Y149: 62963737 | Z149: 0.00207403 | AA149: 1.00E-200 | AB149: ANGPTL3_ieu-b-111 | AC149: TRUE | AD149: reported | AE149: 2 | AF149: 1 | AG149: TRUE | AH149: =(Table10[[#This Row],[beta.exposure]]/Table10[[#This Row],[se.exposure]])^2 -> 1366.235892
A150: APOB | B150: apolipoprotein A-I | C150: CAD GWAS Cardiogram | D150: rs1801700 | E150: A | F150: G | G150: A | H150: G | I150: -0.0181687 | J150: 0.03941959 | K150: 0.05303 | L150: 0.0491 | M150: FALSE | N150: FALSE | O150: FALSE | P150: Blrstk | Q150: 2 | R150: 21245813 | S150: 0.011833153 | T150: 0.0008645 | U150: 1149130 | V150: TRUE | W150: reported | X150: 2 | Y150: 21245813 | Z150: 0.00436384 | AA150: 3.10E-05 | AB150: APOB_ieu-b-107 | AC150: TRUE | AD150: reported | AE150: 2 | AF150: 1 | AG150: TRUE | AH150: =(Table10[[#This Row],[beta.exposure]]/Table10[[#This Row],[se.exposure]])^2 -> 17.33445015
A151: APOB | B151: apolipoprotein A-I | C151: CAD GWAS Cardiogram | D151: rs35750610 | E151: C | F151: T | G151: C | H151: T | I151: -0.0132369 | J151: 0.03205064 | K151: 0.100703 | L151: 0.102 | M151: FALSE | N151: FALSE | O151: FALSE | P151: Blrstk | Q151: 2 | R151: 21281893 | S151: 0.0082227854 | T151: 9.71E-05 | U151: 1164750 | V151: TRUE | W151: reported | X151: 2 | Y151: 21281893 | Z151: 0.00328891 | AA151: 5.70E-05 | AB151: APOB_ieu-b-107 | AC151: TRUE | AD151: reported | AE151: 2 | AF151: 1 | AG151: TRUE | AH151: =(Table10[[#This Row],[beta.exposure]]/Table10[[#This Row],[se.exposure]])^2 -> 16.19826864
A152: APOB | B152: apolipoprotein A-I | C152: CAD GWAS Cardiogram | D152: rs4072815 | E152: T | F152: G | G152: T | H152: G | I152: 0.00881284 | J152: -0.05981594 | K152: 0.010681 | L152: 0.027 | M152: FALSE | N152: FALSE | O152: FALSE | P152: Blrstk | Q152: 2 | R152: 21141858 | S152: 0.018387501 | T152: 0.001142 | U152: 1157460 | V152: TRUE | W152: reported | X152: 2 | Y152: 21141858 | Z152: 0.00953424 | AA152: 0.36 | AB152: APOB_ieu-b-107 | AC152: TRUE | AD152: reported | AE152: 2 | AF152: 1 | AG152: TRUE | AH152: =(Table10[[#This Row],[beta.exposure]]/Table10[[#This Row],[se.exposure]])^2 -> 0.8543967957
A153: ANGPTL3 | B153: triglycerides | C153: HOMA-B | D153: rs1002687 | E153: A | F153: G | G153: A | H153: G | I153: 0.0766616 | J153: -0.0026 | K153: 0.644893 | M153: FALSE | N153: FALSE | O153: FALSE | P153: ieu-b-117 | Q153: 1 | R153: 62963737 | S153: 0.0035 | T153: 0.4584 | U153: 36466 | V153: TRUE | W153: reported | X153: 1 | Y153: 62963737 | Z153: 0.00207403 | AA153: 1.00E-200 | AB153: ANGPTL3_ieu-b-111 | AC153: TRUE | AD153: reported | AE153: 2 | AF153: 1 | AG153: TRUE | AH153: =(Table10[[#This Row],[beta.exposure]]/Table10[[#This Row],[se.exposure]])^2 -> 1366.235892
A154: ANGPTL3 | B154: triglycerides | C154: HOMA-IR | D154: rs1002687 | E154: A | F154: G | G154: A | H154: G | I154: 0.0766616 | J154: -0.0043 | K154: 0.644893 | M154: FALSE | N154: FALSE | O154: FALSE | P154: ieu-b-118 | Q154: 1 | R154: 62963737 | S154: 0.0043 | T154: 0.3166 | U154: 37037 | V154: TRUE | W154: reported | X154: 1 | Y154: 62963737 | Z154: 0.00207403 | AA154: 1.00E-200 | AB154: ANGPTL3_ieu-b-111 | AC154: TRUE | AD154: reported | AE154: 2 | AF154: 1 | AG154: TRUE | AH154: =(Table10[[#This Row],[beta.exposure]]/Table10[[#This Row],[se.exposure]])^2 -> 1366.235892
A155: APOB | B155: apolipoprotein A-I | C155: CAD GWAS Cardiogram | D155: rs562338 | E155: G | F155: A | G155: G | H155: A | I155: -0.00719654 | J155: 0.05684075 | K155: 0.819421 | L155: 0.8201 | M155: FALSE | N155: FALSE | O155: FALSE | P155: Blrstk | Q155: 2 | R155: 21288321 | S155: 0.0065553926 | T155: 4.29E-18 | U155: 1160730 | V155: TRUE | W155: reported | X155: 2 | Y155: 21288321 | Z155: 0.00254262 | AA155: 0.00460002 | AB155: APOB_ieu-b-107 | AC155: TRUE | AD155: reported | AE155: 2 | AF155: 1 | AG155: TRUE | AH155: =(Table10[[#This Row],[beta.exposure]]/Table10[[#This Row],[se.exposure]])^2 -> 8.010960119
A156: ANGPTL3 | B156: triglycerides | C156: random glucose | D156: rs1002687 | E156: A | F156: G | G156: A | H156: G | I156: 0.0766616 | J156: 0.000482656155 | K156: 0.644893 | L156: 0.645 | M156: FALSE | N156: FALSE | O156: FALSE | P156: GCST90271557 | Q156: 1 | R156: 62963737 | S156: 0.000308085821 | T156: 0.1172 | U156: 456950 | V156: TRUE | W156: reported | X156: 1 | Y156: 62963737 | Z156: 0.00207403 | AA156: 1.00E-200 | AB156: ANGPTL3_ieu-b-111 | AC156: TRUE | AD156: reported | AE156: 2 | AF156: 1 | AG156: TRUE | AH156: =(Table10[[#This Row],[beta.exposure]]/Table10[[#This Row],[se.exposure]])^2 -> 1366.235892
A157: APOB | B157: apolipoprotein A-I | C157: CAD GWAS Cardiogram | D157: rs62122482 | E157: T | F157: C | G157: T | H157: C | I157: -0.00465194 | J157: 0.02150929 | K157: 0.045416 | L157: 0.0423 | M157: FALSE | N157: FALSE | O157: FALSE | P157: Blrstk | Q157: 2 | R157: 21221153 | S157: 0.013008635 | T157: 0.09824 | U157: 1145220 | V157: TRUE | W157: reported | X157: 2 | Y157: 21221153 | Z157: 0.00474442 | AA157: 0.33 | AB157: APOB_ieu-b-107 | AC157: TRUE | AD157: reported | AE157: 2 | AF157: 1 | AG157: TRUE | AH157: =(Table10[[#This Row],[beta.exposure]]/Table10[[#This Row],[se.exposure]])^2 -> 0.9613952084
A158: ANGPTL3 | B158: triglycerides | C158: T2D GWAS DIAMANTE | D158: rs1002687 | E158: A | F158: G | G158: A | H158: G | I158: 0.0766616 | J158: 2.00E-04 | K158: 0.644893 | L158: 0.6594 | M158: FALSE | N158: FALSE | O158: FALSE | P158: kPjrgy | Q158: 1 | R158: 62963737 | S158: 0.0068 | T158: 0.9766 | U158: 251739.5 | V158: TRUE | W158: reported | X158: 1 | Y158: 62963737 | Z158: 0.00207403 | AA158: 1.00E-200 | AB158: ANGPTL3_ieu-b-111 | AC158: TRUE | AD158: reported | AE158: 2 | AF158: 1 | AG158: TRUE | AH158: =(Table10[[#This Row],[beta.exposure]]/Table10[[#This Row],[se.exposure]])^2 -> 1366.235892
A159: APOB | B159: apolipoprotein A-I | C159: CAD GWAS Cardiogram | D159: rs72780134 | E159: A | F159: G | G159: A | H159: G | I159: -0.0107963 | J159: -0.06198494 | K159: 0.069938 | L159: 0.0735 | M159: FALSE | N159: FALSE | O159: FALSE | P159: Blrstk | Q159: 2 | R159: 21214832 | S159: 0.0094485745 | T159: 5.37E-11 | U159: 1164750 | V159: TRUE | W159: reported | X159: 2 | Y159: 21214832 | Z159: 0.00384247 | AA159: 0.005 | AB159: APOB_ieu-b-107 | AC159: TRUE | AD159: reported | AE159: 2 | AF159: 1 | AG159: TRUE | AH159: =(Table10[[#This Row],[beta.exposure]]/Table10[[#This Row],[se.exposure]])^2 -> 7.894577945
A160: APOB | B160: apolipoprotein A-I | C160: CAD GWAS Cardiogram | D160: rs72780178 | E160: C | F160: A | G160: C | H160: A | I160: -0.0164125 | J160: 0.02589599 | K160: 0.028556 | L160: 0.0263 | M160: FALSE | N160: FALSE | O160: FALSE | P160: Blrstk | Q160: 2 | R160: 21288970 | S160: 0.016195745 | T160: 0.1098 | U160: 1145210 | V160: TRUE | W160: reported | X160: 2 | Y160: 21288970 | Z160: 0.00600346 | AA160: 0.00629999 | AB160: APOB_ieu-b-107 | AC160: TRUE | AD160: reported | AE160: 2 | AF160: 1 | AG160: TRUE | AH160: =(Table10[[#This Row],[beta.exposure]]/Table10[[#This Row],[se.exposure]])^2 -> 7.473881978
A161: APOB | B161: apolipoprotein A-I | C161: CAD GWAS Cardiogram | D161: rs72902576 | E161: G | F161: T | G161: G | H161: T | I161: 0.016629 | J161: -0.08758013 | K161: 0.042797 | L161: 0.0361 | M161: FALSE | N161: FALSE | O161: FALSE | P161: Blrstk | Q161: 2 | R161: 21275480 | S161: 0.013918977 | T161: 3.13E-10 | U161: 1145210 | V161: TRUE | W161: reported | X161: 2 | Y161: 21275480 | Z161: 0.00483779 | AA161: 0.000589997 | AB161: APOB_ieu-b-107 | AC161: TRUE | AD161: reported | AE161: 2 | AF161: 1 | AG161: TRUE | AH161: =(Table10[[#This Row],[beta.exposure]]/Table10[[#This Row],[se.exposure]])^2 -> 11.81512285
A162: APOB | B162: apolipoprotein A-I | C162: CAD GWAS Cardiogram | D162: rs79576251 | E162: C | F162: G | G162: C | H162: G | I162: -0.00403576 | J162: 0.05637859 | K162: 0.01379 | L162: 0.0155 | M162: FALSE | N162: TRUE | O162: FALSE | P162: Blrstk | Q162: 2 | R162: 21340960 | S162: 0.023244921 | T162: 0.01529 | U162: 1086080 | V162: TRUE | W162: reported | X162: 2 | Y162: 21340960 | Z162: 0.0083772 | AA162: 0.630001 | AB162: APOB_ieu-b-107 | AC162: TRUE | AD162: reported | AE162: 2 | AF162: 1 | AG162: TRUE | AH162: =(Table10[[#This Row],[beta.exposure]]/Table10[[#This Row],[se.exposure]])^2 -> 0.2320881117
A163: ANGPTL3 | B163: triglycerides | C163: T2D_FinnGen_r10 | D163: rs1002687 | E163: A | F163: G | G163: A | H163: G | I163: 0.0766616 | J163: 0.00208651 | K163: 0.644893 | L163: 0.714845 | M163: FALSE | N163: FALSE | O163: FALSE | P163: aeAC7B | Q163: 1 | R163: 62963737 | S163: 0.00725677 | T163: 0.77371 | U163: 109000.14 | V163: TRUE | W163: reported | X163: 1 | Y163: 62963737 | Z163: 0.00207403 | AA163: 1.00E-200 | AB163: ANGPTL3_ieu-b-111 | AC163: TRUE | AD163: reported | AE163: 2 | AF163: 1 | AG163: TRUE | AH163: =(Table10[[#This Row],[beta.exposure]]/Table10[[#This Row],[se.exposure]])^2 -> 1366.235892
A164: ANGPTL3 | B164: triglycerides | C164: T2Di UKB+LL | D164: rs1002687 | E164: A | F164: G | G164: A | H164: G | I164: 0.0766616 | J164: 6.00E-04 | K164: 0.644893 | L164: 0.6372 | M164: FALSE | N164: FALSE | O164: FALSE | P164: rWpnrP | Q164: 1 | R164: 62963737 | S164: 0.0106 | T164: 0.9584 | U164: 494138 | V164: TRUE | W164: reported | X164: 1 | Y164: 62963737 | Z164: 0.00207403 | AA164: 1.00E-200 | AB164: ANGPTL3_ieu-b-111 | AC164: TRUE | AD164: reported | AE164: 2 | AF164: 1 | AG164: TRUE | AH164: =(Table10[[#This Row],[beta.exposure]]/Table10[[#This Row],[se.exposure]])^2 -> 1366.235892
A165: APOC3 | B165: apolipoprotein A-I | C165: CAD GWAS Cardiogram | D165: rs10790164 | E165: G | F165: A | G165: G | H165: A | I165: 0.0107446 | J165: -0.03522688 | K165: 0.966336 | L165: 0.9624 | M165: FALSE | N165: FALSE | O165: FALSE | P165: Blrstk | Q165: 11 | R165: 116699389 | S165: 0.014062731 | T165: 0.01225 | U165: 1138390 | V165: TRUE | W165: reported | X165: 11 | Y165: 116699389 | Z165: 0.00530999 | AA165: 0.0430002 | AB165: APOC3_ieu-b-107 | AC165: TRUE | AD165: reported | AE165: 2 | AF165: 1 | AG165: TRUE | AH165: =(Table10[[#This Row],[beta.exposure]]/Table10[[#This Row],[se.exposure]])^2 -> 4.094426676
A166: ANGPTL3 | B166: triglycerides | C166: Two-hour glucose | D166: rs1002687 | E166: A | F166: G | G166: A | H166: G | I166: 0.0766616 | J166: -0.0015 | K166: 0.644893 | L166: 0.678 | M166: FALSE | N166: FALSE | O166: FALSE | P166: ebi-a-GCST90002227 | Q166: 1 | R166: 62963737 | S166: 0.0081 | T166: 0.7805 | U166: 63396 | V166: TRUE | W166: reported | X166: 1 | Y166: 62963737 | Z166: 0.00207403 | AA166: 1.00E-200 | AB166: ANGPTL3_ieu-b-111 | AC166: TRUE | AD166: reported | AE166: 2 | AF166: 1 | AG166: TRUE | AH166: =(Table10[[#This Row],[beta.exposure]]/Table10[[#This Row],[se.exposure]])^2 -> 1366.235892
A167: APOC3 | B167: apolipoprotein A-I | C167: CAD GWAS Cardiogram | D167: rs111732554 | E167: C | F167: G | G167: C | H167: G | I167: -0.0118707 | J167: -0.02614296 | K167: 0.021019 | L167: 0.0185 | M167: FALSE | N167: TRUE | O167: FALSE | P167: Blrstk | Q167: 11 | R167: 116649131 | S167: 0.021695115 | T167: 0.2282 | U167: 1094280 | V167: TRUE | W167: reported | X167: 11 | Y167: 116649131 | Z167: 0.00682497 | AA167: 0.0819993 | AB167: APOC3_ieu-b-107 | AC167: TRUE | AD167: reported | AE167: 2 | AF167: 1 | AG167: TRUE | AH167: =(Table10[[#This Row],[beta.exposure]]/Table10[[#This Row],[se.exposure]])^2 -> 3.025179617
A168: ANGPTL3 | B168: triglycerides | C168: CAD GWAS Cardiogram | D168: rs10458569 | E168: A | F168: C | G168: A | H168: C | I168: -0.0520475 | J168: -0.00541773 | K168: 0.041375 | L168: 0.0452 | M168: FALSE | N168: FALSE | O168: FALSE | P168: Blrstk | Q168: 1 | R168: 62997601 | S168: 0.011991861 | T168: 0.6514 | U168: 1156530 | V168: TRUE | W168: reported | X168: 1 | Y168: 62997601 | Z168: 0.00498271 | AA168: 1.50E-25 | AB168: ANGPTL3_ieu-b-111 | AC168: TRUE | AD168: reported | AE168: 2 | AF168: 1 | AG168: TRUE | AH168: =(Table10[[#This Row],[beta.exposure]]/Table10[[#This Row],[se.exposure]])^2 -> 109.1109972
A169: ANGPTL3 | B169: triglycerides | C169: Fasting glucose | D169: rs10458569 | E169: A | F169: C | G169: A | H169: C | I169: -0.0520475 | J169: -0.0068 | K169: 0.041375 | L169: 0.042 | M169: FALSE | N169: FALSE | O169: FALSE | P169: ebi-a-GCST90002232 | Q169: 1 | R169: 62997601 | S169: 0.0047 | T169: 0.1837 | U169: 200622 | V169: TRUE | W169: reported | X169: 1 | Y169: 62997601 | Z169: 0.00498271 | AA169: 1.50E-25 | AB169: ANGPTL3_ieu-b-111 | AC169: TRUE | AD169: reported | AE169: 2 | AF169: 1 | AG169: TRUE | AH169: =(Table10[[#This Row],[beta.exposure]]/Table10[[#This Row],[se.exposure]])^2 -> 109.1109972
A170: ANGPTL3 | B170: triglycerides | C170: Fasting insulin | D170: rs10458569 | E170: A | F170: C | G170: A | H170: C | I170: -0.0520475 | J170: -0.0026 | K170: 0.041375 | L170: 0.042 | M170: FALSE | N170: FALSE | O170: FALSE | P170: ebi-a-GCST90002238 | Q170: 1 | R170: 62997601 | S170: 0.0053 | T170: 0.5007 | U170: 151013 | V170: TRUE | W170: reported | X170: 1 | Y170: 62997601 | Z170: 0.00498271 | AA170: 1.50E-25 | AB170: ANGPTL3_ieu-b-111 | AC170: TRUE | AD170: reported | AE170: 2 | AF170: 1 | AG170: TRUE | AH170: =(Table10[[#This Row],[beta.exposure]]/Table10[[#This Row],[se.exposure]])^2 -> 109.1109972
A171: ANGPTL3 | B171: triglycerides | C171: Glycated hemoglobin levels | D171: rs10458569 | E171: A | F171: C | G171: A | H171: C | I171: -0.0520475 | J171: 0.0047 | K171: 0.041375 | L171: 0.042 | M171: FALSE | N171: FALSE | O171: FALSE | P171: ebi-a-GCST90002244 | Q171: 1 | R171: 62997601 | S171: 0.0036 | T171: 0.088481 | U171: 146806 | V171: TRUE | W171: reported | X171: 1 | Y171: 62997601 | Z171: 0.00498271 | AA171: 1.50E-25 | AB171: ANGPTL3_ieu-b-111 | AC171: TRUE | AD171: reported | AE171: 2 | AF171: 1 | AG171: TRUE | AH171: =(Table10[[#This Row],[beta.exposure]]/Table10[[#This Row],[se.exposure]])^2 -> 109.1109972
A172: ANGPTL3 | B172: triglycerides | C172: HOMA-B | D172: rs10458569 | E172: A | F172: C | G172: A | H172: C | I172: -0.0520475 | J172: -2.00E-04 | K172: 0.041375 | M172: FALSE | N172: FALSE | O172: FALSE | P172: ieu-b-117 | Q172: 1 | R172: 62997601 | S172: 0.011 | T172: 0.9875 | U172: 36466 | V172: TRUE | W172: reported | X172: 1 | Y172: 62997601 | Z172: 0.00498271 | AA172: 1.50E-25 | AB172: ANGPTL3_ieu-b-111 | AC172: TRUE | AD172: reported | AE172: 2 | AF172: 1 | AG172: TRUE | AH172: =(Table10[[#This Row],[beta.exposure]]/Table10[[#This Row],[se.exposure]])^2 -> 109.1109972
A173: ANGPTL3 | B173: triglycerides | C173: HOMA-IR | D173: rs10458569 | E173: A | F173: C | G173: A | H173: C | I173: -0.0520475 | J173: 0.0054 | K173: 0.041375 | M173: FALSE | N173: FALSE | O173: FALSE | P173: ieu-b-118 | Q173: 1 | R173: 62997601 | S173: 0.014 | T173: 0.6965 | U173: 37037 | V173: TRUE | W173: reported | X173: 1 | Y173: 62997601 | Z173: 0.00498271 | AA173: 1.50E-25 | AB173: ANGPTL3_ieu-b-111 | AC173: TRUE | AD173: reported | AE173: 2 | AF173: 1 | AG173: TRUE | AH173: =(Table10[[#This Row],[beta.exposure]]/Table10[[#This Row],[se.exposure]])^2 -> 109.1109972
A174: ANGPTL3 | B174: triglycerides | C174: random glucose | D174: rs10458569 | E174: A | F174: C | G174: A | H174: C | I174: -0.0520475 | J174: -0.000694323037 | K174: 0.041375 | L174: 0.0415 | M174: FALSE | N174: FALSE | O174: FALSE | P174: GCST90271557 | Q174: 1 | R174: 62997601 | S174: 0.000741508695 | T174: 0.3491 | U174: 457194 | V174: TRUE | W174: reported | X174: 1 | Y174: 62997601 | Z174: 0.00498271 | AA174: 1.50E-25 | AB174: ANGPTL3_ieu-b-111 | AC174: TRUE | AD174: reported | AE174: 2 | AF174: 1 | AG174: TRUE | AH174: =(Table10[[#This Row],[beta.exposure]]/Table10[[#This Row],[se.exposure]])^2 -> 109.1109972
A175: ANGPTL3 | B175: triglycerides | C175: T2D GWAS DIAMANTE | D175: rs10458569 | E175: A | F175: C | G175: A | H175: C | I175: -0.0520475 | J175: 0.0013 | K175: 0.041375 | L175: 0.0376 | M175: FALSE | N175: FALSE | O175: FALSE | P175: kPjrgy | Q175: 1 | R175: 62997601 | S175: 0.0174 | T175: 0.9404 | U175: 251739.5 | V175: TRUE | W175: reported | X175: 1 | Y175: 62997601 | Z175: 0.00498271 | AA175: 1.50E-25 | AB175: ANGPTL3_ieu-b-111 | AC175: TRUE | AD175: reported | AE175: 2 | AF175: 1 | AG175: TRUE | AH175: =(Table10[[#This Row],[beta.exposure]]/Table10[[#This Row],[se.exposure]])^2 -> 109.1109972
A176: APOC3 | B176: apolipoprotein A-I | C176: CAD GWAS Cardiogram | D176: rs12721031 | E176: T | F176: C | G176: T | H176: C | I176: -0.0274773 | J176: -0.02802938 | K176: 0.023072 | L176: 0.0267 | M176: FALSE | N176: FALSE | O176: FALSE | P176: Blrstk | Q176: 11 | R176: 116704505 | S176: 0.017456045 | T176: 0.1083 | U176: 1109620 | V176: TRUE | W176: reported | X176: 11 | Y176: 116704505 | Z176: 0.00666207 | AA176: 3.70E-05 | AB176: APOC3_ieu-b-107 | AC176: TRUE | AD176: reported | AE176: 2 | AF176: 1 | AG176: TRUE | AH176: =(Table10[[#This Row],[beta.exposure]]/Table10[[#This Row],[se.exposure]])^2 -> 17.01099542
A177: APOC3 | B177: apolipoprotein A-I | C177: CAD GWAS Cardiogram | D177: rs12721041 | E177: T | F177: C | G177: T | H177: C | I177: -0.00926798 | J177: 0.04785569 | K177: 0.016105 | L177: 0.0157 | M177: FALSE | N177: FALSE | O177: FALSE | P177: Blrstk | Q177: 11 | R177: 116693871 | S177: 0.021488804 | T177: 0.02595 | U177: 1131360 | V177: TRUE | W177: reported | X177: 11 | Y177: 116693871 | Z177: 0.00777483 | AA177: 0.23 | AB177: APOC3_ieu-b-107 | AC177: TRUE | AD177: reported | AE177: 2 | AF177: 1 | AG177: TRUE | AH177: =(Table10[[#This Row],[beta.exposure]]/Table10[[#This Row],[se.exposure]])^2 -> 1.420981332
A178: ANGPTL3 | B178: triglycerides | C178: T2D_FinnGen_r10 | D178: rs10458569 | E178: A | F178: C | G178: A | H178: C | I178: -0.0520475 | J178: -0.0035801 | K178: 0.041375 | L178: 0.0308307 | M178: FALSE | N178: FALSE | O178: FALSE | P178: aeAC7B | Q178: 1 | R178: 62997601 | S178: 0.0190848 | T178: 0.851199 | U178: 109000.14 | V178: TRUE | W178: reported | X178: 1 | Y178: 62997601 | Z178: 0.00498271 | AA178: 1.50E-25 | AB178: ANGPTL3_ieu-b-111 | AC178: TRUE | AD178: reported | AE178: 2 | AF178: 1 | AG178: TRUE | AH178: =(Table10[[#This Row],[beta.exposure]]/Table10[[#This Row],[se.exposure]])^2 -> 109.1109972
A179: APOC3 | B179: apolipoprotein A-I | C179: CAD GWAS Cardiogram | D179: rs140484568 | E179: A | F179: T | G179: A | H179: T | I179: 0.00448013 | J179: 0.01604679 | K179: 0.021322 | L179: 0.0221 | M179: FALSE | N179: TRUE | O179: FALSE | P179: Blrstk | Q179: 11 | R179: 116771589 | S179: 0.020009762 | T179: 0.4226 | U179: 1097220 | V179: TRUE | W179: reported | X179: 11 | Y179: 116771589 | Z179: 0.0073816 | AA179: 0.54 | AB179: APOC3_ieu-b-107 | AC179: TRUE | AD179: reported | AE179: 2 | AF179: 1 | AG179: TRUE | AH179: =(Table10[[#This Row],[beta.exposure]]/Table10[[#This Row],[se.exposure]])^2 -> 0.3683665758
A180: ANGPTL3 | B180: triglycerides | C180: T2Di UKB+LL | D180: rs10458569 | E180: A | F180: C | G180: A | H180: C | I180: -0.0520475 | J180: 0.0176 | K180: 0.041375 | L180: 0.0432 | M180: FALSE | N180: FALSE | O180: FALSE | P180: rWpnrP | Q180: 1 | R180: 62997601 | S180: 0.0243 | T180: 0.4697 | U180: 513247 | V180: TRUE | W180: reported | X180: 1 | Y180: 62997601 | Z180: 0.00498271 | AA180: 1.50E-25 | AB180: ANGPTL3_ieu-b-111 | AC180: TRUE | AD180: reported | AE180: 2 | AF180: 1 | AG180: TRUE | AH180: =(Table10[[#This Row],[beta.exposure]]/Table10[[#This Row],[se.exposure]])^2 -> 109.1109972
A181: APOC3 | B181: apolipoprotein A-I | C181: CAD GWAS Cardiogram | D181: rs142161680 | E181: C | F181: T | G181: C | H181: T | I181: -0.0336173 | J181: 0.01235388 | K181: 0.011507 | L181: 0.0139 | M181: FALSE | N181: FALSE | O181: FALSE | P181: Blrstk | Q181: 11 | R181: 116619034 | S181: 0.027170797 | T181: 0.6493 | U181: 1064340 | V181: TRUE | W181: reported | X181: 11 | Y181: 116619034 | Z181: 0.00991318 | AA181: 0.000700003 | AB181: APOC3_ieu-b-107 | AC181: TRUE | AD181: reported | AE181: 2 | AF181: 1 | AG181: TRUE | AH181: =(Table10[[#This Row],[beta.exposure]]/Table10[[#This Row],[se.exposure]])^2 -> 11.5000486
A182: ANGPTL3 | B182: triglycerides | C182: Two-hour glucose | D182: rs10458569 | E182: A | F182: C | G182: A | H182: C | I182: -0.0520475 | J182: -8.00E-04 | K182: 0.041375 | L182: 0.042 | M182: FALSE | N182: FALSE | O182: FALSE | P182: ebi-a-GCST90002227 | Q182: 1 | R182: 62997601 | S182: 0.0205 | T182: 0.7815 | U182: 63396 | V182: TRUE | W182: reported | X182: 1 | Y182: 62997601 | Z182: 0.00498271 | AA182: 1.50E-25 | AB182: ANGPTL3_ieu-b-111 | AC182: TRUE | AD182: reported | AE182: 2 | AF182: 1 | AG182: TRUE | AH182: =(Table10[[#This Row],[beta.exposure]]/Table10[[#This Row],[se.exposure]])^2 -> 109.1109972
A183: APOC3 | B183: apolipoprotein A-I | C183: CAD GWAS Cardiogram | D183: rs150555490 | E183: T | F183: C | G183: T | H183: C | I183: 0.00631053 | J183: -0.01226829 | K183: 0.056734 | L183: 0.0527 | M183: FALSE | N183: FALSE | O183: FALSE | P183: Blrstk | Q183: 11 | R183: 116697081 | S183: 0.011669641 | T183: 0.2931 | U183: 1146820 | V183: TRUE | W183: reported | X183: 11 | Y183: 116697081 | Z183: 0.00423073 | AA183: 0.14 | AB183: APOC3_ieu-b-107 | AC183: TRUE | AD183: reported | AE183: 2 | AF183: 1 | AG183: TRUE | AH183: =(Table10[[#This Row],[beta.exposure]]/Table10[[#This Row],[se.exposure]])^2 -> 2.224851615
A184: ANGPTL3 | B184: LDL cholesterol | C184: CAD GWAS Cardiogram | D184: rs112548469 | E184: C | F184: T | G184: C | H184: T | I184: -0.0411847 | J184: -0.00782117 | K184: 0.017339 | L184: 0.0192 | M184: FALSE | N184: FALSE | O184: FALSE | P184: Blrstk | Q184: 1 | R184: 63121468 | S184: 0.021339191 | T184: 0.714 | U184: 1116790 | V184: TRUE | W184: reported | X184: 1 | Y184: 63121468 | Z184: 0.008406 | AA184: 9.60E-07 | AB184: ANGPTL3_ieu-b-110 | AC184: TRUE | AD184: reported | AE184: 2 | AF184: 1 | AG184: TRUE | AH184: =(Table10[[#This Row],[beta.exposure]]/Table10[[#This Row],[se.exposure]])^2 -> 24.00452089
A185: APOC3 | B185: apolipoprotein A-I | C185: CAD GWAS Cardiogram | D185: rs180349 | E185: T | F185: A | G185: T | H185: A | I185: -0.00811817 | J185: -0.00472594 | K185: 0.718709 | L185: 0.716 | M185: FALSE | N185: TRUE | O185: FALSE | P185: Blrstk | Q185: 11 | R185: 116611827 | S185: 0.005458824 | T185: 0.3866 | U185: 1161170 | V185: TRUE | W185: reported | X185: 11 | Y185: 116611827 | Z185: 0.00217827 | AA185: 0.000189998 | AB185: APOC3_ieu-b-107 | AC185: TRUE | AD185: reported | AE185: 2 | AF185: 1 | AG185: TRUE | AH185: =(Table10[[#This Row],[beta.exposure]]/Table10[[#This Row],[se.exposure]])^2 -> 13.8896999
A186: APOC3 | B186: apolipoprotein A-I | C186: CAD GWAS Cardiogram | D186: rs35004487 | E186: C | F186: G | G186: C | H186: G | I186: 0.0395415 | J186: 0.00563552 | K186: 0.011383 | L186: 0.0113 | M186: FALSE | N186: TRUE | O186: FALSE | P186: Blrstk | Q186: 11 | R186: 116631542 | S186: 0.02589844 | T186: 0.8277 | U186: 1093400 | V186: TRUE | W186: reported | X186: 11 | Y186: 116631542 | Z186: 0.0092373 | AA186: 1.90E-05 | AB186: APOC3_ieu-b-107 | AC186: TRUE | AD186: reported | AE186: 2 | AF186: 1 | AG186: TRUE | AH186: =(Table10[[#This Row],[beta.exposure]]/Table10[[#This Row],[se.exposure]])^2 -> 18.32382703
A187: APOC3 | B187: apolipoprotein A-I | C187: CAD GWAS Cardiogram | D187: rs35412484 | E187: C | F187: T | G187: C | H187: T | I187: -0.00834316 | J187: -0.00227382 | K187: 0.177192 | L187: 0.1584 | M187: FALSE | N187: FALSE | O187: FALSE | P187: Blrstk | Q187: 11 | R187: 116669428 | S187: 0.0070499527 | T187: 0.7471 | U187: 1151580 | V187: TRUE | W187: reported | X187: 11 | Y187: 116669428 | Z187: 0.0025706 | AA187: 0.0012 | AB187: APOC3_ieu-b-107 | AC187: TRUE | AD187: reported | AE187: 2 | AF187: 1 | AG187: TRUE | AH187: =(Table10[[#This Row],[beta.exposure]]/Table10[[#This Row],[se.exposure]])^2 -> 10.53397148
A188: ANGPTL3 | B188: LDL cholesterol | C188: Fasting glucose | D188: rs112548469 | E188: C | F188: T | G188: C | H188: T | I188: -0.0411847 | J188: -0.0164 | K188: 0.017339 | L188: 0.014 | M188: FALSE | N188: FALSE | O188: FALSE | P188: ebi-a-GCST90002232 | Q188: 1 | R188: 63121468 | S188: 0.0092 | T188: 0.0273401 | U188: 200622 | V188: TRUE | W188: reported | X188: 1 | Y188: 63121468 | Z188: 0.008406 | AA188: 9.60E-07 | AB188: ANGPTL3_ieu-b-110 | AC188: TRUE | AD188: reported | AE188: 2 | AF188: 1 | AG188: TRUE | AH188: =(Table10[[#This Row],[beta.exposure]]/Table10[[#This Row],[se.exposure]])^2 -> 24.00452089
A189: ANGPTL3 | B189: LDL cholesterol | C189: Fasting insulin | D189: rs112548469 | E189: C | F189: T | G189: C | H189: T | I189: -0.0411847 | J189: 0.003 | K189: 0.017339 | L189: 0.014 | M189: FALSE | N189: FALSE | O189: FALSE | P189: ebi-a-GCST90002238 | Q189: 1 | R189: 63121468 | S189: 0.0106 | T189: 0.9701 | U189: 151013 | V189: TRUE | W189: reported | X189: 1 | Y189: 63121468 | Z189: 0.008406 | AA189: 9.60E-07 | AB189: ANGPTL3_ieu-b-110 | AC189: TRUE | AD189: reported | AE189: 2 | AF189: 1 | AG189: TRUE | AH189: =(Table10[[#This Row],[beta.exposure]]/Table10[[#This Row],[se.exposure]])^2 -> 24.00452089
A190: ANGPTL3 | B190: LDL cholesterol | C190: Glycated hemoglobin levels | D190: rs112548469 | E190: C | F190: T | G190: C | H190: T | I190: -0.0411847 | J190: 0.0029 | K190: 0.017339 | L190: 0.014 | M190: FALSE | N190: FALSE | O190: FALSE | P190: ebi-a-GCST90002244 | Q190: 1 | R190: 63121468 | S190: 0.0072 | T190: 0.9397 | U190: 146806 | V190: TRUE | W190: reported | X190: 1 | Y190: 63121468 | Z190: 0.008406 | AA190: 9.60E-07 | AB190: ANGPTL3_ieu-b-110 | AC190: TRUE | AD190: reported | AE190: 2 | AF190: 1 | AG190: TRUE | AH190: =(Table10[[#This Row],[beta.exposure]]/Table10[[#This Row],[se.exposure]])^2 -> 24.00452089
A191: ANGPTL3 | B191: LDL cholesterol | C191: random glucose | D191: rs112548469 | E191: C | F191: T | G191: C | H191: T | I191: -0.0411847 | J191: -0.000500697513 | K191: 0.017339 | L191: 0.0174 | M191: FALSE | N191: FALSE | O191: FALSE | P191: GCST90271557 | Q191: 1 | R191: 63121468 | S191: 0.001206995756 | T191: 0.6783 | U191: 393841 | V191: TRUE | W191: reported | X191: 1 | Y191: 63121468 | Z191: 0.008406 | AA191: 9.60E-07 | AB191: ANGPTL3_ieu-b-110 | AC191: TRUE | AD191: reported | AE191: 2 | AF191: 1 | AG191: TRUE | AH191: =(Table10[[#This Row],[beta.exposure]]/Table10[[#This Row],[se.exposure]])^2 -> 24.00452089
A192: APOC3 | B192: apolipoprotein A-I | C192: CAD GWAS Cardiogram | D192: rs625524 | E192: A | F192: G | G192: A | H192: G | I192: -0.00351761 | J192: -0.03040445 | K192: 0.023177 | L192: 0.0432 | M192: FALSE | N192: FALSE | O192: FALSE | P192: Blrstk | Q192: 11 | R192: 116674503 | S192: 0.014867597 | T192: 0.04085 | U192: 1124620 | V192: TRUE | W192: reported | X192: 11 | Y192: 116674503 | Z192: 0.0065037 | AA192: 0.59 | AB192: APOC3_ieu-b-107 | AC192: TRUE | AD192: reported | AE192: 2 | AF192: 1 | AG192: TRUE | AH192: =(Table10[[#This Row],[beta.exposure]]/Table10[[#This Row],[se.exposure]])^2 -> 0.2925326695
A193: ANGPTL3 | B193: LDL cholesterol | C193: T2D GWAS DIAMANTE | D193: rs112548469 | E193: C | F193: T | G193: C | H193: T | I193: -0.0411847 | J193: -0.0187 | K193: 0.017339 | L193: 0.0192 | M193: FALSE | N193: FALSE | O193: FALSE | P193: kPjrgy | Q193: 1 | R193: 63121468 | S193: 0.026 | T193: 0.4714 | U193: 251739.5 | V193: TRUE | W193: reported | X193: 1 | Y193: 63121468 | Z193: 0.008406 | AA193: 9.60E-07 | AB193: ANGPTL3_ieu-b-110 | AC193: TRUE | AD193: reported | AE193: 2 | AF193: 1 | AG193: TRUE | AH193: =(Table10[[#This Row],[beta.exposure]]/Table10[[#This Row],[se.exposure]])^2 -> 24.00452089
A194: APOC3 | B194: apolipoprotein A-I | C194: CAD GWAS Cardiogram | D194: rs681524 | E194: C | F194: T | G194: C | H194: T | I194: -0.00733877 | J194: -0.01193834 | K194: 0.072093 | L194: 0.0688 | M194: FALSE | N194: FALSE | O194: FALSE | P194: Blrstk | Q194: 11 | R194: 116748314 | S194: 0.010404792 | T194: 0.2512 | U194: 1124360 | V194: TRUE | W194: reported | X194: 11 | Y194: 116748314 | Z194: 0.00380808 | AA194: 0.0539995 | AB194: APOC3_ieu-b-107 | AC194: TRUE | AD194: reported | AE194: 2 | AF194: 1 | AG194: TRUE | AH194: =(Table10[[#This Row],[beta.exposure]]/Table10[[#This Row],[se.exposure]])^2 -> 3.713936098
A195: ANGPTL3 | B195: LDL cholesterol | C195: T2D_FinnGen_r10 | D195: rs112548469 | E195: C | F195: T | G195: C | H195: T | I195: -0.0411847 | J195: -0.0106531 | K195: 0.017339 | L195: 0.014183 | M195: FALSE | N195: FALSE | O195: FALSE | P195: aeAC7B | Q195: 1 | R195: 63121468 | S195: 0.0280086 | T195: 0.703685 | U195: 109000.14 | V195: TRUE | W195: reported | X195: 1 | Y195: 63121468 | Z195: 0.008406 | AA195: 9.60E-07 | AB195: ANGPTL3_ieu-b-110 | AC195: TRUE | AD195: reported | AE195: 2 | AF195: 1 | AG195: TRUE | AH195: =(Table10[[#This Row],[beta.exposure]]/Table10[[#This Row],[se.exposure]])^2 -> 24.00452089
A196: ANGPTL3 | B196: LDL cholesterol | C196: T2Di UKB+LL | D196: rs112548469 | E196: C | F196: T | G196: C | H196: T | I196: -0.0411847 | J196: 0.0474 | K196: 0.017339 | L196: 0.0168 | M196: FALSE | N196: FALSE | O196: FALSE | P196: rWpnrP | Q196: 1 | R196: 63121468 | S196: 0.0465 | T196: 0.3072 | U196: 506207 | V196: TRUE | W196: reported | X196: 1 | Y196: 63121468 | Z196: 0.008406 | AA196: 9.60E-07 | AB196: ANGPTL3_ieu-b-110 | AC196: TRUE | AD196: reported | AE196: 2 | AF196: 1 | AG196: TRUE | AH196: =(Table10[[#This Row],[beta.exposure]]/Table10[[#This Row],[se.exposure]])^2 -> 24.00452089
A197: APOC3 | B197: apolipoprotein A-I | C197: CAD GWAS Cardiogram | D197: rs73023056 | E197: A | F197: G | G197: A | H197: G | I197: -0.0181749 | J197: -0.04019107 | K197: 0.032691 | L197: 0.0291 | M197: FALSE | N197: FALSE | O197: FALSE | P197: Blrstk | Q197: 11 | R197: 116752191 | S197: 0.015894849 | T197: 0.01145 | U197: 1137180 | V197: TRUE | W197: reported | X197: 11 | Y197: 116752191 | Z197: 0.00555559 | AA197: 0.00109999 | AB197: APOC3_ieu-b-107 | AC197: TRUE | AD197: reported | AE197: 2 | AF197: 1 | AG197: TRUE | AH197: =(Table10[[#This Row],[beta.exposure]]/Table10[[#This Row],[se.exposure]])^2 -> 10.70246177
A198: APOC3 | B198: apolipoprotein A-I | C198: CAD GWAS Cardiogram | D198: rs73023063 | E198: G | F198: A | G198: G | H198: A | I198: -0.0256891 | J198: -0.00342556 | K198: 0.021632 | L198: 0.0181 | M198: FALSE | N198: FALSE | O198: FALSE | P198: Blrstk | Q198: 11 | R198: 116763783 | S198: 0.021434684 | T198: 0.873 | U198: 1094660 | V198: TRUE | W198: reported | X198: 11 | Y198: 116763783 | Z198: 0.00673335 | AA198: 0.000140001 | AB198: APOC3_ieu-b-107 | AC198: TRUE | AD198: reported | AE198: 2 | AF198: 1 | AG198: TRUE | AH198: =(Table10[[#This Row],[beta.exposure]]/Table10[[#This Row],[se.exposure]])^2 -> 14.55577719
A199: APOC3 | B199: apolipoprotein A-I | C199: CAD GWAS Cardiogram | D199: rs76424835 | E199: T | F199: C | G199: T | H199: C | I199: -0.0300195 | J199: 0.00591187 | K199: 0.019414 | L199: 0.0198 | M199: FALSE | N199: FALSE | O199: FALSE | P199: Blrstk | Q199: 11 | R199: 116744996 | S199: 0.02157021 | T199: 0.784 | U199: 967799 | V199: TRUE | W199: reported | X199: 11 | Y199: 116744996 | Z199: 0.00710192 | AA199: 2.40E-05 | AB199: APOC3_ieu-b-107 | AC199: TRUE | AD199: reported | AE199: 2 | AF199: 1 | AG199: TRUE | AH199: =(Table10[[#This Row],[beta.exposure]]/Table10[[#This Row],[se.exposure]])^2 -> 17.86715303
A200: ANGPTL3 | B200: LDL cholesterol | C200: Two-hour glucose | D200: rs112548469 | E200: C | F200: T | G200: C | H200: T | I200: -0.0411847 | J200: -0.0022 | K200: 0.017339 | L200: 0.014 | M200: FALSE | N200: FALSE | O200: FALSE | P200: ebi-a-GCST90002227 | Q200: 1 | R200: 63121468 | S200: 0.0382 | T200: 0.9782 | U200: 63396 | V200: TRUE | W200: reported | X200: 1 | Y200: 63121468 | Z200: 0.008406 | AA200: 9.60E-07 | AB200: ANGPTL3_ieu-b-110 | AC200: TRUE | AD200: reported | AE200: 2 | AF200: 1 | AG200: TRUE | AH200: =(Table10[[#This Row],[beta.exposure]]/Table10[[#This Row],[se.exposure]])^2 -> 24.00452089
... 2050 more rows
